{"text_format":"1","workbook":"xlsx","n_sheets":12,"sheets":["ControlPage","Ward one","Audit comments","Outcomes","Over time dashboard","Snapshot dashboard","Charts","Charts for dashboard","DataSummary","Template","Audit results by week","Lists"],"not_rendered":{"charts":117,"images":0,"macros":1,"external_links":0,"defined_names":20,"comments":0,"pivot_tables":67},"unopened":[],"bounds":{"document_bytes":16777216,"sheet_cells":100000,"rows_first":2000,"rows_last":500,"rows_between":2000,"halvings":0,"cell_chars":16384,"cell_head_chars":4096},"cells_cut":0,"cells_raw":0,"read":"whole","date_system":"1900"}

{"sheet":"ControlPage","index":0,"n_rows":78,"n_cols":1,"rows_kept":78,"cut":false,"hidden":false,"merged":[[23,0,23,6],[24,0,24,6],[25,0,25,6],[28,0,28,6],[51,0,51,6],[32,0,32,6],[31,0,31,6],[36,0,36,6],[37,0,37,6],[38,0,38,6],[49,0,49,6],[45,0,45,6],[33,0,33,6],[42,0,42,6],[44,0,44,6],[46,0,46,6],[19,0,19,6],[39,0,39,6],[70,0,70,6],[29,0,29,6],[40,0,40,6],[30,0,30,6],[34,0,34,6],[35,0,35,6],[62,0,62,6],[53,0,53,6],[54,0,54,6],[55,0,55,6],[41,0,41,6],[56,0,56,6],[21,0,21,6],[22,0,22,6],[43,0,43,6],[67,0,67,6],[69,0,69,6],[77,0,77,6],[64,0,64,6],[59,0,59,6],[58,0,58,6],[57,0,57,6],[50,0,50,6],[71,0,71,6],[65,0,65,6],[66,0,66,6],[63,0,63,6],[52,0,52,6],[47,0,47,6],[48,0,48,6]]}
["National shared goals of care data collection tool"]
["Version 1.5| July 2022"]
[]
["Hospital name"]
["Start date for audits (affects all sheets)"]
[]
[]
[]
[]
[]
[]
["Navigate to:"]
["Outcomes"]
["Charts"]
["Over time dashboard"]
["Snapshot dashboard"]
[]
["Instructions to use this tool"]
["A Setting up the tool"]
["1. Select 'Enable Content' before you start.  This will be a message generated by your Excel programme and will be displayed in a yellow bar at the top of the spreadsheet."]
["On the 'ControlPage' tab:"]
["2. Enter your hospital name in the yellow highlighted field."]
["3. Enter the start date for audits in the yellow highlighted field. This will affect all worksheets in this tool automatically."]
["4. To add a new ward for data collection, click the 'add a new ward' button. You can rename the tab with the ward name. Please note that this spreadsheet has been limited to 15 wards."]
["5. To add a new week to the end of all ward data collection sheets, click 'add week to end' button."]
["6. Save the file, ensure you have the name of your organisation in the file name."]
[]
["B Entering audit data"]
["1. Collate paper audit form(s) for the ward(s). "]
["2. Select the ward sheet by clicking the appropriate tab."]
["3. Enter the name of the ward in the yellow highlighted field.  This will then be replicated in the dashboards and charts automatically."]
["4. Enter the data collated on the audit form into the appropriate week by either selecting from the drop down or typing directly into the box. Please note:\n"]
["a. The ethnicity abbreviations used are: M = Māori, P= Pacific peoples, A = Asian, E= European,  O= Other, R = Residual Categories.  This is the prioritised ethnicity and should be found in the patient record.  \nNote that Residual Categories includes \"Don't know\", \"Refused to answer\", \"Response unidentifiable\" and \"Not stated\" as stated by the Ministry of Health ethnicity coding guidelines: https://www.health.govt.nz/nz-health-statistics/data-references/code-tables/common-code-tables/ethnicity-code-tables"]
["b. For the age of the patient: use the  whole number of the age.  For example a thirty year old patient = 30, and a 21-and-half-year-old patient is = 21 ."]
["c. Most audit question response are 'y' or 'n'. The exceptions are: Q 11 responses are 'y', 'n', 'n/a'; Q 5-8 responses are 'C', 'F', 'N'; Q12 responses are 'A', 'B', 'C', 'D', 'X'; Q16a responses are '1', '2', '3', '4', '5'."]
["d. An orange shaded field means that data is missing. Red font means that the data has been entered in error eg, if Q1=n then no subsequent data should be entered, or if Q2 = n, then no data should be entered for Q2a. \nYou will need to fix these errors to ensure your dashboards and charts are correct."]
["5. To add a new week to the sheet, click 'add another week to end' button."]
["6. To move to the latest week on the sheet, click 'jump to latest week' button."]
["7. Repeat data entry for each ward."]
["8. Save the spreadsheet.  Remember to do this every time you enter data."]
["9. Be careful! If you delete a ward sheet, the data will be deleted and can not be recovered. Click 'repair DataSummary' button to ensure the dashboards and charts are not affected.  "]
["10. Any comments that you want to retain electronically from the audit form can be entered into the 'Audit comments' tab."]
[]
["C Entering outcomes data"]
["1. Collate and calculate the monthly data for outcomes from your sources. "]
["2.  Select the outcome sheet by clicking the 'outcomes' tab."]
["3. Enter the starting month and subsequent months for your outcome measures. "]
["4. Enter the data collated by ethnicity for each month.  As the data is entered, the totals will calculate automatically."]
["5. The charts will automatically update once the data has been entered."]
[]
["D Over time dashboard"]
["1. Select the 'over time dashboard' tab to see the results of the audits over time.  Each of the questions has a chart that you can use to measure the improvement to your system over time. "]
["2. Before using the charts, update these by clicking the 'refresh' button."]
["3. If you have more than one ward, you can choose to see just the results from one or more of your wards. Use the box to the right of the charts. You can then copy the charts as pictures into other documents to share the results."]
[]
["E Snapshot dashboard"]
["1. Select the 'snapshot dashboard' tab to see results for particular week(s) or ward(s).  These show the results at a glance and help you identify the areas that need focused improvement activity. "]
["2. Before using the charts, update these by clicking the 'refresh' button."]
["3.  If you have more than one ward, you can choose to see the results from one or more of your wards.  Use the box to the right of the charts."]
["4. You can see the results for one or more weeks by selecting the weeks in the box to the right of the charts. You can then copy the charts as pictures into other documents to share the results."]
[]
["F Charts"]
["1. Select the 'charts' tab if you want to do further analysis with the data."]
["2. Before using these pivot tables, update these by clicking the 'refesh' button."]
["3. You can analyse each audit question by ward, week, ethnicity, age and type of chart. It will generate the percentages and populate a chart.  Please note that:"]
["a. If a pivot table has no data showing (is blank) then there is no data for that question. \nb. If a pivot table shows a 0% then zero percent of the responses were 'yes' for that question.  \nc. There are different denominators for the questions. For Q1 this is the total number of cases audited. For Q2-18 this is the total number of yes answers for Q1. The questions with an 'a' or 'b' after the number use the related question number as the denominator eg, Q2a denominator is total number of yes answers for Q2, Q18b denominator is the total number of no answers for Q18a. Ideally you want these to be close to 100%:"]
["4. You can copy the charts as pictures into other documents to share the results. When reporting, consider the ward acuity and staffing levels to provide context to the results and suggesting improvements. "]
["5. Once you have a few months data, if you can not see the data in the pivot tables, select the chart and move it down. Be careful not to delete it accidentally."]
[]
["G Audit results by week"]
["1. Select the 'audit results by week' tab to access the total numbers for each question by week and ethnicity."]
["2. Before using these pivot tables, update these by clicking the 'refesh' button."]
[]
["H DataSummary"]
["1. The 'datasummary' sheet has been locked.  Do not edit this sheet as it stores all of the data to enable the analysis."]
[]
["I Help"]
["1. Please contact acp@hqsc.govt.nz if you have questions on using this tool, would like to expand the number of wards, amend the outcome measures or need some help. "]

{"sheet":"Ward one","index":1,"n_rows":32,"n_cols":133,"rows_kept":32,"cut":false,"hidden":false,"merged":[[3,123,3,132],[3,63,3,72],[3,73,3,82],[3,83,3,92],[3,93,3,102],[3,103,3,112],[3,113,3,122],[3,53,3,62],[3,3,3,12],[3,13,3,22],[3,23,3,32],[3,33,3,42],[3,43,3,52]]}
[null,"National shared goals of care chart audit tool"]
[null,"Ward:"]
[]
[1,null,"Week starting",{"$f":"ControlPage!$B$5","v":"00:00:00"},null,null,null,null,null,null,null,null,null,{"$f":"D4+7","v":"1900-01-07"},null,null,null,null,null,null,null,null,null,{"$f":"N4+7","v":"1900-01-14"},null,null,null,null,null,null,null,null,null,{"$f":"X4+7","v":"1900-01-21"},null,null,null,null,null,null,null,null,null,{"$f":"AH4+7","v":"1900-01-28"},null,null,null,null,null,null,null,null,null,{"$f":"AR4+7","v":"1900-02-04"},null,null,null,null,null,null,null,null,null,{"$f":"BB4+7","v":"1900-02-11"},null,null,null,null,null,null,null,null,null,{"$f":"BL4+7","v":"1900-02-18"},null,null,null,null,null,null,null,null,null,{"$f":"BV4+7","v":"1900-02-25"},null,null,null,null,null,null,null,null,null,{"$f":"CF4+7","v":"1900-03-03"},null,null,null,null,null,null,null,null,null,{"$f":"CP4+7","v":"1900-03-10"},null,null,null,null,null,null,null,null,null,{"$f":"CZ4+7","v":"1900-03-17"},null,null,null,null,null,null,null,null,null,{"$f":"DJ4+7","v":"1900-03-24"}]
[2,null,"Week",{"$f":"D4","v":"00:00:00"},{"$f":"D5","v":"00:00:00"},{"$f":"E5","v":"00:00:00"},"00:00:00","00:00:00","00:00:00","00:00:00","00:00:00","00:00:00","00:00:00",{"$f":"N4","v":"1900-01-07"},{"$f":"N5","v":"1900-01-07"},{"$f":"O5","v":"1900-01-07"},"1900-01-07","1900-01-07","1900-01-07","1900-01-07","1900-01-07","1900-01-07","1900-01-07",{"$f":"X4","v":"1900-01-14"},{"$f":"X5","v":"1900-01-14"},{"$f":"Y5","v":"1900-01-14"},"1900-01-14","1900-01-14","1900-01-14","1900-01-14","1900-01-14","1900-01-14","1900-01-14",{"$f":"AH4","v":"1900-01-21"},{"$f":"AH5","v":"1900-01-21"},"1900-01-21","1900-01-21","1900-01-21","1900-01-21","1900-01-21","1900-01-21","1900-01-21","1900-01-21",{"$f":"AR4","v":"1900-01-28"},{"$f":"AR5","v":"1900-01-28"},"1900-01-28","1900-01-28","1900-01-28","1900-01-28","1900-01-28","1900-01-28","1900-01-28","1900-01-28",{"$f":"BB4","v":"1900-02-04"},{"$f":"BB5","v":"1900-02-04"},{"$f":"BC5","v":"1900-02-04"},"1900-02-04","1900-02-04","1900-02-04","1900-02-04","1900-02-04","1900-02-04","1900-02-04",{"$f":"BL4","v":"1900-02-11"},{"$f":"BL5","v":"1900-02-11"},{"$f":"BM5","v":"1900-02-11"},"1900-02-11","1900-02-11","1900-02-11","1900-02-11","1900-02-11","1900-02-11","1900-02-11",{"$f":"BV4","v":"1900-02-18"},{"$f":"BV5","v":"1900-02-18"},{"$f":"BW5","v":"1900-02-18"},"1900-02-18","1900-02-18","1900-02-18","1900-02-18","1900-02-18","1900-02-18","1900-02-18",{"$f":"CF4","v":"1900-02-25"},{"$f":"CF5","v":"1900-02-25"},{"$f":"CG5","v":"1900-02-25"},"1900-02-25","1900-02-25","1900-02-25","1900-02-25","1900-02-25","1900-02-25","1900-02-25",{"$f":"CP4","v":"1900-03-03"},{"$f":"CP5","v":"1900-03-03"},{"$f":"CQ5","v":"1900-03-03"},"1900-03-03","1900-03-03","1900-03-03","1900-03-03","1900-03-03","1900-03-03","1900-03-03",{"$f":"CZ4","v":"1900-03-10"},{"$f":"CZ5","v":"1900-03-10"},{"$f":"DA5","v":"1900-03-10"},"1900-03-10","1900-03-10","1900-03-10","1900-03-10","1900-03-10","1900-03-10","1900-03-10",{"$f":"DJ4","v":"1900-03-17"},{"$f":"DJ5","v":"1900-03-17"},{"$f":"DK5","v":"1900-03-17"},"1900-03-17","1900-03-17","1900-03-17","1900-03-17","1900-03-17","1900-03-17","1900-03-17",{"$f":"DT4","v":"1900-03-24"},{"$f":"DT5","v":"1900-03-24"},{"$f":"DU5","v":"1900-03-24"},"1900-03-24","1900-03-24","1900-03-24","1900-03-24","1900-03-24","1900-03-24","1900-03-24"]
[3,null,"Ward",{"$f":"$C$2","v":0},{"$f":"$C$2","v":0},0,0,0,0,0,0,0,0,0,0,0,0,0,0,0,0,0,0,0,0,0,0,0,0,0,0,0,0,0,0,0,0,0,0,0,0,0,0,0,0,0,0,0,0,0,0,0,0,0,0,0,0,0,0,0,0,0,0,0,0,0,0,0,{"$f":"$C$2","v":0},0,0,0,0,0,0,0,0,0,0,0,0,0,0,0,0,0,0,0,0,0,0,0,0,0,0,0,0,0,0,0,0,0,0,0,0,0,0,0,0,0,0,0,0,0,0,0,0,0,0,0,0,0,0,0,0,0,0,0,0,0,0,0,{"$f":"$C$2","v":0}]
[4,null,"Case number",1,2,3,4,5,6,7,8,9,10,1,2,3,4,5,6,7,8,9,10,1,2,3,4,5,6,7,8,9,10,1,2,3,4,5,6,7,8,9,10,1,2,3,4,5,6,7,8,9,10,1,2,3,4,5,6,7,8,9,10,1,2,3,4,5,6,7,8,9,10,1,2,3,4,5,6,7,8,9,10,1,2,3,4,5,6,7,8,9,10,1,2,3,4,5,6,7,8,9,10,1,2,3,4,5,6,7,8,9,10,1,2,3,4,5,6,7,8,9,10,1,2,3,4,5,6,7,8,9,10]
[5,null,"Ethnicity"]
[null,null,"Age in years"]
[7,1,"Does the patient have a shared goals of care form for this admission? (If 'y', go to Q2; if 'n', audit the next case)"]
[null,2,"Does the patient have more than one shared goals of care form for this admission? (If 'y', go to Q2a; if 'n', go to Q3)"]
[8,"2a","Was the previous shared goals of care form(s) crossed out or replaced?"]
[null,3,"Have the defined fields been completed?"]
[null,4,"Were the names of the people present at the discussion documented?"]
[null,5,"Was the patient’s understanding of their condition and what may lie ahead documented?"]
[null,6,"Was it documented how much information the patient wanted to know?"]
[null,7,"Was the clinician’s understanding of the patient’s current condition and what may lie ahead documented?"]
[null,8,"Was the patient’s values and what is important to them documented?"]
[null,9,"Were additional comments about the discussion made on the form?"]
[null,10,"Was the further information box selected? (If 'y', go to Q10a; if 'n', go to Q11)"]
[null,"10a","Was further information documented in the clinical record?"]
[null,11,"Was the reason documented for why the discussion was not held with the patient?"]
[null,12,"Which goal of care was selected? (If A, go to Q15; if B, go to Q13; if C, go to Q14; if D, go to Q15; if X, go to Q16)"]
[null,13,"Was a decision made on whether referral for ICU level care was appropriate for goal B? (Once answered, go to Q15)"]
[9,14,"Was a decision made on whether ‘rapid response team calls’ were appropriate for goal C? (Once answered, go to Q15)"]
[10,15,"Were additional comments documented for the selected goal?"]
[11,16,"Was the date and time of the goal of care documented? (If 'y', go to Q16a; if 'n' go to Q17)"]
[12,"16a","How soon after admission was the goal of care documented?"]
[14,17,"Was the shared goals of care form signed?"]
[15,18,"After the goal of care was documented, did the patient’s condition deteriorate and require clinical review? (If 'y', go to Q18a)"]
[16,"18a","Was the agreed goal of care followed? (If 'n', go to Q18b)"]
[17,"18b","Was the reason documented for why the goal of care was not followed?"]

{"sheet":"Audit comments","index":2,"n_rows":4,"n_cols":13,"rows_kept":4,"cut":false,"hidden":false,"merged":[]}
["Comments arising from the audit"]
["This is space to enter any comments that are noted on the audit form that you would like to retain electronically. You will need to enter all fields manually"]
[]
["Week beginning","Ward","Case 1","Case 2","Case 3","Case 4","Case 5","Case 6","Case 7","Case 8","Case 9","Case 10","Other"]

{"sheet":"Outcomes","index":3,"n_rows":27,"n_cols":23,"rows_kept":27,"cut":false,"hidden":false,"merged":[[2,2,8,2],[10,2,16,2],[18,2,24,2],[2,1,8,1],[2,0,8,0],[10,0,16,0],[10,1,16,1],[18,0,24,0],[18,1,24,1]]}
["Outcomes measures (hospital-wide)"]
[null,null,null,"Month","Mar","Apr","May","Jun","Jul","Aug","Sep","Oct","Nov","Dec","Jan","Feb","Mar","Apr","May","Jun","Jul","Aug","Sep"]
["Measure one: \nPercentage of rapid ersponse team (or equivalent) escalations that were in line with the goal of care","Definitions: \nA ‘rapid response escalation’ is an escalation of care to the rapid response team (or equivalent) which has been triggered by an early warning score of 10+, any vital sign in the blue zone, or clinical and whānau concern (the ‘worried criterion’).\n\n‘In line with the goal of care’ if this is what has been agreed with the patient eg, goal of care A, B and C (if appropriate).\n","Collection:  through a review of switchboard call records or directly collected by the rapid respone team (or equivalent).  \n\nCalculation: \nNumerator = number of escalations in line with the goal of care; \nDenominator = Total number of rapid response escalations; \nTo calculate =  (Numerator/denominator) x 100. \n\nThen enter the percentage into the row.","Māori"]
[null,null,null,"Pacific"]
[null,null,null,"Asian"]
[null,null,null,"European"]
[null,null,null,"Other"]
[null,null,null,"Residual"]
[null,null,null,"Total",{"$f":"SUM(E3:E8)","v":0},{"$f":"SUM(F3:F8)","v":0},{"$f":"SUM(G3:G8)","v":0},0,{"$f":"SUM(I3:I8)","v":0},0,0,0,0,0,0,0,0,0,{"$f":"SUM(S3:S8)","v":0},{"$f":"SUM(T3:T8)","v":0},{"$f":"SUM(U3:U8)","v":0},{"$f":"SUM(V3:V8)","v":0},{"$f":"SUM(W3:W8)","v":0}]
[null,null,null,"Total",{"$f":"IF(E9=0,NA(),E9)","v":{"$error":"#N/A"}},{"$f":"IF(F9=0,NA(),F9)","v":{"$error":"#N/A"}},{"$error":"#N/A"},{"$error":"#N/A"},{"$error":"#N/A"},{"$error":"#N/A"},{"$error":"#N/A"},{"$error":"#N/A"},{"$error":"#N/A"},{"$error":"#N/A"},{"$error":"#N/A"},{"$error":"#N/A"},{"$error":"#N/A"},{"$error":"#N/A"},{"$error":"#N/A"},{"$error":"#N/A"},{"$error":"#N/A"},{"$error":"#N/A"},{"$error":"#N/A"}]
["Measure two: \nPercentage of inpatient cardiopulmonary arrest resuscitations that were in line with the goal of care","Definition: \nCardiopulmonary arrests include: \n•\tcardiac arrest: absence of pulse, consciousness and respiratory effort, necessitating the commencement of cardiopulmonary resuscitation. \n•\trespiratory arrest: absence of respiratory effort and the presence of palpable pulse and measurable blood pressure necessitating the commencement of artificial ventilation (either manual or mechanical). \nExclusions are areas providing high acuity specialist care, such as intensive care and post anaesthetic recovery and emergency departments.  \n\n‘In line with the goal of care’ if this is what has been agreed with the patient eg, goal of care A.","Collection:  through a review of switchboard call records or directly collected by the arrest team (or equivalent).  \n\nCalculation: \nNumerator = Number of inpatient cardiopulmonary arrest resuscitations in line with the goal of care; \nDenominator = Total number of inpatient cardiopulmonary resuscitations; \nTo calculate =  (Numerator/denominator) x 100. \n\nThen enter the percentage into the row.","Māori"]
[null,null,null,"Pacific"]
[null,null,null,"Asian"]
[null,null,null,"European"]
[null,null,null,"Other"]
[null,null,null,"Residual"]
[null,null,null,"Total",{"$f":"SUM(E11:E16)","v":0},0,0,0,0,0,0,0,0,0,0,0,0,0,0,0,0,0,0]
[null,null,null,"Total",{"$f":"IF(E17=0,NA(),E17)","v":{"$error":"#N/A"}},{"$error":"#N/A"},{"$error":"#N/A"},{"$error":"#N/A"},{"$error":"#N/A"},{"$error":"#N/A"},{"$error":"#N/A"},{"$error":"#N/A"},{"$error":"#N/A"},{"$error":"#N/A"},{"$error":"#N/A"},{"$error":"#N/A"},{"$error":"#N/A"},{"$error":"#N/A"},{"$error":"#N/A"},{"$error":"#N/A"},{"$error":"#N/A"},{"$error":"#N/A"},{"$error":"#N/A"}]
["Measure three: \nPercentage of intensive care referrals that were in line with the goal of care","Definitions: \nIntensive care referrals are made differently across hospitals. Use the definition in use in your hospital.\n\n‘In line with the goal of care’ if this is what has been agreed with the patient eg, goal of care A and B (if appropriate)..  ","Collection: describe how this is collected in your hospital.  \n\nCalculation: \nNumerator = Number of intensive care referrals in line with the goal of care; \nDenominator =Total number of intensive care referrals; \nTo calculate =  (Numerator/denominator) x 100. \n\nThen enter the percentage into the row.","Māori"]
[null,null,null,"Pacific"]
[null,null,null,"Asian"]
[null,null,null,"European"]
[null,null,null,"Other"]
[null,null,null,"Residual"]
[null,null,null,"Total",{"$f":"SUM(E19:E24)","v":0},0,0,0,0,0,0,0,0,0,0,0,0,0,0,0,0,0,0]
[null,null,null,"Total",{"$f":"IF(E25=0,NA(),E25)","v":{"$error":"#N/A"}},{"$error":"#N/A"},{"$error":"#N/A"},{"$error":"#N/A"},{"$error":"#N/A"},{"$error":"#N/A"},{"$error":"#N/A"},{"$error":"#N/A"},{"$error":"#N/A"},{"$error":"#N/A"},{"$error":"#N/A"},{"$error":"#N/A"},{"$error":"#N/A"},{"$error":"#N/A"},{"$error":"#N/A"},{"$error":"#N/A"},{"$error":"#N/A"},{"$error":"#N/A"},{"$error":"#N/A"}]
[null,null,null,"Total",{"$f":"IF(#REF!=0,NA(),#REF!)","v":{"$error":"#REF!"}},{"$f":"IF(#REF!=0,NA(),#REF!)","v":{"$error":"#REF!"}},{"$f":"IF(#REF!=0,NA(),#REF!)","v":{"$error":"#REF!"}},{"$f":"IF(#REF!=0,NA(),#REF!)","v":{"$error":"#REF!"}},{"$f":"IF(#REF!=0,NA(),#REF!)","v":{"$error":"#REF!"}},{"$f":"IF(#REF!=0,NA(),#REF!)","v":{"$error":"#REF!"}},{"$f":"IF(#REF!=0,NA(),#REF!)","v":{"$error":"#REF!"}},{"$f":"IF(#REF!=0,NA(),#REF!)","v":{"$error":"#REF!"}},{"$f":"IF(#REF!=0,NA(),#REF!)","v":{"$error":"#REF!"}},{"$f":"IF(#REF!=0,NA(),#REF!)","v":{"$error":"#REF!"}},{"$f":"IF(#REF!=0,NA(),#REF!)","v":{"$error":"#REF!"}},{"$f":"IF(#REF!=0,NA(),#REF!)","v":{"$error":"#REF!"}},{"$f":"IF(#REF!=0,NA(),#REF!)","v":{"$error":"#REF!"}},{"$f":"IF(#REF!=0,NA(),#REF!)","v":{"$error":"#REF!"}},{"$f":"IF(#REF!=0,NA(),#REF!)","v":{"$error":"#REF!"}},{"$f":"IF(#REF!=0,NA(),#REF!)","v":{"$error":"#REF!"}},{"$f":"IF(#REF!=0,NA(),#REF!)","v":{"$error":"#REF!"}},{"$f":"IF(#REF!=0,NA(),#REF!)","v":{"$error":"#REF!"}},{"$f":"IF(#REF!=0,NA(),#REF!)","v":{"$error":"#REF!"}}]

{"sheet":"Over time dashboard","index":4,"n_rows":1,"n_cols":1,"rows_kept":1,"cut":false,"hidden":false,"merged":[]}
["SGOC Dashboard - Over Time"]

{"sheet":"Snapshot dashboard","index":5,"n_rows":53,"n_cols":16,"rows_kept":53,"cut":false,"hidden":false,"merged":[[34,10,35,14],[34,9,35,9],[34,1,35,1],[34,2,35,6],[52,1,53,1],[52,2,53,6]]}
["SGOC Dashboard - Snapshot",null,null,null,null,null,null,null,null,null,null,null,"Date Range","Date range"]
[null,null,null,null,null,null,null,null,null,null,null,null,null,"Values"]
[null,null,null,null,null,null,null,null,null,null,null,null,"Week starting","Min of Week starting","00:00:00","to"]
[null,null,null,null,null,null,null,null,null,null,null,null,"Week starting","Max of Week starting2","1900-03-24"]
[null,{"$f":"GETPIVOTDATA(\"Q1 y as % of cases audited\",'Charts for dashboard'!$I$53)","v":{"$error":"#N/A"}},"of patients had a shared goals of care form"]
[]
[]
[]
[]
[]
[]
[]
[]
[]
[]
[]
[]
[]
[]
[]
[]
[]
[]
[]
[]
[]
[]
[]
[]
[]
[]
[]
[]
[]
[null,{"$f":"\"n = \"&GETPIVOTDATA(\"Q16\",'Charts for dashboard'!$NW$82)","v":"n = 0"},"patients with date and time of goal of care decision documented (Q16)",null,null,null,null,null,null,{"$f":"\"n = \"&GETPIVOTDATA(\"Q18\",'Charts for dashboard'!$RI$56)","v":"n = 0"},"patients who deteriorated and required clinical review (Q18)"]
[]
[]
[]
[]
[]
[]
[]
[]
[]
[]
[]
[]
[]
[]
[]
[]
[]
[null,{"$f":"GETPIVOTDATA(\"Q16a_12 % of Q16\",'Charts for dashboard'!$OB$82)","v":{"$error":"#N/A"}},"of patients had their shared goals of care decision documented within 24 hours of admission "]

{"sheet":"Charts","index":6,"n_rows":55,"n_cols":461,"rows_kept":55,"cut":false,"hidden":false,"merged":[]}
[null,null,null,null,null,null,null,null,null,"Important note: Before using this page, click 'refresh' button"]
[]
["Legend",null,null,null,null,null,null,null,"Q1 % of patients with a shared goals of care form for this admission",null,null,null,null,null,null,null,null,null,null,null,null,null,null,null,null,null,"Q2 % of patients with more than one shared goals of care form for this admission",null,null,null,null,null,null,null,null,null,null,null,null,null,null,null,null,null,"Q2a % of patients that had previous shared goals of care form(s) crossed out or replaced? ",null,null,null,null,null,null,null,null,null,null,null,null,null,null,null,null,null,"Q3 % of patients that had the defined fields completed on their shared goals of care form",null,null,null,null,null,null,null,null,null,null,null,null,null,null,null,null,null,"Q4 % of patients that had the names of the people present at the discussion documented",null,null,null,null,null,null,null,null,null,null,null,null,null,null,null,null,null,"Q5 % of patients where their understanding of their condition and what may lie ahead is documented",null,null,null,null,null,null,null,null,null,null,null,null,null,null,null,null,null,"Q6 % of patients where how much information they wanted to know is documented ",null,null,null,null,null,null,null,null,null,null,null,null,null,null,null,null,null,"Q7 % of patients where the clinician’s understanding of the patient’s condition and what may lie ahead is documented",null,null,null,null,null,null,null,null,null,null,null,null,null,null,null,null,null,"Q8 % of patients where their values and what is important to them is documented",null,null,null,null,null,null,null,null,null,null,null,null,null,null,null,null,null,"Q5-8 % of patients with documentation of their understanding of their condition, how much information they wanted to know, their values and what is important to them and what the clinicians understand of patient's condition is",null,null,null,null,null,null,null,null,null,null,null,null,null,null,null,null,null,"Q9 % of patients with additional comments about the discussion documented on the shared goals of care form",null,null,null,null,null,null,null,null,null,null,null,null,null,null,null,null,null,"Q10 % of patients with further information box selected",null,null,null,null,null,null,null,null,null,null,null,null,null,null,null,null,null,"Q10a % of patients with further information box selected and documented in the clinical record",null,null,null,null,null,null,null,null,null,null,null,null,null,null,null,null,null,"Q11 % of patients where the reason for not holding the discussion with the patient is documented",null,null,null,null,null,null,null,null,null,null,null,null,null,null,null,null,null,"Q12 % of patients with a goal of care selected",null,null,null,null,null,null,null,null,null,null,null,null,null,null,null,null,null,"Q12 % of patients by type of goal of care",null,null,null,null,null,null,null,null,null,null,null,null,null,null,null,null,null,"Q13 % of patients with goal of care B where decision was made on whether referral for ICU level of care was appropriate",null,null,null,null,null,null,null,null,null,null,null,null,null,null,null,null,null,"Q14 % of patients with goal of care C where decision is made on whether rapid response team calls were appropriate",null,null,null,null,null,null,null,null,null,null,null,null,null,null,null,null,null,"Q15 % of patients with additional comments documented for the goal of care",null,null,null,null,null,null,null,null,null,null,null,null,null,null,null,null,null,"Q16 % of patients where the date and time of the goal of care was documented",null,null,null,null,null,null,null,null,null,null,null,null,null,null,null,null,null,"Q16a % of patients that had their shared goals of care decision documented within 24 hours of admission",null,null,null,null,null,null,null,null,null,null,null,null,null,null,null,null,null,"Q16a % of patients by timeframe for decision after admission",null,null,null,null,null,null,null,null,null,null,null,null,null,null,null,null,null,"Q17 % of patients that had their shared goals of care form signed",null,null,null,null,null,null,null,null,null,null,null,null,null,null,null,null,null,"Q18 % of patients with a goal of care where their condition deteriorated and required clinical review ",null,null,null,null,null,null,null,null,null,null,null,null,null,null,null,null,null,"Q18a % of patients that had their agreed goal of care followed",null,null,null,null,null,null,null,null,null,null,null,null,null,null,null,null,null,"Q18b % of patients that had a reason documented for why their goal of care was not followed"]
[]
[null,null,null,null,null,null,null,null,null,null,null,null,null,null,null,null,null,null,null,null,null,null,null,null,null,null,null,null,null,null,null,null,null,null,null,null,null,null,null,null,null,null,null,null,null,null,null,null,null,null,null,null,null,null,null,null,null,null,null,null,null,null,null,null,null,null,null,null,null,null,null,null,null,null,null,null,null,null,null,null,null,null,null,null,null,null,null,null,null,null,null,null,null,null,null,null,null,null,null,null,null,null,null,null,null,null,null,null,null,null,null,null,null,null,null,null,null,null,null,null,null,null,null,null,null,null,null,null,null,null,null,null,null,null,null,null,null,null,null,null,null,null,null,null,null,null,null,null,null,null,null,null,null,null,null,null,null,null,null,null,null,null,null,null,null,null,null,null,null,null,"Week starting","(All)",null,null,null,null,null,null,null,null,null,null,null,null,null,null,null,null,null,null,null,null,null,null,null,null,null,null,null,null,null,null,null,null,null,null,null,null,null,null,null,null,null,null,null,null,null,null,null,null,null,null,null,null,null,null,null,null,null,null,null,null,null,null,null,null,null,null,null,null,null,null,null,null,null,null,null,null,null,null,null,null,null,null,null,null,null,null,null,null,null,null,null,null,null,null,null,null,null,null,null,null,null,null,null,null,null,null,"Week starting","(All)",null,null,null,null,null,null,null,null,null,null,null,null,null,null,null,null,null,null,null,null,null,null,null,null,null,null,null,null,null,null,null,null,null,null,null,null,null,null,null,null,null,null,null,null,null,null,null,null,null,null,null,null,null,null,null,null,null,null,null,null,null,null,null,null,null,null,null,null,null,null,null,null,null,null,null,null,null,null,null,null,null,null,null,null,null,null,null,null,null,null,null,null,null,null,null,null,null,null,null,null,null,null,null,null,null,null,"Week starting","(All)"]
["Ward",null,null,null,null,null,null,null,"Ethnicity","(All)",null,null,null,null,null,null,null,null,null,null,null,null,null,null,null,null,"Ethnicity","(All)",null,null,null,null,null,null,null,null,null,null,null,null,null,null,null,null,"Ethnicity","(All)",null,null,null,null,null,null,null,null,null,null,null,null,null,null,null,null,"Ethnicity","(All)",null,null,null,null,null,null,null,null,null,null,null,null,null,null,null,null,"Ethnicity","(All)",null,null,null,null,null,null,null,null,null,null,null,null,null,null,null,null,"Ethnicity","(All)",null,null,null,null,null,null,null,null,null,null,null,null,null,null,null,null,"Ethnicity","(All)",null,null,null,null,null,null,null,null,null,null,null,null,null,null,null,null,"Ethnicity","(All)",null,null,null,null,null,null,null,null,null,null,null,null,null,null,null,null,"Ethnicity","(All)",null,null,null,null,null,null,null,null,null,null,null,null,null,null,null,null,"Ethnicity","(All)",null,null,null,null,null,null,null,null,null,null,null,null,null,null,null,null,"Ethnicity","(All)",null,null,null,null,null,null,null,null,null,null,null,null,null,null,null,null,"Ethnicity","(All)",null,null,null,null,null,null,null,null,null,null,null,null,null,null,null,null,"Ethnicity","(All)",null,null,null,null,null,null,null,null,null,null,null,null,null,null,null,null,"Ethnicity","(All)",null,null,null,null,null,null,null,null,null,null,null,null,null,null,null,null,"Ethnicity","(All)",null,null,null,null,null,null,null,null,null,null,null,null,null,null,null,null,"Ethnicity","(All)",null,null,null,null,null,null,null,null,null,null,null,null,null,null,null,null,"Ethnicity","(All)",null,null,null,null,null,null,null,null,null,null,null,null,null,null,null,null,null,null,null,null,null,null,null,null,null,null,null,null,null,null,null,null,null,null,"Ethnicity","(All)",null,null,null,null,null,null,null,null,null,null,null,null,null,null,null,null,"Ethnicity","(All)",null,null,null,null,null,null,null,null,null,null,null,null,null,null,null,null,"Ethnicity","(All)",null,null,null,null,null,null,null,null,null,null,null,null,null,null,null,null,"Ethnicity","(All)",null,null,null,null,null,null,null,null,null,null,null,null,null,null,null,null,"Ethnicity","(All)",null,null,null,null,null,null,null,null,null,null,null,null,null,null,null,null,"Ethnicity","(All)",null,null,null,null,null,null,null,null,null,null,null,null,null,null,null,null,"Ethnicity","(All)",null,null,null,null,null,null,null,null,null,null,null,null,null,null,null,null,"Ethnicity","(All)"]
[0,"Grand Total","Grand Total",null,null,null,null,null,"Age","(All)",null,null,null,null,null,null,null,null,null,null,null,null,null,null,null,null,"Age","(All)",null,null,null,null,null,null,null,null,null,null,null,null,null,null,null,null,"Age","(All)",null,null,null,null,null,null,null,null,null,null,null,null,null,null,null,null,"Age","(All)",null,null,null,null,null,null,null,null,null,null,null,null,null,null,null,null,"Age","(All)",null,null,null,null,null,null,null,null,null,null,null,null,null,null,null,null,"Age","(All)",null,null,null,null,null,null,null,null,null,null,null,null,null,null,null,null,"Age","(All)",null,null,null,null,null,null,null,null,null,null,null,null,null,null,null,null,"Age","(All)",null,null,null,null,null,null,null,null,null,null,null,null,null,null,null,null,"Age","(All)",null,null,null,null,null,null,null,null,null,null,null,null,null,null,null,null,"Age","(All)",null,null,null,null,null,null,null,null,null,null,null,null,null,null,null,null,"Age","(All)",null,null,null,null,null,null,null,null,null,null,null,null,null,null,null,null,"Age","(All)",null,null,null,null,null,null,null,null,null,null,null,null,null,null,null,null,"Age","(All)",null,null,null,null,null,null,null,null,null,null,null,null,null,null,null,null,"Age","(All)",null,null,null,null,null,null,null,null,null,null,null,null,null,null,null,null,"Age","(All)",null,null,null,null,null,null,null,null,null,null,null,null,null,null,null,null,"Age","(All)",null,null,null,null,null,null,null,null,null,null,null,null,null,null,null,null,"Age","(All)",null,null,null,null,null,null,null,null,null,null,null,null,null,null,null,null,"Ethnicity","(All)",null,null,null,null,null,null,null,null,null,null,null,null,null,null,null,null,"Age","(All)",null,null,null,null,null,null,null,null,null,null,null,null,null,null,null,null,"Age","(All)",null,null,null,null,null,null,null,null,null,null,null,null,null,null,null,null,"Age","(All)",null,null,null,null,null,null,null,null,null,null,null,null,null,null,null,null,"Age","(All)",null,null,null,null,null,null,null,null,null,null,null,null,null,null,null,null,"Age","(All)",null,null,null,null,null,null,null,null,null,null,null,null,null,null,null,null,"Age","(All)",null,null,null,null,null,null,null,null,null,null,null,null,null,null,null,null,"Age","(All)",null,null,null,null,null,null,null,null,null,null,null,null,null,null,null,null,"Age","(All)"]
[null,null,null,null,null,null,null,null,null,null,null,null,null,null,null,null,null,null,null,null,null,null,null,null,null,null,null,null,null,null,null,null,null,null,null,null,null,null,null,null,null,null,null,null,null,null,null,null,null,null,null,null,null,null,null,null,null,null,null,null,null,null,null,null,null,null,null,null,null,null,null,null,null,null,null,null,null,null,null,null,null,null,null,null,null,null,null,null,null,null,null,null,null,null,null,null,null,null,null,null,null,null,null,null,null,null,null,null,null,null,null,null,null,null,null,null,null,null,null,null,null,null,null,null,null,null,null,null,null,null,null,null,null,null,null,null,null,null,null,null,null,null,null,null,null,null,null,null,null,null,null,null,null,null,null,null,null,null,null,null,null,null,null,null,null,null,null,null,null,null,null,null,null,null,null,null,null,null,null,null,null,null,null,null,null,null,null,null,null,null,null,null,null,null,null,null,null,null,null,null,null,null,null,null,null,null,null,null,null,null,null,null,null,null,null,null,null,null,null,null,null,null,null,null,null,null,null,null,null,null,null,null,null,null,null,null,null,null,null,null,null,null,null,null,null,null,null,null,null,null,null,null,null,null,null,null,null,null,null,null,null,null,null,null,null,null,null,null,null,null,null,null,null,null,null,null,null,null,null,null,null,null,null,null,null,null,null,null,null,null,null,null,null,null,null,null,null,null,null,null,null,null,null,null,null,null,null,null,null,null,null,null,null,null,"Age","(All)"]
[null,null,null,null,null,null,null,null,"% with a shared goals of care form","Ward",null,null,null,null,null,null,null,null,null,null,null,null,null,null,null,null,"%  with more than one form","Ward",null,null,null,null,null,null,null,null,null,null,null,null,null,null,null,null,"% with previous form crossed out/replaced","Ward",null,null,null,null,null,null,null,null,null,null,null,null,null,null,null,null,"% with defined fields completed","Ward",null,null,null,null,null,null,null,null,null,null,null,null,null,null,null,null,"% with names of people","Ward",null,null,null,null,null,null,null,null,null,null,null,null,null,null,null,null,"% with patients understanding","Ward",null,null,null,null,null,null,null,null,null,null,null,null,null,null,null,null,"% with what want to know","Ward",null,null,null,null,null,null,null,null,null,null,null,null,null,null,null,null,"% with clinician's understanding","Ward",null,null,null,null,null,null,null,null,null,null,null,null,null,null,null,null,"% with patients values","Ward",null,null,null,null,null,null,null,null,null,null,null,null,null,null,null,null,null,"Ward",null,null,null,null,null,null,null,null,null,null,null,null,null,null,null,null,"% with additional comments","Ward",null,null,null,null,null,null,null,null,null,null,null,null,null,null,null,null,"% with furher information box","Ward",null,null,null,null,null,null,null,null,null,null,null,null,null,null,null,null,"% further info in clin rec","Ward",null,null,null,null,null,null,null,null,null,null,null,null,null,null,null,null,"% reason documented","Ward",null,null,null,null,null,null,null,null,null,null,null,null,null,null,null,null,"% with goal of care","Ward",null,null,null,null,null,null,null,null,null,null,null,null,null,null,null,null,"Ward","Goal of care A","Goal of care B","Goal of care C","Goal of care D",null,null,null,null,null,null,null,null,null,null,null,null,null,"% B with decision on ICU referral","Ward",null,null,null,null,null,null,null,null,null,null,null,null,null,null,null,null,null,null,null,null,null,null,null,null,null,null,null,null,null,null,null,null,null,null,"% additional comments for goal of care","Ward",null,null,null,null,null,null,null,null,null,null,null,null,null,null,null,null,"% with date and time of decision","Ward",null,null,null,null,null,null,null,null,null,null,null,null,null,null,null,null,"% within 24 hours of admission","Ward",null,null,null,null,null,null,null,null,null,null,null,null,null,null,null,null,"Ward","0 to 12 hours ","12 to 24 hours","24 to 48 hours ","48 to 72 hours ","More than 72 hours",null,null,null,null,null,null,null,null,null,null,null,null,"% with signed form","Ward",null,null,null,null,null,null,null,null,null,null,null,null,null,null,null,null,"% deteriorated required clin review","Ward",null,null,null,null,null,null,null,null,null,null,null,null,null,null,null,null,"% goal of care followed","Ward",null,null,null,null,null,null,null,null,null,null,null,null,null,null,null,null,"% reason documented for not followed","Ward"]
[null,null,null,null,null,null,null,null,"Week starting",0,"Grand Total",null,null,null,null,null,null,null,null,null,null,null,null,null,null,null,"Week starting",0,"Grand Total",null,null,null,null,null,null,null,null,null,null,null,null,null,null,null,"Week starting",0,"Grand Total",null,null,null,null,null,null,null,null,null,null,null,null,null,null,null,"Week starting",0,"Grand Total",null,null,null,null,null,null,null,null,null,null,null,null,null,null,null,"Week starting",0,"Grand Total",null,null,null,null,null,null,null,null,null,null,null,null,null,null,null,"Week starting",0,"Grand Total",null,null,null,null,null,null,null,null,null,null,null,null,null,null,null,"Week starting",0,"Grand Total",null,null,null,null,null,null,null,null,null,null,null,null,null,null,null,"Week starting",0,"Grand Total",null,null,null,null,null,null,null,null,null,null,null,null,null,null,null,"Week starting",0,"Grand Total",null,null,null,null,null,null,null,null,null,null,null,null,null,null,null,"Values",0,"Grand Total",null,null,null,null,null,null,null,null,null,null,null,null,null,null,null,"Week starting",0,"Grand Total",null,null,null,null,null,null,null,null,null,null,null,null,null,null,null,"Week starting",0,"Grand Total",null,null,null,null,null,null,null,null,null,null,null,null,null,null,null,"Week starting",0,"Grand Total",null,null,null,null,null,null,null,null,null,null,null,null,null,null,null,"Week starting",0,"Grand Total",null,null,null,null,null,null,null,null,null,null,null,null,null,null,null,"Week starting",0,"Grand Total",null,null,null,null,null,null,null,null,null,null,null,null,null,null,null,0,{"$error":"#N/A"},{"$error":"#N/A"},{"$error":"#N/A"},{"$error":"#N/A"},null,null,null,null,null,null,null,null,null,null,null,null,null,"Week starting",0,"Grand Total",null,null,null,null,null,null,null,null,null,null,null,null,null,null,null,"% C with RRT decision","Ward",null,null,null,null,null,null,null,null,null,null,null,null,null,null,null,null,"Week starting",0,"Grand Total",null,null,null,null,null,null,null,null,null,null,null,null,null,null,null,"Week starting",0,"Grand Total",null,null,null,null,null,null,null,null,null,null,null,null,null,null,null,"Week starting",0,"Grand Total",null,null,null,null,null,null,null,null,null,null,null,null,null,null,null,0,{"$error":"#N/A"},{"$error":"#N/A"},{"$error":"#N/A"},{"$error":"#N/A"},{"$error":"#N/A"},null,null,null,null,null,null,null,null,null,null,null,null,"Week starting",0,"Grand Total",null,null,null,null,null,null,null,null,null,null,null,null,null,null,null,"Week starting",0,"Grand Total",null,null,null,null,null,null,null,null,null,null,null,null,null,null,null,"Week starting",0,"Grand Total",null,null,null,null,null,null,null,null,null,null,null,null,null,null,null,"Week starting",0,"Grand Total"]
[null,null,null,null,null,null,null,null,"00:00:00",null,null,null,null,null,null,null,null,null,null,null,null,null,null,null,null,null,"00:00:00",null,null,null,null,null,null,null,null,null,null,null,null,null,null,null,null,null,"00:00:00",null,null,null,null,null,null,null,null,null,null,null,null,null,null,null,null,null,"00:00:00",{"$error":"#N/A"},{"$error":"#N/A"},null,null,null,null,null,null,null,null,null,null,null,null,null,null,null,"00:00:00",{"$error":"#N/A"},{"$error":"#N/A"},null,null,null,null,null,null,null,null,null,null,null,null,null,null,null,"00:00:00",{"$error":"#N/A"},{"$error":"#N/A"},null,null,null,null,null,null,null,null,null,null,null,null,null,null,null,"00:00:00",{"$error":"#N/A"},{"$error":"#N/A"},null,null,null,null,null,null,null,null,null,null,null,null,null,null,null,"00:00:00",{"$error":"#N/A"},{"$error":"#N/A"},null,null,null,null,null,null,null,null,null,null,null,null,null,null,null,"00:00:00",{"$error":"#N/A"},{"$error":"#N/A"},null,null,null,null,null,null,null,null,null,null,null,null,null,null,null,"Patient's understanding",{"$error":"#N/A"},{"$error":"#N/A"},null,null,null,null,null,null,null,null,null,null,null,null,null,null,null,"00:00:00",null,null,null,null,null,null,null,null,null,null,null,null,null,null,null,null,null,"00:00:00",null,null,null,null,null,null,null,null,null,null,null,null,null,null,null,null,null,"00:00:00",{"$error":"#N/A"},{"$error":"#N/A"},null,null,null,null,null,null,null,null,null,null,null,null,null,null,null,"00:00:00",{"$error":"#N/A"},{"$error":"#N/A"},null,null,null,null,null,null,null,null,null,null,null,null,null,null,null,"00:00:00",{"$error":"#N/A"},{"$error":"#N/A"},null,null,null,null,null,null,null,null,null,null,null,null,null,null,null,"Grand Total",{"$error":"#N/A"},{"$error":"#N/A"},{"$error":"#N/A"},{"$error":"#N/A"},null,null,null,null,null,null,null,null,null,null,null,null,null,"00:00:00",{"$error":"#N/A"},{"$error":"#N/A"},null,null,null,null,null,null,null,null,null,null,null,null,null,null,null,"Week starting",0,"Grand Total",null,null,null,null,null,null,null,null,null,null,null,null,null,null,null,"00:00:00",{"$error":"#N/A"},{"$error":"#N/A"},null,null,null,null,null,null,null,null,null,null,null,null,null,null,null,"00:00:00",{"$error":"#N/A"},{"$error":"#N/A"},null,null,null,null,null,null,null,null,null,null,null,null,null,null,null,"00:00:00",{"$error":"#N/A"},{"$error":"#N/A"},null,null,null,null,null,null,null,null,null,null,null,null,null,null,null,"Grand Total",{"$error":"#N/A"},{"$error":"#N/A"},{"$error":"#N/A"},{"$error":"#N/A"},{"$error":"#N/A"},null,null,null,null,null,null,null,null,null,null,null,null,"00:00:00",{"$error":"#N/A"},{"$error":"#N/A"},null,null,null,null,null,null,null,null,null,null,null,null,null,null,null,"00:00:00",{"$error":"#N/A"},{"$error":"#N/A"},null,null,null,null,null,null,null,null,null,null,null,null,null,null,null,"00:00:00",{"$error":"#N/A"},{"$error":"#N/A"},null,null,null,null,null,null,null,null,null,null,null,null,null,null,null,"00:00:00",{"$error":"#N/A"},{"$error":"#N/A"}]
[null,null,null,null,null,null,null,null,"1900-01-07",null,null,null,null,null,null,null,null,null,null,null,null,null,null,null,null,null,"1900-01-07",null,null,null,null,null,null,null,null,null,null,null,null,null,null,null,null,null,"1900-01-07",null,null,null,null,null,null,null,null,null,null,null,null,null,null,null,null,null,"1900-01-07",{"$error":"#N/A"},{"$error":"#N/A"},null,null,null,null,null,null,null,null,null,null,null,null,null,null,null,"1900-01-07",{"$error":"#N/A"},{"$error":"#N/A"},null,null,null,null,null,null,null,null,null,null,null,null,null,null,null,"1900-01-07",{"$error":"#N/A"},{"$error":"#N/A"},null,null,null,null,null,null,null,null,null,null,null,null,null,null,null,"1900-01-07",{"$error":"#N/A"},{"$error":"#N/A"},null,null,null,null,null,null,null,null,null,null,null,null,null,null,null,"1900-01-07",{"$error":"#N/A"},{"$error":"#N/A"},null,null,null,null,null,null,null,null,null,null,null,null,null,null,null,"1900-01-07",{"$error":"#N/A"},{"$error":"#N/A"},null,null,null,null,null,null,null,null,null,null,null,null,null,null,null,"What patient wanted to know",{"$error":"#N/A"},{"$error":"#N/A"},null,null,null,null,null,null,null,null,null,null,null,null,null,null,null,"1900-01-07",null,null,null,null,null,null,null,null,null,null,null,null,null,null,null,null,null,"1900-01-07",null,null,null,null,null,null,null,null,null,null,null,null,null,null,null,null,null,"1900-01-07",{"$error":"#N/A"},{"$error":"#N/A"},null,null,null,null,null,null,null,null,null,null,null,null,null,null,null,"1900-01-07",{"$error":"#N/A"},{"$error":"#N/A"},null,null,null,null,null,null,null,null,null,null,null,null,null,null,null,"1900-01-07",{"$error":"#N/A"},{"$error":"#N/A"},null,null,null,null,null,null,null,null,null,null,null,null,null,null,null,null,null,null,null,null,null,null,null,null,null,null,null,null,null,null,null,null,null,"1900-01-07",{"$error":"#N/A"},{"$error":"#N/A"},null,null,null,null,null,null,null,null,null,null,null,null,null,null,null,"00:00:00",{"$error":"#N/A"},{"$error":"#N/A"},null,null,null,null,null,null,null,null,null,null,null,null,null,null,null,"1900-01-07",{"$error":"#N/A"},{"$error":"#N/A"},null,null,null,null,null,null,null,null,null,null,null,null,null,null,null,"1900-01-07",{"$error":"#N/A"},{"$error":"#N/A"},null,null,null,null,null,null,null,null,null,null,null,null,null,null,null,"1900-01-07",{"$error":"#N/A"},{"$error":"#N/A"},null,null,null,null,null,null,null,null,null,null,null,null,null,null,null,null,null,null,null,null,null,null,null,null,null,null,null,null,null,null,null,null,null,"1900-01-07",{"$error":"#N/A"},{"$error":"#N/A"},null,null,null,null,null,null,null,null,null,null,null,null,null,null,null,"1900-01-07",{"$error":"#N/A"},{"$error":"#N/A"},null,null,null,null,null,null,null,null,null,null,null,null,null,null,null,"1900-01-07",{"$error":"#N/A"},{"$error":"#N/A"},null,null,null,null,null,null,null,null,null,null,null,null,null,null,null,"1900-01-07",{"$error":"#N/A"},{"$error":"#N/A"}]
[null,null,null,null,null,null,null,null,"1900-01-14",null,null,null,null,null,null,null,null,null,null,null,null,null,null,null,null,null,"1900-01-14",null,null,null,null,null,null,null,null,null,null,null,null,null,null,null,null,null,"1900-01-14",null,null,null,null,null,null,null,null,null,null,null,null,null,null,null,null,null,"1900-01-14",{"$error":"#N/A"},{"$error":"#N/A"},null,null,null,null,null,null,null,null,null,null,null,null,null,null,null,"1900-01-14",{"$error":"#N/A"},{"$error":"#N/A"},null,null,null,null,null,null,null,null,null,null,null,null,null,null,null,"1900-01-14",{"$error":"#N/A"},{"$error":"#N/A"},null,null,null,null,null,null,null,null,null,null,null,null,null,null,null,"1900-01-14",{"$error":"#N/A"},{"$error":"#N/A"},null,null,null,null,null,null,null,null,null,null,null,null,null,null,null,"1900-01-14",{"$error":"#N/A"},{"$error":"#N/A"},null,null,null,null,null,null,null,null,null,null,null,null,null,null,null,"1900-01-14",{"$error":"#N/A"},{"$error":"#N/A"},null,null,null,null,null,null,null,null,null,null,null,null,null,null,null,"Clincian's understanding",{"$error":"#N/A"},{"$error":"#N/A"},null,null,null,null,null,null,null,null,null,null,null,null,null,null,null,"1900-01-14",null,null,null,null,null,null,null,null,null,null,null,null,null,null,null,null,null,"1900-01-14",null,null,null,null,null,null,null,null,null,null,null,null,null,null,null,null,null,"1900-01-14",{"$error":"#N/A"},{"$error":"#N/A"},null,null,null,null,null,null,null,null,null,null,null,null,null,null,null,"1900-01-14",{"$error":"#N/A"},{"$error":"#N/A"},null,null,null,null,null,null,null,null,null,null,null,null,null,null,null,"1900-01-14",{"$error":"#N/A"},{"$error":"#N/A"},null,null,null,null,null,null,null,null,null,null,null,null,null,null,null,null,null,null,null,null,null,null,null,null,null,null,null,null,null,null,null,null,null,"1900-01-14",{"$error":"#N/A"},{"$error":"#N/A"},null,null,null,null,null,null,null,null,null,null,null,null,null,null,null,"1900-01-07",{"$error":"#N/A"},{"$error":"#N/A"},null,null,null,null,null,null,null,null,null,null,null,null,null,null,null,"1900-01-14",{"$error":"#N/A"},{"$error":"#N/A"},null,null,null,null,null,null,null,null,null,null,null,null,null,null,null,"1900-01-14",{"$error":"#N/A"},{"$error":"#N/A"},null,null,null,null,null,null,null,null,null,null,null,null,null,null,null,"1900-01-14",{"$error":"#N/A"},{"$error":"#N/A"},null,null,null,null,null,null,null,null,null,null,null,null,null,null,null,null,null,null,null,null,null,null,null,null,null,null,null,null,null,null,null,null,null,"1900-01-14",{"$error":"#N/A"},{"$error":"#N/A"},null,null,null,null,null,null,null,null,null,null,null,null,null,null,null,"1900-01-14",{"$error":"#N/A"},{"$error":"#N/A"},null,null,null,null,null,null,null,null,null,null,null,null,null,null,null,"1900-01-14",{"$error":"#N/A"},{"$error":"#N/A"},null,null,null,null,null,null,null,null,null,null,null,null,null,null,null,"1900-01-14",{"$error":"#N/A"},{"$error":"#N/A"}]
[null,null,null,null,null,null,null,null,"1900-01-21",null,null,null,null,null,null,null,null,null,null,null,null,null,null,null,null,null,"1900-01-21",null,null,null,null,null,null,null,null,null,null,null,null,null,null,null,null,null,"1900-01-21",null,null,null,null,null,null,null,null,null,null,null,null,null,null,null,null,null,"1900-01-21",{"$error":"#N/A"},{"$error":"#N/A"},null,null,null,null,null,null,null,null,null,null,null,null,null,null,null,"1900-01-21",{"$error":"#N/A"},{"$error":"#N/A"},null,null,null,null,null,null,null,null,null,null,null,null,null,null,null,"1900-01-21",{"$error":"#N/A"},{"$error":"#N/A"},null,null,null,null,null,null,null,null,null,null,null,null,null,null,null,"1900-01-21",{"$error":"#N/A"},{"$error":"#N/A"},null,null,null,null,null,null,null,null,null,null,null,null,null,null,null,"1900-01-21",{"$error":"#N/A"},{"$error":"#N/A"},null,null,null,null,null,null,null,null,null,null,null,null,null,null,null,"1900-01-21",{"$error":"#N/A"},{"$error":"#N/A"},null,null,null,null,null,null,null,null,null,null,null,null,null,null,null,"Patient's values",{"$error":"#N/A"},{"$error":"#N/A"},null,null,null,null,null,null,null,null,null,null,null,null,null,null,null,"1900-01-21",null,null,null,null,null,null,null,null,null,null,null,null,null,null,null,null,null,"1900-01-21",null,null,null,null,null,null,null,null,null,null,null,null,null,null,null,null,null,"1900-01-21",{"$error":"#N/A"},{"$error":"#N/A"},null,null,null,null,null,null,null,null,null,null,null,null,null,null,null,"1900-01-21",{"$error":"#N/A"},{"$error":"#N/A"},null,null,null,null,null,null,null,null,null,null,null,null,null,null,null,"1900-01-21",{"$error":"#N/A"},{"$error":"#N/A"},null,null,null,null,null,null,null,null,null,null,null,null,null,null,null,null,null,null,null,null,null,null,null,null,null,null,null,null,null,null,null,null,null,"1900-01-21",{"$error":"#N/A"},{"$error":"#N/A"},null,null,null,null,null,null,null,null,null,null,null,null,null,null,null,"1900-01-14",{"$error":"#N/A"},{"$error":"#N/A"},null,null,null,null,null,null,null,null,null,null,null,null,null,null,null,"1900-01-21",{"$error":"#N/A"},{"$error":"#N/A"},null,null,null,null,null,null,null,null,null,null,null,null,null,null,null,"1900-01-21",{"$error":"#N/A"},{"$error":"#N/A"},null,null,null,null,null,null,null,null,null,null,null,null,null,null,null,"1900-01-21",{"$error":"#N/A"},{"$error":"#N/A"},null,null,null,null,null,null,null,null,null,null,null,null,null,null,null,null,null,null,null,null,null,null,null,null,null,null,null,null,null,null,null,null,null,"1900-01-21",{"$error":"#N/A"},{"$error":"#N/A"},null,null,null,null,null,null,null,null,null,null,null,null,null,null,null,"1900-01-21",{"$error":"#N/A"},{"$error":"#N/A"},null,null,null,null,null,null,null,null,null,null,null,null,null,null,null,"1900-01-21",{"$error":"#N/A"},{"$error":"#N/A"},null,null,null,null,null,null,null,null,null,null,null,null,null,null,null,"1900-01-21",{"$error":"#N/A"},{"$error":"#N/A"}]
[null,null,null,null,null,null,null,null,"1900-01-28",null,null,null,null,null,null,null,null,null,null,null,null,null,null,null,null,null,"1900-01-28",null,null,null,null,null,null,null,null,null,null,null,null,null,null,null,null,null,"1900-01-28",null,null,null,null,null,null,null,null,null,null,null,null,null,null,null,null,null,"1900-01-28",{"$error":"#N/A"},{"$error":"#N/A"},null,null,null,null,null,null,null,null,null,null,null,null,null,null,null,"1900-01-28",{"$error":"#N/A"},{"$error":"#N/A"},null,null,null,null,null,null,null,null,null,null,null,null,null,null,null,"1900-01-28",{"$error":"#N/A"},{"$error":"#N/A"},null,null,null,null,null,null,null,null,null,null,null,null,null,null,null,"1900-01-28",{"$error":"#N/A"},{"$error":"#N/A"},null,null,null,null,null,null,null,null,null,null,null,null,null,null,null,"1900-01-28",{"$error":"#N/A"},{"$error":"#N/A"},null,null,null,null,null,null,null,null,null,null,null,null,null,null,null,"1900-01-28",{"$error":"#N/A"},{"$error":"#N/A"},null,null,null,null,null,null,null,null,null,null,null,null,null,null,null,null,null,null,null,null,null,null,null,null,null,null,null,null,null,null,null,null,null,"1900-01-28",null,null,null,null,null,null,null,null,null,null,null,null,null,null,null,null,null,"1900-01-28",null,null,null,null,null,null,null,null,null,null,null,null,null,null,null,null,null,"1900-01-28",{"$error":"#N/A"},{"$error":"#N/A"},null,null,null,null,null,null,null,null,null,null,null,null,null,null,null,"1900-01-28",{"$error":"#N/A"},{"$error":"#N/A"},null,null,null,null,null,null,null,null,null,null,null,null,null,null,null,"1900-01-28",{"$error":"#N/A"},{"$error":"#N/A"},null,null,null,null,null,null,null,null,null,null,null,null,null,null,null,null,null,null,null,null,null,null,null,null,null,null,null,null,null,null,null,null,null,"1900-01-28",{"$error":"#N/A"},{"$error":"#N/A"},null,null,null,null,null,null,null,null,null,null,null,null,null,null,null,"1900-01-21",{"$error":"#N/A"},{"$error":"#N/A"},null,null,null,null,null,null,null,null,null,null,null,null,null,null,null,"1900-01-28",{"$error":"#N/A"},{"$error":"#N/A"},null,null,null,null,null,null,null,null,null,null,null,null,null,null,null,"1900-01-28",{"$error":"#N/A"},{"$error":"#N/A"},null,null,null,null,null,null,null,null,null,null,null,null,null,null,null,"1900-01-28",{"$error":"#N/A"},{"$error":"#N/A"},null,null,null,null,null,null,null,null,null,null,null,null,null,null,null,null,null,null,null,null,null,null,null,null,null,null,null,null,null,null,null,null,null,"1900-01-28",{"$error":"#N/A"},{"$error":"#N/A"},null,null,null,null,null,null,null,null,null,null,null,null,null,null,null,"1900-01-28",{"$error":"#N/A"},{"$error":"#N/A"},null,null,null,null,null,null,null,null,null,null,null,null,null,null,null,"1900-01-28",{"$error":"#N/A"},{"$error":"#N/A"},null,null,null,null,null,null,null,null,null,null,null,null,null,null,null,"1900-01-28",{"$error":"#N/A"},{"$error":"#N/A"}]
[null,null,null,null,null,null,null,null,"1900-02-04",null,null,null,null,null,null,null,null,null,null,null,null,null,null,null,null,null,"1900-02-04",null,null,null,null,null,null,null,null,null,null,null,null,null,null,null,null,null,"1900-02-04",null,null,null,null,null,null,null,null,null,null,null,null,null,null,null,null,null,"1900-02-04",{"$error":"#N/A"},{"$error":"#N/A"},null,null,null,null,null,null,null,null,null,null,null,null,null,null,null,"1900-02-04",{"$error":"#N/A"},{"$error":"#N/A"},null,null,null,null,null,null,null,null,null,null,null,null,null,null,null,"1900-02-04",{"$error":"#N/A"},{"$error":"#N/A"},null,null,null,null,null,null,null,null,null,null,null,null,null,null,null,"1900-02-04",{"$error":"#N/A"},{"$error":"#N/A"},null,null,null,null,null,null,null,null,null,null,null,null,null,null,null,"1900-02-04",{"$error":"#N/A"},{"$error":"#N/A"},null,null,null,null,null,null,null,null,null,null,null,null,null,null,null,"1900-02-04",{"$error":"#N/A"},{"$error":"#N/A"},null,null,null,null,null,null,null,null,null,null,null,null,null,null,null,null,null,null,null,null,null,null,null,null,null,null,null,null,null,null,null,null,null,"1900-02-04",null,null,null,null,null,null,null,null,null,null,null,null,null,null,null,null,null,"1900-02-04",null,null,null,null,null,null,null,null,null,null,null,null,null,null,null,null,null,"1900-02-04",{"$error":"#N/A"},{"$error":"#N/A"},null,null,null,null,null,null,null,null,null,null,null,null,null,null,null,"1900-02-04",{"$error":"#N/A"},{"$error":"#N/A"},null,null,null,null,null,null,null,null,null,null,null,null,null,null,null,"1900-02-04",{"$error":"#N/A"},{"$error":"#N/A"},null,null,null,null,null,null,null,null,null,null,null,null,null,null,null,null,null,null,null,null,null,null,null,null,null,null,null,null,null,null,null,null,null,"1900-02-04",{"$error":"#N/A"},{"$error":"#N/A"},null,null,null,null,null,null,null,null,null,null,null,null,null,null,null,"1900-01-28",{"$error":"#N/A"},{"$error":"#N/A"},null,null,null,null,null,null,null,null,null,null,null,null,null,null,null,"1900-02-04",{"$error":"#N/A"},{"$error":"#N/A"},null,null,null,null,null,null,null,null,null,null,null,null,null,null,null,"1900-02-04",{"$error":"#N/A"},{"$error":"#N/A"},null,null,null,null,null,null,null,null,null,null,null,null,null,null,null,"1900-02-04",{"$error":"#N/A"},{"$error":"#N/A"},null,null,null,null,null,null,null,null,null,null,null,null,null,null,null,null,null,null,null,null,null,null,null,null,null,null,null,null,null,null,null,null,null,"1900-02-04",{"$error":"#N/A"},{"$error":"#N/A"},null,null,null,null,null,null,null,null,null,null,null,null,null,null,null,"1900-02-04",{"$error":"#N/A"},{"$error":"#N/A"},null,null,null,null,null,null,null,null,null,null,null,null,null,null,null,"1900-02-04",{"$error":"#N/A"},{"$error":"#N/A"},null,null,null,null,null,null,null,null,null,null,null,null,null,null,null,"1900-02-04",{"$error":"#N/A"},{"$error":"#N/A"}]
[null,null,null,null,null,null,null,null,"1900-02-11",null,null,null,null,null,null,null,null,null,null,null,null,null,null,null,null,null,"1900-02-11",null,null,null,null,null,null,null,null,null,null,null,null,null,null,null,null,null,"1900-02-11",null,null,null,null,null,null,null,null,null,null,null,null,null,null,null,null,null,"1900-02-11",{"$error":"#N/A"},{"$error":"#N/A"},null,null,null,null,null,null,null,null,null,null,null,null,null,null,null,"1900-02-11",{"$error":"#N/A"},{"$error":"#N/A"},null,null,null,null,null,null,null,null,null,null,null,null,null,null,null,"1900-02-11",{"$error":"#N/A"},{"$error":"#N/A"},null,null,null,null,null,null,null,null,null,null,null,null,null,null,null,"1900-02-11",{"$error":"#N/A"},{"$error":"#N/A"},null,null,null,null,null,null,null,null,null,null,null,null,null,null,null,"1900-02-11",{"$error":"#N/A"},{"$error":"#N/A"},null,null,null,null,null,null,null,null,null,null,null,null,null,null,null,"1900-02-11",{"$error":"#N/A"},{"$error":"#N/A"},null,null,null,null,null,null,null,null,null,null,null,null,null,null,null,null,null,null,null,null,null,null,null,null,null,null,null,null,null,null,null,null,null,"1900-02-11",null,null,null,null,null,null,null,null,null,null,null,null,null,null,null,null,null,"1900-02-11",null,null,null,null,null,null,null,null,null,null,null,null,null,null,null,null,null,"1900-02-11",{"$error":"#N/A"},{"$error":"#N/A"},null,null,null,null,null,null,null,null,null,null,null,null,null,null,null,"1900-02-11",{"$error":"#N/A"},{"$error":"#N/A"},null,null,null,null,null,null,null,null,null,null,null,null,null,null,null,"1900-02-11",{"$error":"#N/A"},{"$error":"#N/A"},null,null,null,null,null,null,null,null,null,null,null,null,null,null,null,null,null,null,null,null,null,null,null,null,null,null,null,null,null,null,null,null,null,"1900-02-11",{"$error":"#N/A"},{"$error":"#N/A"},null,null,null,null,null,null,null,null,null,null,null,null,null,null,null,"1900-02-04",{"$error":"#N/A"},{"$error":"#N/A"},null,null,null,null,null,null,null,null,null,null,null,null,null,null,null,"1900-02-11",{"$error":"#N/A"},{"$error":"#N/A"},null,null,null,null,null,null,null,null,null,null,null,null,null,null,null,"1900-02-11",{"$error":"#N/A"},{"$error":"#N/A"},null,null,null,null,null,null,null,null,null,null,null,null,null,null,null,"1900-02-11",{"$error":"#N/A"},{"$error":"#N/A"},null,null,null,null,null,null,null,null,null,null,null,null,null,null,null,null,null,null,null,null,null,null,null,null,null,null,null,null,null,null,null,null,null,"1900-02-11",{"$error":"#N/A"},{"$error":"#N/A"},null,null,null,null,null,null,null,null,null,null,null,null,null,null,null,"1900-02-11",{"$error":"#N/A"},{"$error":"#N/A"},null,null,null,null,null,null,null,null,null,null,null,null,null,null,null,"1900-02-11",{"$error":"#N/A"},{"$error":"#N/A"},null,null,null,null,null,null,null,null,null,null,null,null,null,null,null,"1900-02-11",{"$error":"#N/A"},{"$error":"#N/A"}]
[null,null,null,null,null,null,null,null,"1900-02-18",null,null,null,null,null,null,null,null,null,null,null,null,null,null,null,null,null,"1900-02-18",null,null,null,null,null,null,null,null,null,null,null,null,null,null,null,null,null,"1900-02-18",null,null,null,null,null,null,null,null,null,null,null,null,null,null,null,null,null,"1900-02-18",{"$error":"#N/A"},{"$error":"#N/A"},null,null,null,null,null,null,null,null,null,null,null,null,null,null,null,"1900-02-18",{"$error":"#N/A"},{"$error":"#N/A"},null,null,null,null,null,null,null,null,null,null,null,null,null,null,null,"1900-02-18",{"$error":"#N/A"},{"$error":"#N/A"},null,null,null,null,null,null,null,null,null,null,null,null,null,null,null,"1900-02-18",{"$error":"#N/A"},{"$error":"#N/A"},null,null,null,null,null,null,null,null,null,null,null,null,null,null,null,"1900-02-18",{"$error":"#N/A"},{"$error":"#N/A"},null,null,null,null,null,null,null,null,null,null,null,null,null,null,null,"1900-02-18",{"$error":"#N/A"},{"$error":"#N/A"},null,null,null,null,null,null,null,null,null,null,null,null,null,null,null,null,null,null,null,null,null,null,null,null,null,null,null,null,null,null,null,null,null,"1900-02-18",null,null,null,null,null,null,null,null,null,null,null,null,null,null,null,null,null,"1900-02-18",null,null,null,null,null,null,null,null,null,null,null,null,null,null,null,null,null,"1900-02-18",{"$error":"#N/A"},{"$error":"#N/A"},null,null,null,null,null,null,null,null,null,null,null,null,null,null,null,"1900-02-18",{"$error":"#N/A"},{"$error":"#N/A"},null,null,null,null,null,null,null,null,null,null,null,null,null,null,null,"1900-02-18",{"$error":"#N/A"},{"$error":"#N/A"},null,null,null,null,null,null,null,null,null,null,null,null,null,null,null,null,null,null,null,null,null,null,null,null,null,null,null,null,null,null,null,null,null,"1900-02-18",{"$error":"#N/A"},{"$error":"#N/A"},null,null,null,null,null,null,null,null,null,null,null,null,null,null,null,"1900-02-11",{"$error":"#N/A"},{"$error":"#N/A"},null,null,null,null,null,null,null,null,null,null,null,null,null,null,null,"1900-02-18",{"$error":"#N/A"},{"$error":"#N/A"},null,null,null,null,null,null,null,null,null,null,null,null,null,null,null,"1900-02-18",{"$error":"#N/A"},{"$error":"#N/A"},null,null,null,null,null,null,null,null,null,null,null,null,null,null,null,"1900-02-18",{"$error":"#N/A"},{"$error":"#N/A"},null,null,null,null,null,null,null,null,null,null,null,null,null,null,null,null,null,null,null,null,null,null,null,null,null,null,null,null,null,null,null,null,null,"1900-02-18",{"$error":"#N/A"},{"$error":"#N/A"},null,null,null,null,null,null,null,null,null,null,null,null,null,null,null,"1900-02-18",{"$error":"#N/A"},{"$error":"#N/A"},null,null,null,null,null,null,null,null,null,null,null,null,null,null,null,"1900-02-18",{"$error":"#N/A"},{"$error":"#N/A"},null,null,null,null,null,null,null,null,null,null,null,null,null,null,null,"1900-02-18",{"$error":"#N/A"},{"$error":"#N/A"}]
[null,null,null,null,null,null,null,null,"1900-02-25",null,null,null,null,null,null,null,null,null,null,null,null,null,null,null,null,null,"1900-02-25",null,null,null,null,null,null,null,null,null,null,null,null,null,null,null,null,null,"1900-02-25",null,null,null,null,null,null,null,null,null,null,null,null,null,null,null,null,null,"1900-02-25",{"$error":"#N/A"},{"$error":"#N/A"},null,null,null,null,null,null,null,null,null,null,null,null,null,null,null,"1900-02-25",{"$error":"#N/A"},{"$error":"#N/A"},null,null,null,null,null,null,null,null,null,null,null,null,null,null,null,"1900-02-25",{"$error":"#N/A"},{"$error":"#N/A"},null,null,null,null,null,null,null,null,null,null,null,null,null,null,null,"1900-02-25",{"$error":"#N/A"},{"$error":"#N/A"},null,null,null,null,null,null,null,null,null,null,null,null,null,null,null,"1900-02-25",{"$error":"#N/A"},{"$error":"#N/A"},null,null,null,null,null,null,null,null,null,null,null,null,null,null,null,"1900-02-25",{"$error":"#N/A"},{"$error":"#N/A"},null,null,null,null,null,null,null,null,null,null,null,null,null,null,null,null,null,null,null,null,null,null,null,null,null,null,null,null,null,null,null,null,null,"1900-02-25",null,null,null,null,null,null,null,null,null,null,null,null,null,null,null,null,null,"1900-02-25",null,null,null,null,null,null,null,null,null,null,null,null,null,null,null,null,null,"1900-02-25",{"$error":"#N/A"},{"$error":"#N/A"},null,null,null,null,null,null,null,null,null,null,null,null,null,null,null,"1900-02-25",{"$error":"#N/A"},{"$error":"#N/A"},null,null,null,null,null,null,null,null,null,null,null,null,null,null,null,"1900-02-25",{"$error":"#N/A"},{"$error":"#N/A"},null,null,null,null,null,null,null,null,null,null,null,null,null,null,null,null,null,null,null,null,null,null,null,null,null,null,null,null,null,null,null,null,null,"1900-02-25",{"$error":"#N/A"},{"$error":"#N/A"},null,null,null,null,null,null,null,null,null,null,null,null,null,null,null,"1900-02-18",{"$error":"#N/A"},{"$error":"#N/A"},null,null,null,null,null,null,null,null,null,null,null,null,null,null,null,"1900-02-25",{"$error":"#N/A"},{"$error":"#N/A"},null,null,null,null,null,null,null,null,null,null,null,null,null,null,null,"1900-02-25",{"$error":"#N/A"},{"$error":"#N/A"},null,null,null,null,null,null,null,null,null,null,null,null,null,null,null,"1900-02-25",{"$error":"#N/A"},{"$error":"#N/A"},null,null,null,null,null,null,null,null,null,null,null,null,null,null,null,null,null,null,null,null,null,null,null,null,null,null,null,null,null,null,null,null,null,"1900-02-25",{"$error":"#N/A"},{"$error":"#N/A"},null,null,null,null,null,null,null,null,null,null,null,null,null,null,null,"1900-02-25",{"$error":"#N/A"},{"$error":"#N/A"},null,null,null,null,null,null,null,null,null,null,null,null,null,null,null,"1900-02-25",{"$error":"#N/A"},{"$error":"#N/A"},null,null,null,null,null,null,null,null,null,null,null,null,null,null,null,"1900-02-25",{"$error":"#N/A"},{"$error":"#N/A"}]
[null,null,null,null,null,null,null,null,"1900-03-03",null,null,null,null,null,null,null,null,null,null,null,null,null,null,null,null,null,"1900-03-03",null,null,null,null,null,null,null,null,null,null,null,null,null,null,null,null,null,"1900-03-03",null,null,null,null,null,null,null,null,null,null,null,null,null,null,null,null,null,"1900-03-03",{"$error":"#N/A"},{"$error":"#N/A"},null,null,null,null,null,null,null,null,null,null,null,null,null,null,null,"1900-03-03",{"$error":"#N/A"},{"$error":"#N/A"},null,null,null,null,null,null,null,null,null,null,null,null,null,null,null,"1900-03-03",{"$error":"#N/A"},{"$error":"#N/A"},null,null,null,null,null,null,null,null,null,null,null,null,null,null,null,"1900-03-03",{"$error":"#N/A"},{"$error":"#N/A"},null,null,null,null,null,null,null,null,null,null,null,null,null,null,null,"1900-03-03",{"$error":"#N/A"},{"$error":"#N/A"},null,null,null,null,null,null,null,null,null,null,null,null,null,null,null,"1900-03-03",{"$error":"#N/A"},{"$error":"#N/A"},null,null,null,null,null,null,null,null,null,null,null,null,null,null,null,null,null,null,null,null,null,null,null,null,null,null,null,null,null,null,null,null,null,"1900-03-03",null,null,null,null,null,null,null,null,null,null,null,null,null,null,null,null,null,"1900-03-03",null,null,null,null,null,null,null,null,null,null,null,null,null,null,null,null,null,"1900-03-03",{"$error":"#N/A"},{"$error":"#N/A"},null,null,null,null,null,null,null,null,null,null,null,null,null,null,null,"1900-03-03",{"$error":"#N/A"},{"$error":"#N/A"},null,null,null,null,null,null,null,null,null,null,null,null,null,null,null,"1900-03-03",{"$error":"#N/A"},{"$error":"#N/A"},null,null,null,null,null,null,null,null,null,null,null,null,null,null,null,null,null,null,null,null,null,null,null,null,null,null,null,null,null,null,null,null,null,"1900-03-03",{"$error":"#N/A"},{"$error":"#N/A"},null,null,null,null,null,null,null,null,null,null,null,null,null,null,null,"1900-02-25",{"$error":"#N/A"},{"$error":"#N/A"},null,null,null,null,null,null,null,null,null,null,null,null,null,null,null,"1900-03-03",{"$error":"#N/A"},{"$error":"#N/A"},null,null,null,null,null,null,null,null,null,null,null,null,null,null,null,"1900-03-03",{"$error":"#N/A"},{"$error":"#N/A"},null,null,null,null,null,null,null,null,null,null,null,null,null,null,null,"1900-03-03",{"$error":"#N/A"},{"$error":"#N/A"},null,null,null,null,null,null,null,null,null,null,null,null,null,null,null,null,null,null,null,null,null,null,null,null,null,null,null,null,null,null,null,null,null,"1900-03-03",{"$error":"#N/A"},{"$error":"#N/A"},null,null,null,null,null,null,null,null,null,null,null,null,null,null,null,"1900-03-03",{"$error":"#N/A"},{"$error":"#N/A"},null,null,null,null,null,null,null,null,null,null,null,null,null,null,null,"1900-03-03",{"$error":"#N/A"},{"$error":"#N/A"},null,null,null,null,null,null,null,null,null,null,null,null,null,null,null,"1900-03-03",{"$error":"#N/A"},{"$error":"#N/A"}]
[null,null,null,null,null,null,null,null,"1900-03-10",null,null,null,null,null,null,null,null,null,null,null,null,null,null,null,null,null,"1900-03-10",null,null,null,null,null,null,null,null,null,null,null,null,null,null,null,null,null,"1900-03-10",null,null,null,null,null,null,null,null,null,null,null,null,null,null,null,null,null,"1900-03-10",{"$error":"#N/A"},{"$error":"#N/A"},null,null,null,null,null,null,null,null,null,null,null,null,null,null,null,"1900-03-10",{"$error":"#N/A"},{"$error":"#N/A"},null,null,null,null,null,null,null,null,null,null,null,null,null,null,null,"1900-03-10",{"$error":"#N/A"},{"$error":"#N/A"},null,null,null,null,null,null,null,null,null,null,null,null,null,null,null,"1900-03-10",{"$error":"#N/A"},{"$error":"#N/A"},null,null,null,null,null,null,null,null,null,null,null,null,null,null,null,"1900-03-10",{"$error":"#N/A"},{"$error":"#N/A"},null,null,null,null,null,null,null,null,null,null,null,null,null,null,null,"1900-03-10",{"$error":"#N/A"},{"$error":"#N/A"},null,null,null,null,null,null,null,null,null,null,null,null,null,null,null,null,null,null,null,null,null,null,null,null,null,null,null,null,null,null,null,null,null,"1900-03-10",null,null,null,null,null,null,null,null,null,null,null,null,null,null,null,null,null,"1900-03-10",null,null,null,null,null,null,null,null,null,null,null,null,null,null,null,null,null,"1900-03-10",{"$error":"#N/A"},{"$error":"#N/A"},null,null,null,null,null,null,null,null,null,null,null,null,null,null,null,"1900-03-10",{"$error":"#N/A"},{"$error":"#N/A"},null,null,null,null,null,null,null,null,null,null,null,null,null,null,null,"1900-03-10",{"$error":"#N/A"},{"$error":"#N/A"},null,null,null,null,null,null,null,null,null,null,null,null,null,null,null,null,null,null,null,null,null,null,null,null,null,null,null,null,null,null,null,null,null,"1900-03-10",{"$error":"#N/A"},{"$error":"#N/A"},null,null,null,null,null,null,null,null,null,null,null,null,null,null,null,"1900-03-03",{"$error":"#N/A"},{"$error":"#N/A"},null,null,null,null,null,null,null,null,null,null,null,null,null,null,null,"1900-03-10",{"$error":"#N/A"},{"$error":"#N/A"},null,null,null,null,null,null,null,null,null,null,null,null,null,null,null,"1900-03-10",{"$error":"#N/A"},{"$error":"#N/A"},null,null,null,null,null,null,null,null,null,null,null,null,null,null,null,"1900-03-10",{"$error":"#N/A"},{"$error":"#N/A"},null,null,null,null,null,null,null,null,null,null,null,null,null,null,null,null,null,null,null,null,null,null,null,null,null,null,null,null,null,null,null,null,null,"1900-03-10",{"$error":"#N/A"},{"$error":"#N/A"},null,null,null,null,null,null,null,null,null,null,null,null,null,null,null,"1900-03-10",{"$error":"#N/A"},{"$error":"#N/A"},null,null,null,null,null,null,null,null,null,null,null,null,null,null,null,"1900-03-10",{"$error":"#N/A"},{"$error":"#N/A"},null,null,null,null,null,null,null,null,null,null,null,null,null,null,null,"1900-03-10",{"$error":"#N/A"},{"$error":"#N/A"}]
[null,null,null,null,null,null,null,null,"1900-03-17",null,null,null,null,null,null,null,null,null,null,null,null,null,null,null,null,null,"1900-03-17",null,null,null,null,null,null,null,null,null,null,null,null,null,null,null,null,null,"1900-03-17",null,null,null,null,null,null,null,null,null,null,null,null,null,null,null,null,null,"1900-03-17",{"$error":"#N/A"},{"$error":"#N/A"},null,null,null,null,null,null,null,null,null,null,null,null,null,null,null,"1900-03-17",{"$error":"#N/A"},{"$error":"#N/A"},null,null,null,null,null,null,null,null,null,null,null,null,null,null,null,"1900-03-17",{"$error":"#N/A"},{"$error":"#N/A"},null,null,null,null,null,null,null,null,null,null,null,null,null,null,null,"1900-03-17",{"$error":"#N/A"},{"$error":"#N/A"},null,null,null,null,null,null,null,null,null,null,null,null,null,null,null,"1900-03-17",{"$error":"#N/A"},{"$error":"#N/A"},null,null,null,null,null,null,null,null,null,null,null,null,null,null,null,"1900-03-17",{"$error":"#N/A"},{"$error":"#N/A"},null,null,null,null,null,null,null,null,null,null,null,null,null,null,null,null,null,null,null,null,null,null,null,null,null,null,null,null,null,null,null,null,null,"1900-03-17",null,null,null,null,null,null,null,null,null,null,null,null,null,null,null,null,null,"1900-03-17",null,null,null,null,null,null,null,null,null,null,null,null,null,null,null,null,null,"1900-03-17",{"$error":"#N/A"},{"$error":"#N/A"},null,null,null,null,null,null,null,null,null,null,null,null,null,null,null,"1900-03-17",{"$error":"#N/A"},{"$error":"#N/A"},null,null,null,null,null,null,null,null,null,null,null,null,null,null,null,"1900-03-17",{"$error":"#N/A"},{"$error":"#N/A"},null,null,null,null,null,null,null,null,null,null,null,null,null,null,null,null,null,null,null,null,null,null,null,null,null,null,null,null,null,null,null,null,null,"1900-03-17",{"$error":"#N/A"},{"$error":"#N/A"},null,null,null,null,null,null,null,null,null,null,null,null,null,null,null,"1900-03-10",{"$error":"#N/A"},{"$error":"#N/A"},null,null,null,null,null,null,null,null,null,null,null,null,null,null,null,"1900-03-17",{"$error":"#N/A"},{"$error":"#N/A"},null,null,null,null,null,null,null,null,null,null,null,null,null,null,null,"1900-03-17",{"$error":"#N/A"},{"$error":"#N/A"},null,null,null,null,null,null,null,null,null,null,null,null,null,null,null,"1900-03-17",{"$error":"#N/A"},{"$error":"#N/A"},null,null,null,null,null,null,null,null,null,null,null,null,null,null,null,null,null,null,null,null,null,null,null,null,null,null,null,null,null,null,null,null,null,"1900-03-17",{"$error":"#N/A"},{"$error":"#N/A"},null,null,null,null,null,null,null,null,null,null,null,null,null,null,null,"1900-03-17",{"$error":"#N/A"},{"$error":"#N/A"},null,null,null,null,null,null,null,null,null,null,null,null,null,null,null,"1900-03-17",{"$error":"#N/A"},{"$error":"#N/A"},null,null,null,null,null,null,null,null,null,null,null,null,null,null,null,"1900-03-17",{"$error":"#N/A"},{"$error":"#N/A"}]
[null,null,null,null,null,null,null,null,"1900-03-24",null,null,null,null,null,null,null,null,null,null,null,null,null,null,null,null,null,"1900-03-24",null,null,null,null,null,null,null,null,null,null,null,null,null,null,null,null,null,"1900-03-24",null,null,null,null,null,null,null,null,null,null,null,null,null,null,null,null,null,"1900-03-24",{"$error":"#N/A"},{"$error":"#N/A"},null,null,null,null,null,null,null,null,null,null,null,null,null,null,null,"1900-03-24",{"$error":"#N/A"},{"$error":"#N/A"},null,null,null,null,null,null,null,null,null,null,null,null,null,null,null,"1900-03-24",{"$error":"#N/A"},{"$error":"#N/A"},null,null,null,null,null,null,null,null,null,null,null,null,null,null,null,"1900-03-24",{"$error":"#N/A"},{"$error":"#N/A"},null,null,null,null,null,null,null,null,null,null,null,null,null,null,null,"1900-03-24",{"$error":"#N/A"},{"$error":"#N/A"},null,null,null,null,null,null,null,null,null,null,null,null,null,null,null,"1900-03-24",{"$error":"#N/A"},{"$error":"#N/A"},null,null,null,null,null,null,null,null,null,null,null,null,null,null,null,null,null,null,null,null,null,null,null,null,null,null,null,null,null,null,null,null,null,"1900-03-24",null,null,null,null,null,null,null,null,null,null,null,null,null,null,null,null,null,"1900-03-24",null,null,null,null,null,null,null,null,null,null,null,null,null,null,null,null,null,"1900-03-24",{"$error":"#N/A"},{"$error":"#N/A"},null,null,null,null,null,null,null,null,null,null,null,null,null,null,null,"1900-03-24",{"$error":"#N/A"},{"$error":"#N/A"},null,null,null,null,null,null,null,null,null,null,null,null,null,null,null,"1900-03-24",{"$error":"#N/A"},{"$error":"#N/A"},null,null,null,null,null,null,null,null,null,null,null,null,null,null,null,null,null,null,null,null,null,null,null,null,null,null,null,null,null,null,null,null,null,"1900-03-24",{"$error":"#N/A"},{"$error":"#N/A"},null,null,null,null,null,null,null,null,null,null,null,null,null,null,null,"1900-03-17",{"$error":"#N/A"},{"$error":"#N/A"},null,null,null,null,null,null,null,null,null,null,null,null,null,null,null,"1900-03-24",{"$error":"#N/A"},{"$error":"#N/A"},null,null,null,null,null,null,null,null,null,null,null,null,null,null,null,"1900-03-24",{"$error":"#N/A"},{"$error":"#N/A"},null,null,null,null,null,null,null,null,null,null,null,null,null,null,null,"1900-03-24",{"$error":"#N/A"},{"$error":"#N/A"},null,null,null,null,null,null,null,null,null,null,null,null,null,null,null,null,null,null,null,null,null,null,null,null,null,null,null,null,null,null,null,null,null,"1900-03-24",{"$error":"#N/A"},{"$error":"#N/A"},null,null,null,null,null,null,null,null,null,null,null,null,null,null,null,"1900-03-24",{"$error":"#N/A"},{"$error":"#N/A"},null,null,null,null,null,null,null,null,null,null,null,null,null,null,null,"1900-03-24",{"$error":"#N/A"},{"$error":"#N/A"},null,null,null,null,null,null,null,null,null,null,null,null,null,null,null,"1900-03-24",{"$error":"#N/A"},{"$error":"#N/A"}]
[null,null,null,null,null,null,null,null,"Grand Total",null,null,null,null,null,null,null,null,null,null,null,null,null,null,null,null,null,"Grand Total",null,null,null,null,null,null,null,null,null,null,null,null,null,null,null,null,null,"Grand Total",null,null,null,null,null,null,null,null,null,null,null,null,null,null,null,null,null,"Grand Total",{"$error":"#N/A"},{"$error":"#N/A"},null,null,null,null,null,null,null,null,null,null,null,null,null,null,null,"Grand Total",{"$error":"#N/A"},{"$error":"#N/A"},null,null,null,null,null,null,null,null,null,null,null,null,null,null,null,"Grand Total",{"$error":"#N/A"},{"$error":"#N/A"},null,null,null,null,null,null,null,null,null,null,null,null,null,null,null,"Grand Total",{"$error":"#N/A"},{"$error":"#N/A"},null,null,null,null,null,null,null,null,null,null,null,null,null,null,null,"Grand Total",{"$error":"#N/A"},{"$error":"#N/A"},null,null,null,null,null,null,null,null,null,null,null,null,null,null,null,"Grand Total",{"$error":"#N/A"},{"$error":"#N/A"},null,null,null,null,null,null,null,null,null,null,null,null,null,null,null,null,null,null,null,null,null,null,null,null,null,null,null,null,null,null,null,null,null,"Grand Total",null,null,null,null,null,null,null,null,null,null,null,null,null,null,null,null,null,"Grand Total",null,null,null,null,null,null,null,null,null,null,null,null,null,null,null,null,null,"Grand Total",{"$error":"#N/A"},{"$error":"#N/A"},null,null,null,null,null,null,null,null,null,null,null,null,null,null,null,"Grand Total",{"$error":"#N/A"},{"$error":"#N/A"},null,null,null,null,null,null,null,null,null,null,null,null,null,null,null,"Grand Total",{"$error":"#N/A"},{"$error":"#N/A"},null,null,null,null,null,null,null,null,null,null,null,null,null,null,null,null,null,null,null,null,null,null,null,null,null,null,null,null,null,null,null,null,null,"Grand Total",{"$error":"#N/A"},{"$error":"#N/A"},null,null,null,null,null,null,null,null,null,null,null,null,null,null,null,"1900-03-24",{"$error":"#N/A"},{"$error":"#N/A"},null,null,null,null,null,null,null,null,null,null,null,null,null,null,null,"Grand Total",{"$error":"#N/A"},{"$error":"#N/A"},null,null,null,null,null,null,null,null,null,null,null,null,null,null,null,"Grand Total",{"$error":"#N/A"},{"$error":"#N/A"},null,null,null,null,null,null,null,null,null,null,null,null,null,null,null,"Grand Total",{"$error":"#N/A"},{"$error":"#N/A"},null,null,null,null,null,null,null,null,null,null,null,null,null,null,null,null,null,null,null,null,null,null,null,null,null,null,null,null,null,null,null,null,null,"Grand Total",{"$error":"#N/A"},{"$error":"#N/A"},null,null,null,null,null,null,null,null,null,null,null,null,null,null,null,"Grand Total",{"$error":"#N/A"},{"$error":"#N/A"},null,null,null,null,null,null,null,null,null,null,null,null,null,null,null,"Grand Total",{"$error":"#N/A"},{"$error":"#N/A"},null,null,null,null,null,null,null,null,null,null,null,null,null,null,null,"Grand Total",{"$error":"#N/A"},{"$error":"#N/A"}]
[null,null,null,null,null,null,null,null,null,null,null,null,null,null,null,null,null,null,null,null,null,null,null,null,null,null,null,null,null,null,null,null,null,null,null,null,null,null,null,null,null,null,null,null,null,null,null,null,null,null,null,null,null,null,null,null,null,null,null,null,null,null,null,null,null,null,null,null,null,null,null,null,null,null,null,null,null,null,null,null,null,null,null,null,null,null,null,null,null,null,null,null,null,null,null,null,null,null,null,null,null,null,null,null,null,null,null,null,null,null,null,null,null,null,null,null,null,null,null,null,null,null,null,null,null,null,null,null,null,null,null,null,null,null,null,null,null,null,null,null,null,null,null,null,null,null,null,null,null,null,null,null,null,null,null,null,null,null,null,null,null,null,null,null,null,null,null,null,null,null,null,null,null,null,null,null,null,null,null,null,null,null,null,null,null,null,null,null,null,null,null,null,null,null,null,null,null,null,null,null,null,null,null,null,null,null,null,null,null,null,null,null,null,null,null,null,null,null,null,null,null,null,null,null,null,null,null,null,null,null,null,null,null,null,null,null,null,null,null,null,null,null,null,null,null,null,null,null,null,null,null,null,null,null,null,null,null,null,null,null,null,null,null,null,null,null,null,null,null,null,null,null,null,null,null,null,null,null,null,null,null,null,null,null,null,null,null,null,null,null,null,null,null,null,null,null,null,null,null,null,null,null,null,null,null,null,null,null,null,null,null,null,null,null,"Grand Total",{"$error":"#N/A"},{"$error":"#N/A"}]
[]
[]
[]
[]
[]
[]
[]
[]
[]
[]
[]
[]
[]
[]
[]
[]
[]
[]
[]
[]
[]
[]
[]
[null,null,null,null,null,null,null,null,"Ethnicity","(All)",null,null,null,null,null,null,null,null,null,null,null,null,null,null,null,null,null,null,null,null,null,null,null,null,null,null,null,null,null,null,null,null,null,null,null,null,null,null,null,null,null,null,null,null,null,null,null,null,null,null,null,null,null,null,null,null,null,null,null,null,null,null,null,null,null,null,null,null,null,null,null,null,null,null,null,null,null,null,null,null,null,null,null,null,null,null,null,null,null,null,null,null,null,null,null,null,null,null,null,null,null,null,null,null,null,null,null,null,null,null,null,null,null,null,null,null,null,null,null,null,null,null,null,null,null,null,null,null,null,null,null,null,null,null,null,null,null,null,null,null,null,null,null,null,null,null,null,null,null,null,null,null,null,null,null,null,null,null,null,null,null,null,null,null,null,null,null,null,null,null,null,null,null,null,null,null,null,null,null,null,null,null,null,null,null,null,null,null,null,null,null,null,null,null,null,null,null,null,null,null,null,null,null,null,null,null,null,null,null,null,null,null,null,null,null,null,null,null,null,null,null,null,null,null,null,null,null,null,null,null,null,null,"Ethnicity","(All)"]
[null,null,null,null,null,null,null,null,"Age","(All)",null,null,null,null,null,null,null,null,null,null,null,null,null,null,null,null,null,null,null,null,null,null,null,null,null,null,null,null,null,null,null,null,null,null,null,null,null,null,null,null,null,null,null,null,null,null,null,null,null,null,null,null,null,null,null,null,null,null,null,null,null,null,null,null,null,null,null,null,null,null,null,null,null,null,null,null,null,null,null,null,null,null,null,null,null,null,null,null,null,null,null,null,null,null,null,null,null,null,null,null,null,null,null,null,null,null,null,null,null,null,null,null,null,null,null,null,null,null,null,null,null,null,null,null,null,null,null,null,null,null,null,null,null,null,null,null,null,null,null,null,null,null,null,null,null,null,null,null,null,null,null,null,null,null,null,null,null,null,null,null,null,null,null,null,null,null,null,null,null,null,null,null,null,null,null,null,null,null,null,null,null,null,null,null,null,null,null,null,null,null,null,null,null,null,null,null,null,null,null,null,null,null,null,null,null,null,null,null,null,null,null,null,null,null,null,null,null,null,null,null,null,null,null,null,null,null,null,null,null,null,null,null,"Week starting","(Multiple Items)"]
[null,null,null,null,null,null,null,null,"Week starting","(All)",null,null,null,null,null,null,null,null,null,null,null,null,null,null,null,null,null,null,null,null,null,null,null,null,null,null,null,null,null,null,null,null,null,null,null,null,null,null,null,null,null,null,null,null,null,null,null,null,null,null,null,null,null,null,null,null,null,null,null,null,null,null,null,null,null,null,null,null,null,null,null,null,null,null,null,null,null,null,null,null,null,null,null,null,null,null,null,null,null,null,null,null,null,null,null,null,null,null,null,null,null,null,null,null,null,null,null,null,null,null,null,null,null,null,null,null,null,null,null,null,null,null,null,null,null,null,null,null,null,null,null,null,null,null,null,null,null,null,null,null,null,null,null,null,null,null,null,null,null,null,null,null,null,null,null,null,null,null,null,null,null,null,null,null,null,null,null,null,null,null,null,null,null,null,null,null,null,null,null,null,null,null,null,null,null,null,null,null,null,null,null,null,null,null,null,null,null,null,null,null,null,null,null,null,null,null,null,null,null,null,null,null,null,null,null,null,null,null,null,null,null,null,null,null,null,null,null,null,null,null,null,null,"Ward",0]
[null,null,null,null,null,null,null,null,null,null,null,null,null,null,null,null,null,null,null,null,null,null,null,null,null,null,null,null,null,null,null,null,null,null,null,null,null,null,null,null,null,null,null,null,null,null,null,null,null,null,null,null,null,null,null,null,null,null,null,null,null,null,null,null,null,null,null,null,null,null,null,null,null,null,null,null,null,null,null,null,null,null,null,null,null,null,null,null,null,null,null,null,null,null,null,null,null,null,null,null,null,null,null,null,null,null,null,null,null,null,null,null,null,null,null,null,null,null,null,null,null,null,null,null,null,null,null,null,null,null,null,null,null,null,null,null,null,null,null,null,null,null,null,null,null,null,null,null,null,null,null,null,null,null,null,null,null,null,null,null,null,null,null,null,null,null,null,null,null,null,null,null,null,null,null,null,null,null,null,null,null,null,null,null,null,null,null,null,null,null,null,null,null,null,null,null,null,null,null,null,null,null,null,null,null,null,null,null,null,null,null,null,null,null,null,null,null,null,null,null,null,null,null,null,null,null,null,null,null,null,null,null,null,null,null,null,null,null,null,null,null,null,"Age","(All)"]
[null,null,null,null,null,null,null,null,null,"Ward"]
[null,null,null,null,null,null,null,null,null,0,"Grand Total","Grand Total",null,null,null,null,null,null,null,null,null,null,null,null,null,null,null,null,null,null,null,null,null,null,null,null,null,null,null,null,null,null,null,null,null,null,null,null,null,null,null,null,null,null,null,null,null,null,null,null,null,null,null,null,null,null,null,null,null,null,null,null,null,null,null,null,null,null,null,null,null,null,null,null,null,null,null,null,null,null,null,null,null,null,null,null,null,null,null,null,null,null,null,null,null,null,null,null,null,null,null,null,null,null,null,null,null,null,null,null,null,null,null,null,null,null,null,null,null,null,null,null,null,null,null,null,null,null,null,null,null,null,null,null,null,null,null,null,null,null,null,null,null,null,null,null,null,null,null,null,null,null,null,null,null,null,null,null,null,null,null,null,null,null,null,null,null,null,null,null,null,null,null,null,null,null,null,null,null,null,null,null,null,null,null,null,null,null,null,null,null,null,null,null,null,null,null,null,null,null,null,null,null,null,null,null,null,null,null,null,null,null,null,null,null,null,null,null,null,null,null,null,null,null,null,null,null,null,null,null,null,null,"Sum of Q1 y as % of cases audited"]
[null,null,null,null,null,null,null,null,"% of patients with a shared goals of care form",{"$error":"#N/A"},{"$error":"#N/A"},0.55000000000000004,null,null,null,null,null,null,null,null,null,null,null,null,null,null,null,null,null,null,null,null,null,null,null,null,null,null,null,null,null,null,null,null,null,null,null,null,null,null,null,null,null,null,null,null,null,null,null,null,null,null,null,null,null,null,null,null,null,null,null,null,null,null,null,null,null,null,null,null,null,null,null,null,null,null,null,null,null,null,null,null,null,null,null,null,null,null,null,null,null,null,null,null,null,null,null,null,null,null,null,null,null,null,null,null,null,null,null,null,null,null,null,null,null,null,null,null,null,null,null,null,null,null,null,null,null,null,null,null,null,null,null,null,null,null,null,null,null,null,null,null,null,null,null,null,null,null,null,null,null,null,null,null,null,null,null,null,null,null,null,null,null,null,null,null,null,null,null,null,null,null,null,null,null,null,null,null,null,null,null,null,null,null,null,null,null,null,null,null,null,null,null,null,null,null,null,null,null,null,null,null,null,null,null,null,null,null,null,null,null,null,null,null,null,null,null,null,null,null,null,null,null,null,null,null,null,null,null,null,null,null,{"$error":"#N/A"}]

{"sheet":"Charts for dashboard","index":7,"n_rows":82,"n_cols":478,"rows_kept":82,"cut":false,"hidden":true,"merged":[]}
[null,null,null,null,null,null,null,null,null,"Important note: Before using this page, click 'refresh' button"]
[]
["Legend",null,null,null,null,null,null,null,"Q1 % of patients with a shared goals of care form for this admission",null,null,null,null,null,null,null,null,null,null,null,null,null,null,null,null,null,"Q2 % of patients with more than one shared goals of care form for this admission",null,null,null,null,null,null,null,null,null,null,null,null,null,null,null,null,null,"Q2a % of patients that had previous shared goals of care form(s) crossed out or replaced? ",null,null,null,null,null,null,null,null,null,null,null,null,null,null,null,null,null,"Q3 % of patients that had the defined fields completed on their shared goals of care form",null,null,null,null,null,null,null,null,null,null,null,null,null,null,null,null,null,"Q4 % of patients that had the names of the people present at the discussion documented",null,null,null,null,null,null,null,null,null,null,null,null,null,null,null,null,null,"Q5 % of patients where their understanding of their condition and what may lie ahead is documented",null,null,null,null,null,null,null,null,null,null,null,null,null,null,null,null,null,"Q6 % of patients where how much information they wanted to know is documented ",null,null,null,null,null,null,null,null,null,null,null,null,null,null,null,null,null,"Q7 % of patients where the clinician’s understanding of the patient’s condition and what may lie ahead is documented",null,null,null,null,null,null,null,null,null,null,null,null,null,null,null,null,null,"Q8 % of patients where their values and what is important to them is documented",null,null,null,null,null,null,null,null,null,null,null,null,null,null,null,null,null,"Q5-8 % of patients with documentation of their understanding of their condition, how much information they wanted to know, their values and what is important to them and what the clinicians understand of patient's condition is",null,null,null,null,null,null,null,null,null,null,null,null,null,null,null,null,null,"Q9 % of patients with additional comments about the discussion documented on the form",null,null,null,null,null,null,null,null,null,null,null,null,null,null,null,null,null,"Q10 % of patients with further information box selected",null,null,null,null,null,null,null,null,null,null,null,null,null,null,null,null,null,"Q10a % of patients with further information box selected and documented in the clinical record",null,null,null,null,null,null,null,null,null,null,null,null,null,null,null,null,null,"Q11 % of patients where the reason for not holding the discussion with the patient is documented",null,null,null,null,null,null,null,null,null,null,null,null,null,null,null,null,null,"Q12 % of patients with a goal of care selected",null,null,null,null,null,null,null,null,null,null,null,null,null,null,null,null,null,"Q12 % of patients by type of goal of care",null,null,null,null,null,null,null,null,null,null,null,null,null,null,null,null,null,"Q13 % of patients with goal of care B where decision was made on whether referral for ICU level of care was appropriate",null,null,null,null,null,null,null,null,null,null,null,null,null,null,null,null,null,"Q14 % of patients with goal of care C where decision is made on whether rapid response team calls were appropriate",null,null,null,null,null,null,null,null,null,null,null,null,null,null,null,null,null,"Q15 % of patients with additional comments documented for the goal of care",null,null,null,null,null,null,null,null,null,null,null,null,null,null,null,null,null,"Q16 % of patients where the date and time of the goal of care was documented",null,null,null,null,null,null,null,null,null,null,null,null,null,null,null,null,null,"Q16a % of patients that had their SGOC documented within 24 hours from admission",null,null,null,null,null,null,null,null,null,null,null,null,null,null,null,null,null,"Q16a % of patients by timeframe for decision after admission",null,null,null,null,null,null,null,null,null,null,null,null,null,null,null,null,null,"Q17 % of patients that had their shared goals of care form signed",null,null,null,null,null,null,null,null,null,null,null,null,null,null,null,null,null,"Q18 % of patients with a goal of care where their condition deteriorated and required clinical review ",null,null,null,null,null,null,null,null,null,null,null,null,null,null,null,null,null,"Q18a % of patients that had their agreed goal of care followed",null,null,null,null,null,null,null,null,null,null,null,null,null,null,null,null,null,"Q18b % of patients that had a reason documented for why their goal of care was not followed",null,null,null,null,null,null,null,null,null,null,null,null,null,null,null,null,null,"Q18a % of patients that had the agreed goal of care followed"]
[]
[null,null,null,null,null,null,null,null,null,null,null,null,null,null,null,null,null,null,null,null,null,null,null,null,null,null,null,null,null,null,null,null,null,null,null,null,null,null,null,null,null,null,null,null,null,null,null,null,null,null,null,null,null,null,null,null,null,null,null,null,null,null,null,null,null,null,null,null,null,null,null,null,null,null,null,null,null,null,null,null,null,null,null,null,null,null,null,null,null,null,null,null,null,null,null,null,null,null,null,null,null,null,null,null,null,null,null,null,null,null,null,null,null,null,null,null,null,null,null,null,null,null,null,null,null,null,null,null,null,null,null,null,null,null,null,null,null,null,null,null,null,null,null,null,null,null,null,null,null,null,null,null,null,null,null,null,null,null,null,null,null,null,null,null,null,null,null,null,null,null,"Week starting","(All)",null,null,null,null,null,null,null,null,null,null,null,null,null,null,null,null,null,null,null,null,null,null,null,null,null,null,null,null,null,null,null,null,null,null,null,null,null,null,null,null,null,null,null,null,null,null,null,null,null,null,null,null,null,null,null,null,null,null,null,null,null,null,null,null,null,null,null,null,null,null,null,null,null,null,null,null,null,null,null,null,null,null,null,null,null,null,null,null,null,null,null,null,null,null,null,null,null,null,null,null,null,null,null,null,null,null,"Week starting","(All)",null,null,null,null,null,null,null,null,null,null,null,null,null,null,null,null,null,null,null,null,null,null,null,null,null,null,null,null,null,null,null,null,null,null,null,null,null,null,null,null,null,null,null,null,null,null,null,null,null,null,null,null,null,null,null,null,null,null,null,null,null,null,null,null,null,null,null,null,null,null,null,null,null,null,null,null,null,null,null,null,null,null,null,null,null,null,null,null,null,null,null,null,null,null,null,null,null,null,null,null,null,null,null,null,null,null,"Week starting","(All)"]
["Ward",null,null,null,null,null,null,null,"Ethnicity","(All)",null,null,null,null,null,null,null,null,null,null,null,null,null,null,null,null,"Ethnicity","(All)",null,null,null,null,null,null,null,null,null,null,null,null,null,null,null,null,"Ethnicity","(All)",null,null,null,null,null,null,null,null,null,null,null,null,null,null,null,null,"Ethnicity","(All)",null,null,null,null,null,null,null,null,null,null,null,null,null,null,null,null,"Ethnicity","(All)",null,null,null,null,null,null,null,null,null,null,null,null,null,null,null,null,"Ethnicity","(All)",null,null,null,null,null,null,null,null,null,null,null,null,null,null,null,null,"Ethnicity","(All)",null,null,null,null,null,null,null,null,null,null,null,null,null,null,null,null,"Ethnicity","(All)",null,null,null,null,null,null,null,null,null,null,null,null,null,null,null,null,"Ethnicity","(All)",null,null,null,null,null,null,null,null,null,null,null,null,null,null,null,null,"Ethnicity","(All)",null,null,null,null,null,null,null,null,null,null,null,null,null,null,null,null,"Ethnicity","(All)",null,null,null,null,null,null,null,null,null,null,null,null,null,null,null,null,"Ethnicity","(All)",null,null,null,null,null,null,null,null,null,null,null,null,null,null,null,null,"Ethnicity","(All)",null,null,null,null,null,null,null,null,null,null,null,null,null,null,null,null,"Ethnicity","(All)",null,null,null,null,null,null,null,null,null,null,null,null,null,null,null,null,"Ethnicity","(All)",null,null,null,null,null,null,null,null,null,null,null,null,null,null,null,null,"Ethnicity","(All)",null,null,null,null,null,null,null,null,null,null,null,null,null,null,null,null,"Ethnicity","(All)",null,null,null,null,null,null,null,null,null,null,null,null,null,null,null,null,null,null,null,null,null,null,null,null,null,null,null,null,null,null,null,null,null,null,"Ethnicity","(All)",null,null,null,null,null,null,null,null,null,null,null,null,null,null,null,null,"Ethnicity","(All)",null,null,null,null,null,null,null,null,null,null,null,null,null,null,null,null,"Ethnicity","(All)",null,null,null,null,null,null,null,null,null,null,null,null,null,null,null,null,"Ethnicity","(All)",null,null,null,null,null,null,null,null,null,null,null,null,null,null,null,null,"Ethnicity","(All)",null,null,null,null,null,null,null,null,null,null,null,null,null,null,null,null,"Ethnicity","(All)",null,null,null,null,null,null,null,null,null,null,null,null,null,null,null,null,"Ethnicity","(All)",null,null,null,null,null,null,null,null,null,null,null,null,null,null,null,null,"Ethnicity","(All)",null,null,null,null,null,null,null,null,null,null,null,null,null,null,null,null,"Ethnicity","(All)"]
[0,"Grand Total","Grand Total",null,null,null,null,null,"Age","(All)",null,null,null,null,null,null,null,null,null,null,null,null,null,null,null,null,"Age","(All)",null,null,null,null,null,null,null,null,null,null,null,null,null,null,null,null,"Age","(All)",null,null,null,null,null,null,null,null,null,null,null,null,null,null,null,null,"Age","(All)",null,null,null,null,null,null,null,null,null,null,null,null,null,null,null,null,"Age","(All)",null,null,null,null,null,null,null,null,null,null,null,null,null,null,null,null,"Age","(All)",null,null,null,null,null,null,null,null,null,null,null,null,null,null,null,null,"Age","(All)",null,null,null,null,null,null,null,null,null,null,null,null,null,null,null,null,"Age","(All)",null,null,null,null,null,null,null,null,null,null,null,null,null,null,null,null,"Age","(All)",null,null,null,null,null,null,null,null,null,null,null,null,null,null,null,null,"Age","(All)",null,null,null,null,null,null,null,null,null,null,null,null,null,null,null,null,"Age","(All)",null,null,null,null,null,null,null,null,null,null,null,null,null,null,null,null,"Age","(All)",null,null,null,null,null,null,null,null,null,null,null,null,null,null,null,null,"Age","(All)",null,null,null,null,null,null,null,null,null,null,null,null,null,null,null,null,"Age","(All)",null,null,null,null,null,null,null,null,null,null,null,null,null,null,null,null,"Age","(All)",null,null,null,null,null,null,null,null,null,null,null,null,null,null,null,null,"Age","(All)",null,null,null,null,null,null,null,null,null,null,null,null,null,null,null,null,"Age","(All)",null,null,null,null,null,null,null,null,null,null,null,null,null,null,null,null,"Ethnicity","(All)",null,null,null,null,null,null,null,null,null,null,null,null,null,null,null,null,"Age","(All)",null,null,null,null,null,null,null,null,null,null,null,null,null,null,null,null,"Age","(All)",null,null,null,null,null,null,null,null,null,null,null,null,null,null,null,null,"Age","(All)",null,null,null,null,null,null,null,null,null,null,null,null,null,null,null,null,"Age","(All)",null,null,null,null,null,null,null,null,null,null,null,null,null,null,null,null,"Age","(All)",null,null,null,null,null,null,null,null,null,null,null,null,null,null,null,null,"Age","(All)",null,null,null,null,null,null,null,null,null,null,null,null,null,null,null,null,"Age","(All)",null,null,null,null,null,null,null,null,null,null,null,null,null,null,null,null,"Age","(All)",null,null,null,null,null,null,null,null,null,null,null,null,null,null,null,null,"Age","(All)"]
[null,null,null,null,null,null,null,null,null,null,null,null,null,null,null,null,null,null,null,null,null,null,null,null,null,null,null,null,null,null,null,null,null,null,null,null,null,null,null,null,null,null,null,null,null,null,null,null,null,null,null,null,null,null,null,null,null,null,null,null,null,null,null,null,null,null,null,null,null,null,null,null,null,null,null,null,null,null,null,null,null,null,null,null,null,null,null,null,null,null,null,null,null,null,null,null,null,null,null,null,null,null,null,null,null,null,null,null,null,null,null,null,null,null,null,null,null,null,null,null,null,null,null,null,null,null,null,null,null,null,null,null,null,null,null,null,null,null,null,null,null,null,null,null,null,null,null,null,null,null,null,null,null,null,null,null,null,null,null,null,null,null,null,null,null,null,null,null,null,null,null,null,null,null,null,null,null,null,null,null,null,null,null,null,null,null,null,null,null,null,null,null,null,null,null,null,null,null,null,null,null,null,null,null,null,null,null,null,null,null,null,null,null,null,null,null,null,null,null,null,null,null,null,null,null,null,null,null,null,null,null,null,null,null,null,null,null,null,null,null,null,null,null,null,null,null,null,null,null,null,null,null,null,null,null,null,null,null,null,null,null,null,null,null,null,null,null,null,null,null,null,null,null,null,null,null,null,null,null,null,null,null,null,null,null,null,null,null,null,null,null,null,null,null,null,null,null,null,null,null,null,null,null,null,null,null,null,null,null,null,null,null,null,null,"Age","(All)"]
[null,null,null,null,null,null,null,null,"Sum of Q1 y as % of cases audited","Ward",null,null,null,null,null,null,null,null,null,null,null,null,null,null,null,null,"Sum of Q2 % of Q1","Ward",null,null,null,null,null,null,null,null,null,null,null,null,null,null,null,null,"Sum of Q2a % of Q2","Ward",null,null,null,null,null,null,null,null,null,null,null,null,null,null,null,null,"Sum of Q3 % of Q1","Ward",null,null,null,null,null,null,null,null,null,null,null,null,null,null,null,null,"Sum of Q4 % of Q1","Ward",null,null,null,null,null,null,null,null,null,null,null,null,null,null,null,null,"Sum of Q5 % of Q1","Ward",null,null,null,null,null,null,null,null,null,null,null,null,null,null,null,null,"Sum of Q6 % of Q1","Ward",null,null,null,null,null,null,null,null,null,null,null,null,null,null,null,null,"Sum of Q7% of Q1","Ward",null,null,null,null,null,null,null,null,null,null,null,null,null,null,null,null,"Sum of Q8% of Q1","Ward",null,null,null,null,null,null,null,null,null,null,null,null,null,null,null,null,null,"Ward",null,null,null,null,null,null,null,null,null,null,null,null,null,null,null,null,"Sum of Q9 % of Q1","Ward",null,null,null,null,null,null,null,null,null,null,null,null,null,null,null,null,"Sum of Q10 % of Q1","Ward",null,null,null,null,null,null,null,null,null,null,null,null,null,null,null,null,"Sum of Q10a % of Q10","Ward",null,null,null,null,null,null,null,null,null,null,null,null,null,null,null,null,"Sum of Q11 y as % of Q11","Ward",null,null,null,null,null,null,null,null,null,null,null,null,null,null,null,null,"Sum of Q12NotX % of Q1","Ward",null,null,null,null,null,null,null,null,null,null,null,null,null,null,null,null,"Ward","Goal of care A","Goal of care B","Goal of care C","Goal of care D",null,null,null,null,null,null,null,null,null,null,null,null,null,"Sum of Q13 % of Q12B","Ward",null,null,null,null,null,null,null,null,null,null,null,null,null,null,null,null,null,null,null,null,null,null,null,null,null,null,null,null,null,null,null,null,null,null,"Sum of Q15 % of Q12NotX","Ward",null,null,null,null,null,null,null,null,null,null,null,null,null,null,null,null,"Sum of Q16 % of Q1","Ward",null,null,null,null,null,null,null,null,null,null,null,null,null,null,null,null,"Sum of Q16a_12 % of Q16","Ward",null,null,null,null,null,null,null,null,null,null,null,null,null,null,null,null,"Ward","0 to 12 hours ","12 to 24 hours ","24 to 48 hours","48 to 72 hours ","More than 72 hours ",null,null,null,null,null,null,null,null,null,null,null,null,"Sum of Q17 % of Q1","Ward",null,null,null,null,null,null,null,null,null,null,null,null,null,null,null,null,"Sum of Q18 % of Q1","Ward",null,null,null,null,null,null,null,null,null,null,null,null,null,null,null,null,"Sum of Q18a % of Q18","Ward",null,null,null,null,null,null,null,null,null,null,null,null,null,null,null,null,"Sum of Q18b % of Q18a_n","Ward",null,null,null,null,null,null,null,null,null,null,null,null,null,null,null,null,"Ward","Sum of Q18a % of Q18"]
[null,null,null,null,null,null,null,null,"Week starting",0,"Grand Total",null,null,null,null,null,null,null,null,null,null,null,null,null,null,null,"Week starting",0,"Grand Total",null,null,null,null,null,null,null,null,null,null,null,null,null,null,null,"Week starting",0,"Grand Total",null,null,null,null,null,null,null,null,null,null,null,null,null,null,null,"Week starting",0,"Grand Total",null,null,null,null,null,null,null,null,null,null,null,null,null,null,null,"Week starting",0,"Grand Total",null,null,null,null,null,null,null,null,null,null,null,null,null,null,null,"Week starting",0,"Grand Total",null,null,null,null,null,null,null,null,null,null,null,null,null,null,null,"Week starting",0,"Grand Total",null,null,null,null,null,null,null,null,null,null,null,null,null,null,null,"Week starting",0,"Grand Total",null,null,null,null,null,null,null,null,null,null,null,null,null,null,null,"Week starting",0,"Grand Total",null,null,null,null,null,null,null,null,null,null,null,null,null,null,null,"Values",0,"Grand Total",null,null,null,null,null,null,null,null,null,null,null,null,null,null,null,"Week starting",0,"Grand Total",null,null,null,null,null,null,null,null,null,null,null,null,null,null,null,"Week starting",0,"Grand Total",null,null,null,null,null,null,null,null,null,null,null,null,null,null,null,"Week starting",0,"Grand Total",null,null,null,null,null,null,null,null,null,null,null,null,null,null,null,"Week starting",0,"Grand Total",null,null,null,null,null,null,null,null,null,null,null,null,null,null,null,"Week starting",0,"Grand Total",null,null,null,null,null,null,null,null,null,null,null,null,null,null,null,0,{"$error":"#N/A"},{"$error":"#N/A"},{"$error":"#N/A"},{"$error":"#N/A"},null,null,null,null,null,null,null,null,null,null,null,null,null,"Week starting",0,"Grand Total",null,null,null,null,null,null,null,null,null,null,null,null,null,null,null,"Sum of Q14 % of Q12C","Ward",null,null,null,null,null,null,null,null,null,null,null,null,null,null,null,null,"Week starting",0,"Grand Total",null,null,null,null,null,null,null,null,null,null,null,null,null,null,null,"Week starting",0,"Grand Total",null,null,null,null,null,null,null,null,null,null,null,null,null,null,null,"Week starting",0,"Grand Total",null,null,null,null,null,null,null,null,null,null,null,null,null,null,null,0,{"$error":"#N/A"},{"$error":"#N/A"},{"$error":"#N/A"},{"$error":"#N/A"},{"$error":"#N/A"},null,null,null,null,null,null,null,null,null,null,null,null,"Week starting",0,"Grand Total",null,null,null,null,null,null,null,null,null,null,null,null,null,null,null,"Week starting",0,"Grand Total",null,null,null,null,null,null,null,null,null,null,null,null,null,null,null,"Week starting",0,"Grand Total",null,null,null,null,null,null,null,null,null,null,null,null,null,null,null,"Week starting",0,"Grand Total",null,null,null,null,null,null,null,null,null,null,null,null,null,null,null,0,{"$error":"#N/A"}]
[null,null,null,null,null,null,null,null,"00:00:00",{"$error":"#N/A"},{"$error":"#N/A"},null,null,null,null,null,null,null,null,null,null,null,null,null,null,null,"00:00:00",{"$error":"#N/A"},{"$error":"#N/A"},null,null,null,null,null,null,null,null,null,null,null,null,null,null,null,"00:00:00",{"$error":"#N/A"},{"$error":"#N/A"},null,null,null,null,null,null,null,null,null,null,null,null,null,null,null,"00:00:00",{"$error":"#N/A"},{"$error":"#N/A"},null,null,null,null,null,null,null,null,null,null,null,null,null,null,null,"00:00:00",{"$error":"#N/A"},{"$error":"#N/A"},null,null,null,null,null,null,null,null,null,null,null,null,null,null,null,"00:00:00",{"$error":"#N/A"},{"$error":"#N/A"},null,null,null,null,null,null,null,null,null,null,null,null,null,null,null,"00:00:00",{"$error":"#N/A"},{"$error":"#N/A"},null,null,null,null,null,null,null,null,null,null,null,null,null,null,null,"00:00:00",{"$error":"#N/A"},{"$error":"#N/A"},null,null,null,null,null,null,null,null,null,null,null,null,null,null,null,"00:00:00",{"$error":"#N/A"},{"$error":"#N/A"},null,null,null,null,null,null,null,null,null,null,null,null,null,null,null,"Patient's understanding",{"$error":"#N/A"},{"$error":"#N/A"},null,null,null,null,null,null,null,null,null,null,null,null,null,null,null,"00:00:00",null,null,null,null,null,null,null,null,null,null,null,null,null,null,null,null,null,"00:00:00",null,null,null,null,null,null,null,null,null,null,null,null,null,null,null,null,null,"00:00:00",{"$error":"#N/A"},{"$error":"#N/A"},null,null,null,null,null,null,null,null,null,null,null,null,null,null,null,"00:00:00",{"$error":"#N/A"},{"$error":"#N/A"},null,null,null,null,null,null,null,null,null,null,null,null,null,null,null,"00:00:00",{"$error":"#N/A"},{"$error":"#N/A"},null,null,null,null,null,null,null,null,null,null,null,null,null,null,null,"Grand Total",{"$error":"#N/A"},{"$error":"#N/A"},{"$error":"#N/A"},{"$error":"#N/A"},null,null,null,null,null,null,null,null,null,null,null,null,null,"00:00:00",{"$error":"#N/A"},{"$error":"#N/A"},null,null,null,null,null,null,null,null,null,null,null,null,null,null,null,"Week starting",0,"Grand Total",null,null,null,null,null,null,null,null,null,null,null,null,null,null,null,"00:00:00",{"$error":"#N/A"},{"$error":"#N/A"},null,null,null,null,null,null,null,null,null,null,null,null,null,null,null,"00:00:00",{"$error":"#N/A"},{"$error":"#N/A"},null,null,null,null,null,null,null,null,null,null,null,null,null,null,null,"00:00:00",{"$error":"#N/A"},{"$error":"#N/A"},null,null,null,null,null,null,null,null,null,null,null,null,null,null,null,"Grand Total",{"$error":"#N/A"},{"$error":"#N/A"},{"$error":"#N/A"},{"$error":"#N/A"},{"$error":"#N/A"},null,null,null,null,null,null,null,null,null,null,null,null,"00:00:00",{"$error":"#N/A"},{"$error":"#N/A"},null,null,null,null,null,null,null,null,null,null,null,null,null,null,null,"00:00:00",{"$error":"#N/A"},{"$error":"#N/A"},null,null,null,null,null,null,null,null,null,null,null,null,null,null,null,"00:00:00",{"$error":"#N/A"},{"$error":"#N/A"},null,null,null,null,null,null,null,null,null,null,null,null,null,null,null,"00:00:00",{"$error":"#N/A"},{"$error":"#N/A"},null,null,null,null,null,null,null,null,null,null,null,null,null,null,null,"Grand Total",{"$error":"#N/A"}]
[null,null,null,null,null,null,null,null,"1900-01-07",{"$error":"#N/A"},{"$error":"#N/A"},null,null,null,null,null,null,null,null,null,null,null,null,null,null,null,"1900-01-07",{"$error":"#N/A"},{"$error":"#N/A"},null,null,null,null,null,null,null,null,null,null,null,null,null,null,null,"1900-01-07",{"$error":"#N/A"},{"$error":"#N/A"},null,null,null,null,null,null,null,null,null,null,null,null,null,null,null,"1900-01-07",{"$error":"#N/A"},{"$error":"#N/A"},null,null,null,null,null,null,null,null,null,null,null,null,null,null,null,"1900-01-07",{"$error":"#N/A"},{"$error":"#N/A"},null,null,null,null,null,null,null,null,null,null,null,null,null,null,null,"1900-01-07",{"$error":"#N/A"},{"$error":"#N/A"},null,null,null,null,null,null,null,null,null,null,null,null,null,null,null,"1900-01-07",{"$error":"#N/A"},{"$error":"#N/A"},null,null,null,null,null,null,null,null,null,null,null,null,null,null,null,"1900-01-07",{"$error":"#N/A"},{"$error":"#N/A"},null,null,null,null,null,null,null,null,null,null,null,null,null,null,null,"1900-01-07",{"$error":"#N/A"},{"$error":"#N/A"},null,null,null,null,null,null,null,null,null,null,null,null,null,null,null,"What patient wanted to know",{"$error":"#N/A"},{"$error":"#N/A"},null,null,null,null,null,null,null,null,null,null,null,null,null,null,null,"1900-01-07",null,null,null,null,null,null,null,null,null,null,null,null,null,null,null,null,null,"1900-01-07",null,null,null,null,null,null,null,null,null,null,null,null,null,null,null,null,null,"1900-01-07",{"$error":"#N/A"},{"$error":"#N/A"},null,null,null,null,null,null,null,null,null,null,null,null,null,null,null,"1900-01-07",{"$error":"#N/A"},{"$error":"#N/A"},null,null,null,null,null,null,null,null,null,null,null,null,null,null,null,"1900-01-07",{"$error":"#N/A"},{"$error":"#N/A"},null,null,null,null,null,null,null,null,null,null,null,null,null,null,null,null,null,null,null,null,null,null,null,null,null,null,null,null,null,null,null,null,null,"1900-01-07",{"$error":"#N/A"},{"$error":"#N/A"},null,null,null,null,null,null,null,null,null,null,null,null,null,null,null,"00:00:00",{"$error":"#N/A"},{"$error":"#N/A"},null,null,null,null,null,null,null,null,null,null,null,null,null,null,null,"1900-01-07",{"$error":"#N/A"},{"$error":"#N/A"},null,null,null,null,null,null,null,null,null,null,null,null,null,null,null,"1900-01-07",{"$error":"#N/A"},{"$error":"#N/A"},null,null,null,null,null,null,null,null,null,null,null,null,null,null,null,"1900-01-07",{"$error":"#N/A"},{"$error":"#N/A"},null,null,null,null,null,null,null,null,null,null,null,null,null,null,null,null,null,null,null,null,null,null,null,null,null,null,null,null,null,null,null,null,null,"1900-01-07",{"$error":"#N/A"},{"$error":"#N/A"},null,null,null,null,null,null,null,null,null,null,null,null,null,null,null,"1900-01-07",{"$error":"#N/A"},{"$error":"#N/A"},null,null,null,null,null,null,null,null,null,null,null,null,null,null,null,"1900-01-07",{"$error":"#N/A"},{"$error":"#N/A"},null,null,null,null,null,null,null,null,null,null,null,null,null,null,null,"1900-01-07",{"$error":"#N/A"},{"$error":"#N/A"}]
[null,null,null,null,null,null,null,null,"1900-01-14",{"$error":"#N/A"},{"$error":"#N/A"},null,null,null,null,null,null,null,null,null,null,null,null,null,null,null,"1900-01-14",{"$error":"#N/A"},{"$error":"#N/A"},null,null,null,null,null,null,null,null,null,null,null,null,null,null,null,"1900-01-14",{"$error":"#N/A"},{"$error":"#N/A"},null,null,null,null,null,null,null,null,null,null,null,null,null,null,null,"1900-01-14",{"$error":"#N/A"},{"$error":"#N/A"},null,null,null,null,null,null,null,null,null,null,null,null,null,null,null,"1900-01-14",{"$error":"#N/A"},{"$error":"#N/A"},null,null,null,null,null,null,null,null,null,null,null,null,null,null,null,"1900-01-14",{"$error":"#N/A"},{"$error":"#N/A"},null,null,null,null,null,null,null,null,null,null,null,null,null,null,null,"1900-01-14",{"$error":"#N/A"},{"$error":"#N/A"},null,null,null,null,null,null,null,null,null,null,null,null,null,null,null,"1900-01-14",{"$error":"#N/A"},{"$error":"#N/A"},null,null,null,null,null,null,null,null,null,null,null,null,null,null,null,"1900-01-14",{"$error":"#N/A"},{"$error":"#N/A"},null,null,null,null,null,null,null,null,null,null,null,null,null,null,null,"Clinician's understanding",{"$error":"#N/A"},{"$error":"#N/A"},null,null,null,null,null,null,null,null,null,null,null,null,null,null,null,"1900-01-14",null,null,null,null,null,null,null,null,null,null,null,null,null,null,null,null,null,"1900-01-14",null,null,null,null,null,null,null,null,null,null,null,null,null,null,null,null,null,"1900-01-14",{"$error":"#N/A"},{"$error":"#N/A"},null,null,null,null,null,null,null,null,null,null,null,null,null,null,null,"1900-01-14",{"$error":"#N/A"},{"$error":"#N/A"},null,null,null,null,null,null,null,null,null,null,null,null,null,null,null,"1900-01-14",{"$error":"#N/A"},{"$error":"#N/A"},null,null,null,null,null,null,null,null,null,null,null,null,null,null,null,null,null,null,null,null,null,null,null,null,null,null,null,null,null,null,null,null,null,"1900-01-14",{"$error":"#N/A"},{"$error":"#N/A"},null,null,null,null,null,null,null,null,null,null,null,null,null,null,null,"1900-01-07",{"$error":"#N/A"},{"$error":"#N/A"},null,null,null,null,null,null,null,null,null,null,null,null,null,null,null,"1900-01-14",{"$error":"#N/A"},{"$error":"#N/A"},null,null,null,null,null,null,null,null,null,null,null,null,null,null,null,"1900-01-14",{"$error":"#N/A"},{"$error":"#N/A"},null,null,null,null,null,null,null,null,null,null,null,null,null,null,null,"1900-01-14",{"$error":"#N/A"},{"$error":"#N/A"},null,null,null,null,null,null,null,null,null,null,null,null,null,null,null,null,null,null,null,null,null,null,null,null,null,null,null,null,null,null,null,null,null,"1900-01-14",{"$error":"#N/A"},{"$error":"#N/A"},null,null,null,null,null,null,null,null,null,null,null,null,null,null,null,"1900-01-14",{"$error":"#N/A"},{"$error":"#N/A"},null,null,null,null,null,null,null,null,null,null,null,null,null,null,null,"1900-01-14",{"$error":"#N/A"},{"$error":"#N/A"},null,null,null,null,null,null,null,null,null,null,null,null,null,null,null,"1900-01-14",{"$error":"#N/A"},{"$error":"#N/A"}]
[null,null,null,null,null,null,null,null,"1900-01-21",{"$error":"#N/A"},{"$error":"#N/A"},null,null,null,null,null,null,null,null,null,null,null,null,null,null,null,"1900-01-21",{"$error":"#N/A"},{"$error":"#N/A"},null,null,null,null,null,null,null,null,null,null,null,null,null,null,null,"1900-01-21",{"$error":"#N/A"},{"$error":"#N/A"},null,null,null,null,null,null,null,null,null,null,null,null,null,null,null,"1900-01-21",{"$error":"#N/A"},{"$error":"#N/A"},null,null,null,null,null,null,null,null,null,null,null,null,null,null,null,"1900-01-21",{"$error":"#N/A"},{"$error":"#N/A"},null,null,null,null,null,null,null,null,null,null,null,null,null,null,null,"1900-01-21",{"$error":"#N/A"},{"$error":"#N/A"},null,null,null,null,null,null,null,null,null,null,null,null,null,null,null,"1900-01-21",{"$error":"#N/A"},{"$error":"#N/A"},null,null,null,null,null,null,null,null,null,null,null,null,null,null,null,"1900-01-21",{"$error":"#N/A"},{"$error":"#N/A"},null,null,null,null,null,null,null,null,null,null,null,null,null,null,null,"1900-01-21",{"$error":"#N/A"},{"$error":"#N/A"},null,null,null,null,null,null,null,null,null,null,null,null,null,null,null,"Patient's values",{"$error":"#N/A"},{"$error":"#N/A"},null,null,null,null,null,null,null,null,null,null,null,null,null,null,null,"1900-01-21",null,null,null,null,null,null,null,null,null,null,null,null,null,null,null,null,null,"1900-01-21",null,null,null,null,null,null,null,null,null,null,null,null,null,null,null,null,null,"1900-01-21",{"$error":"#N/A"},{"$error":"#N/A"},null,null,null,null,null,null,null,null,null,null,null,null,null,null,null,"1900-01-21",{"$error":"#N/A"},{"$error":"#N/A"},null,null,null,null,null,null,null,null,null,null,null,null,null,null,null,"1900-01-21",{"$error":"#N/A"},{"$error":"#N/A"},null,null,null,null,null,null,null,null,null,null,null,null,null,null,null,null,null,null,null,null,null,null,null,null,null,null,null,null,null,null,null,null,null,"1900-01-21",{"$error":"#N/A"},{"$error":"#N/A"},null,null,null,null,null,null,null,null,null,null,null,null,null,null,null,"1900-01-14",{"$error":"#N/A"},{"$error":"#N/A"},null,null,null,null,null,null,null,null,null,null,null,null,null,null,null,"1900-01-21",{"$error":"#N/A"},{"$error":"#N/A"},null,null,null,null,null,null,null,null,null,null,null,null,null,null,null,"1900-01-21",{"$error":"#N/A"},{"$error":"#N/A"},null,null,null,null,null,null,null,null,null,null,null,null,null,null,null,"1900-01-21",{"$error":"#N/A"},{"$error":"#N/A"},null,null,null,null,null,null,null,null,null,null,null,null,null,null,null,null,null,null,null,null,null,null,null,null,null,null,null,null,null,null,null,null,null,"1900-01-21",{"$error":"#N/A"},{"$error":"#N/A"},null,null,null,null,null,null,null,null,null,null,null,null,null,null,null,"1900-01-21",{"$error":"#N/A"},{"$error":"#N/A"},null,null,null,null,null,null,null,null,null,null,null,null,null,null,null,"1900-01-21",{"$error":"#N/A"},{"$error":"#N/A"},null,null,null,null,null,null,null,null,null,null,null,null,null,null,null,"1900-01-21",{"$error":"#N/A"},{"$error":"#N/A"}]
[null,null,null,null,null,null,null,null,"1900-01-28",{"$error":"#N/A"},{"$error":"#N/A"},null,null,null,null,null,null,null,null,null,null,null,null,null,null,null,"1900-01-28",{"$error":"#N/A"},{"$error":"#N/A"},null,null,null,null,null,null,null,null,null,null,null,null,null,null,null,"1900-01-28",{"$error":"#N/A"},{"$error":"#N/A"},null,null,null,null,null,null,null,null,null,null,null,null,null,null,null,"1900-01-28",{"$error":"#N/A"},{"$error":"#N/A"},null,null,null,null,null,null,null,null,null,null,null,null,null,null,null,"1900-01-28",{"$error":"#N/A"},{"$error":"#N/A"},null,null,null,null,null,null,null,null,null,null,null,null,null,null,null,"1900-01-28",{"$error":"#N/A"},{"$error":"#N/A"},null,null,null,null,null,null,null,null,null,null,null,null,null,null,null,"1900-01-28",{"$error":"#N/A"},{"$error":"#N/A"},null,null,null,null,null,null,null,null,null,null,null,null,null,null,null,"1900-01-28",{"$error":"#N/A"},{"$error":"#N/A"},null,null,null,null,null,null,null,null,null,null,null,null,null,null,null,"1900-01-28",{"$error":"#N/A"},{"$error":"#N/A"},null,null,null,null,null,null,null,null,null,null,null,null,null,null,null,null,null,null,null,null,null,null,null,null,null,null,null,null,null,null,null,null,null,"1900-01-28",null,null,null,null,null,null,null,null,null,null,null,null,null,null,null,null,null,"1900-01-28",null,null,null,null,null,null,null,null,null,null,null,null,null,null,null,null,null,"1900-01-28",{"$error":"#N/A"},{"$error":"#N/A"},null,null,null,null,null,null,null,null,null,null,null,null,null,null,null,"1900-01-28",{"$error":"#N/A"},{"$error":"#N/A"},null,null,null,null,null,null,null,null,null,null,null,null,null,null,null,"1900-01-28",{"$error":"#N/A"},{"$error":"#N/A"},null,null,null,null,null,null,null,null,null,null,null,null,null,null,null,null,null,null,null,null,null,null,null,null,null,null,null,null,null,null,null,null,null,"1900-01-28",{"$error":"#N/A"},{"$error":"#N/A"},null,null,null,null,null,null,null,null,null,null,null,null,null,null,null,"1900-01-21",{"$error":"#N/A"},{"$error":"#N/A"},null,null,null,null,null,null,null,null,null,null,null,null,null,null,null,"1900-01-28",{"$error":"#N/A"},{"$error":"#N/A"},null,null,null,null,null,null,null,null,null,null,null,null,null,null,null,"1900-01-28",{"$error":"#N/A"},{"$error":"#N/A"},null,null,null,null,null,null,null,null,null,null,null,null,null,null,null,"1900-01-28",{"$error":"#N/A"},{"$error":"#N/A"},null,null,null,null,null,null,null,null,null,null,null,null,null,null,null,null,null,null,null,null,null,null,null,null,null,null,null,null,null,null,null,null,null,"1900-01-28",{"$error":"#N/A"},{"$error":"#N/A"},null,null,null,null,null,null,null,null,null,null,null,null,null,null,null,"1900-01-28",{"$error":"#N/A"},{"$error":"#N/A"},null,null,null,null,null,null,null,null,null,null,null,null,null,null,null,"1900-01-28",{"$error":"#N/A"},{"$error":"#N/A"},null,null,null,null,null,null,null,null,null,null,null,null,null,null,null,"1900-01-28",{"$error":"#N/A"},{"$error":"#N/A"}]
[null,null,null,null,null,null,null,null,"1900-02-04",{"$error":"#N/A"},{"$error":"#N/A"},null,null,null,null,null,null,null,null,null,null,null,null,null,null,null,"1900-02-04",{"$error":"#N/A"},{"$error":"#N/A"},null,null,null,null,null,null,null,null,null,null,null,null,null,null,null,"1900-02-04",{"$error":"#N/A"},{"$error":"#N/A"},null,null,null,null,null,null,null,null,null,null,null,null,null,null,null,"1900-02-04",{"$error":"#N/A"},{"$error":"#N/A"},null,null,null,null,null,null,null,null,null,null,null,null,null,null,null,"1900-02-04",{"$error":"#N/A"},{"$error":"#N/A"},null,null,null,null,null,null,null,null,null,null,null,null,null,null,null,"1900-02-04",{"$error":"#N/A"},{"$error":"#N/A"},null,null,null,null,null,null,null,null,null,null,null,null,null,null,null,"1900-02-04",{"$error":"#N/A"},{"$error":"#N/A"},null,null,null,null,null,null,null,null,null,null,null,null,null,null,null,"1900-02-04",{"$error":"#N/A"},{"$error":"#N/A"},null,null,null,null,null,null,null,null,null,null,null,null,null,null,null,"1900-02-04",{"$error":"#N/A"},{"$error":"#N/A"},null,null,null,null,null,null,null,null,null,null,null,null,null,null,null,null,null,null,null,null,null,null,null,null,null,null,null,null,null,null,null,null,null,"1900-02-04",null,null,null,null,null,null,null,null,null,null,null,null,null,null,null,null,null,"1900-02-04",null,null,null,null,null,null,null,null,null,null,null,null,null,null,null,null,null,"1900-02-04",{"$error":"#N/A"},{"$error":"#N/A"},null,null,null,null,null,null,null,null,null,null,null,null,null,null,null,"1900-02-04",{"$error":"#N/A"},{"$error":"#N/A"},null,null,null,null,null,null,null,null,null,null,null,null,null,null,null,"1900-02-04",{"$error":"#N/A"},{"$error":"#N/A"},null,null,null,null,null,null,null,null,null,null,null,null,null,null,null,null,null,null,null,null,null,null,null,null,null,null,null,null,null,null,null,null,null,"1900-02-04",{"$error":"#N/A"},{"$error":"#N/A"},null,null,null,null,null,null,null,null,null,null,null,null,null,null,null,"1900-01-28",{"$error":"#N/A"},{"$error":"#N/A"},null,null,null,null,null,null,null,null,null,null,null,null,null,null,null,"1900-02-04",{"$error":"#N/A"},{"$error":"#N/A"},null,null,null,null,null,null,null,null,null,null,null,null,null,null,null,"1900-02-04",{"$error":"#N/A"},{"$error":"#N/A"},null,null,null,null,null,null,null,null,null,null,null,null,null,null,null,"1900-02-04",{"$error":"#N/A"},{"$error":"#N/A"},null,null,null,null,null,null,null,null,null,null,null,null,null,null,null,null,null,null,null,null,null,null,null,null,null,null,null,null,null,null,null,null,null,"1900-02-04",{"$error":"#N/A"},{"$error":"#N/A"},null,null,null,null,null,null,null,null,null,null,null,null,null,null,null,"1900-02-04",{"$error":"#N/A"},{"$error":"#N/A"},null,null,null,null,null,null,null,null,null,null,null,null,null,null,null,"1900-02-04",{"$error":"#N/A"},{"$error":"#N/A"},null,null,null,null,null,null,null,null,null,null,null,null,null,null,null,"1900-02-04",{"$error":"#N/A"},{"$error":"#N/A"}]
[null,null,null,null,null,null,null,null,"1900-02-11",{"$error":"#N/A"},{"$error":"#N/A"},null,null,null,null,null,null,null,null,null,null,null,null,null,null,null,"1900-02-11",{"$error":"#N/A"},{"$error":"#N/A"},null,null,null,null,null,null,null,null,null,null,null,null,null,null,null,"1900-02-11",{"$error":"#N/A"},{"$error":"#N/A"},null,null,null,null,null,null,null,null,null,null,null,null,null,null,null,"1900-02-11",{"$error":"#N/A"},{"$error":"#N/A"},null,null,null,null,null,null,null,null,null,null,null,null,null,null,null,"1900-02-11",{"$error":"#N/A"},{"$error":"#N/A"},null,null,null,null,null,null,null,null,null,null,null,null,null,null,null,"1900-02-11",{"$error":"#N/A"},{"$error":"#N/A"},null,null,null,null,null,null,null,null,null,null,null,null,null,null,null,"1900-02-11",{"$error":"#N/A"},{"$error":"#N/A"},null,null,null,null,null,null,null,null,null,null,null,null,null,null,null,"1900-02-11",{"$error":"#N/A"},{"$error":"#N/A"},null,null,null,null,null,null,null,null,null,null,null,null,null,null,null,"1900-02-11",{"$error":"#N/A"},{"$error":"#N/A"},null,null,null,null,null,null,null,null,null,null,null,null,null,null,null,null,null,null,null,null,null,null,null,null,null,null,null,null,null,null,null,null,null,"1900-02-11",null,null,null,null,null,null,null,null,null,null,null,null,null,null,null,null,null,"1900-02-11",null,null,null,null,null,null,null,null,null,null,null,null,null,null,null,null,null,"1900-02-11",{"$error":"#N/A"},{"$error":"#N/A"},null,null,null,null,null,null,null,null,null,null,null,null,null,null,null,"1900-02-11",{"$error":"#N/A"},{"$error":"#N/A"},null,null,null,null,null,null,null,null,null,null,null,null,null,null,null,"1900-02-11",{"$error":"#N/A"},{"$error":"#N/A"},null,null,null,null,null,null,null,null,null,null,null,null,null,null,null,null,null,null,null,null,null,null,null,null,null,null,null,null,null,null,null,null,null,"1900-02-11",{"$error":"#N/A"},{"$error":"#N/A"},null,null,null,null,null,null,null,null,null,null,null,null,null,null,null,"1900-02-04",{"$error":"#N/A"},{"$error":"#N/A"},null,null,null,null,null,null,null,null,null,null,null,null,null,null,null,"1900-02-11",{"$error":"#N/A"},{"$error":"#N/A"},null,null,null,null,null,null,null,null,null,null,null,null,null,null,null,"1900-02-11",{"$error":"#N/A"},{"$error":"#N/A"},null,null,null,null,null,null,null,null,null,null,null,null,null,null,null,"1900-02-11",{"$error":"#N/A"},{"$error":"#N/A"},null,null,null,null,null,null,null,null,null,null,null,null,null,null,null,null,null,null,null,null,null,null,null,null,null,null,null,null,null,null,null,null,null,"1900-02-11",{"$error":"#N/A"},{"$error":"#N/A"},null,null,null,null,null,null,null,null,null,null,null,null,null,null,null,"1900-02-11",{"$error":"#N/A"},{"$error":"#N/A"},null,null,null,null,null,null,null,null,null,null,null,null,null,null,null,"1900-02-11",{"$error":"#N/A"},{"$error":"#N/A"},null,null,null,null,null,null,null,null,null,null,null,null,null,null,null,"1900-02-11",{"$error":"#N/A"},{"$error":"#N/A"}]
[null,null,null,null,null,null,null,null,"1900-02-18",{"$error":"#N/A"},{"$error":"#N/A"},null,null,null,null,null,null,null,null,null,null,null,null,null,null,null,"1900-02-18",{"$error":"#N/A"},{"$error":"#N/A"},null,null,null,null,null,null,null,null,null,null,null,null,null,null,null,"1900-02-18",{"$error":"#N/A"},{"$error":"#N/A"},null,null,null,null,null,null,null,null,null,null,null,null,null,null,null,"1900-02-18",{"$error":"#N/A"},{"$error":"#N/A"},null,null,null,null,null,null,null,null,null,null,null,null,null,null,null,"1900-02-18",{"$error":"#N/A"},{"$error":"#N/A"},null,null,null,null,null,null,null,null,null,null,null,null,null,null,null,"1900-02-18",{"$error":"#N/A"},{"$error":"#N/A"},null,null,null,null,null,null,null,null,null,null,null,null,null,null,null,"1900-02-18",{"$error":"#N/A"},{"$error":"#N/A"},null,null,null,null,null,null,null,null,null,null,null,null,null,null,null,"1900-02-18",{"$error":"#N/A"},{"$error":"#N/A"},null,null,null,null,null,null,null,null,null,null,null,null,null,null,null,"1900-02-18",{"$error":"#N/A"},{"$error":"#N/A"},null,null,null,null,null,null,null,null,null,null,null,null,null,null,null,null,null,null,null,null,null,null,null,null,null,null,null,null,null,null,null,null,null,"1900-02-18",null,null,null,null,null,null,null,null,null,null,null,null,null,null,null,null,null,"1900-02-18",null,null,null,null,null,null,null,null,null,null,null,null,null,null,null,null,null,"1900-02-18",{"$error":"#N/A"},{"$error":"#N/A"},null,null,null,null,null,null,null,null,null,null,null,null,null,null,null,"1900-02-18",{"$error":"#N/A"},{"$error":"#N/A"},null,null,null,null,null,null,null,null,null,null,null,null,null,null,null,"1900-02-18",{"$error":"#N/A"},{"$error":"#N/A"},null,null,null,null,null,null,null,null,null,null,null,null,null,null,null,null,null,null,null,null,null,null,null,null,null,null,null,null,null,null,null,null,null,"1900-02-18",{"$error":"#N/A"},{"$error":"#N/A"},null,null,null,null,null,null,null,null,null,null,null,null,null,null,null,"1900-02-11",{"$error":"#N/A"},{"$error":"#N/A"},null,null,null,null,null,null,null,null,null,null,null,null,null,null,null,"1900-02-18",{"$error":"#N/A"},{"$error":"#N/A"},null,null,null,null,null,null,null,null,null,null,null,null,null,null,null,"1900-02-18",{"$error":"#N/A"},{"$error":"#N/A"},null,null,null,null,null,null,null,null,null,null,null,null,null,null,null,"1900-02-18",{"$error":"#N/A"},{"$error":"#N/A"},null,null,null,null,null,null,null,null,null,null,null,null,null,null,null,null,null,null,null,null,null,null,null,null,null,null,null,null,null,null,null,null,null,"1900-02-18",{"$error":"#N/A"},{"$error":"#N/A"},null,null,null,null,null,null,null,null,null,null,null,null,null,null,null,"1900-02-18",{"$error":"#N/A"},{"$error":"#N/A"},null,null,null,null,null,null,null,null,null,null,null,null,null,null,null,"1900-02-18",{"$error":"#N/A"},{"$error":"#N/A"},null,null,null,null,null,null,null,null,null,null,null,null,null,null,null,"1900-02-18",{"$error":"#N/A"},{"$error":"#N/A"}]
[null,null,null,null,null,null,null,null,"1900-02-25",{"$error":"#N/A"},{"$error":"#N/A"},null,null,null,null,null,null,null,null,null,null,null,null,null,null,null,"1900-02-25",{"$error":"#N/A"},{"$error":"#N/A"},null,null,null,null,null,null,null,null,null,null,null,null,null,null,null,"1900-02-25",{"$error":"#N/A"},{"$error":"#N/A"},null,null,null,null,null,null,null,null,null,null,null,null,null,null,null,"1900-02-25",{"$error":"#N/A"},{"$error":"#N/A"},null,null,null,null,null,null,null,null,null,null,null,null,null,null,null,"1900-02-25",{"$error":"#N/A"},{"$error":"#N/A"},null,null,null,null,null,null,null,null,null,null,null,null,null,null,null,"1900-02-25",{"$error":"#N/A"},{"$error":"#N/A"},null,null,null,null,null,null,null,null,null,null,null,null,null,null,null,"1900-02-25",{"$error":"#N/A"},{"$error":"#N/A"},null,null,null,null,null,null,null,null,null,null,null,null,null,null,null,"1900-02-25",{"$error":"#N/A"},{"$error":"#N/A"},null,null,null,null,null,null,null,null,null,null,null,null,null,null,null,"1900-02-25",{"$error":"#N/A"},{"$error":"#N/A"},null,null,null,null,null,null,null,null,null,null,null,null,null,null,null,null,null,null,null,null,null,null,null,null,null,null,null,null,null,null,null,null,null,"1900-02-25",null,null,null,null,null,null,null,null,null,null,null,null,null,null,null,null,null,"1900-02-25",null,null,null,null,null,null,null,null,null,null,null,null,null,null,null,null,null,"1900-02-25",{"$error":"#N/A"},{"$error":"#N/A"},null,null,null,null,null,null,null,null,null,null,null,null,null,null,null,"1900-02-25",{"$error":"#N/A"},{"$error":"#N/A"},null,null,null,null,null,null,null,null,null,null,null,null,null,null,null,"1900-02-25",{"$error":"#N/A"},{"$error":"#N/A"},null,null,null,null,null,null,null,null,null,null,null,null,null,null,null,null,null,null,null,null,null,null,null,null,null,null,null,null,null,null,null,null,null,"1900-02-25",{"$error":"#N/A"},{"$error":"#N/A"},null,null,null,null,null,null,null,null,null,null,null,null,null,null,null,"1900-02-18",{"$error":"#N/A"},{"$error":"#N/A"},null,null,null,null,null,null,null,null,null,null,null,null,null,null,null,"1900-02-25",{"$error":"#N/A"},{"$error":"#N/A"},null,null,null,null,null,null,null,null,null,null,null,null,null,null,null,"1900-02-25",{"$error":"#N/A"},{"$error":"#N/A"},null,null,null,null,null,null,null,null,null,null,null,null,null,null,null,"1900-02-25",{"$error":"#N/A"},{"$error":"#N/A"},null,null,null,null,null,null,null,null,null,null,null,null,null,null,null,null,null,null,null,null,null,null,null,null,null,null,null,null,null,null,null,null,null,"1900-02-25",{"$error":"#N/A"},{"$error":"#N/A"},null,null,null,null,null,null,null,null,null,null,null,null,null,null,null,"1900-02-25",{"$error":"#N/A"},{"$error":"#N/A"},null,null,null,null,null,null,null,null,null,null,null,null,null,null,null,"1900-02-25",{"$error":"#N/A"},{"$error":"#N/A"},null,null,null,null,null,null,null,null,null,null,null,null,null,null,null,"1900-02-25",{"$error":"#N/A"},{"$error":"#N/A"}]
[null,null,null,null,null,null,null,null,"1900-03-03",{"$error":"#N/A"},{"$error":"#N/A"},null,null,null,null,null,null,null,null,null,null,null,null,null,null,null,"1900-03-03",{"$error":"#N/A"},{"$error":"#N/A"},null,null,null,null,null,null,null,null,null,null,null,null,null,null,null,"1900-03-03",{"$error":"#N/A"},{"$error":"#N/A"},null,null,null,null,null,null,null,null,null,null,null,null,null,null,null,"1900-03-03",{"$error":"#N/A"},{"$error":"#N/A"},null,null,null,null,null,null,null,null,null,null,null,null,null,null,null,"1900-03-03",{"$error":"#N/A"},{"$error":"#N/A"},null,null,null,null,null,null,null,null,null,null,null,null,null,null,null,"1900-03-03",{"$error":"#N/A"},{"$error":"#N/A"},null,null,null,null,null,null,null,null,null,null,null,null,null,null,null,"1900-03-03",{"$error":"#N/A"},{"$error":"#N/A"},null,null,null,null,null,null,null,null,null,null,null,null,null,null,null,"1900-03-03",{"$error":"#N/A"},{"$error":"#N/A"},null,null,null,null,null,null,null,null,null,null,null,null,null,null,null,"1900-03-03",{"$error":"#N/A"},{"$error":"#N/A"},null,null,null,null,null,null,null,null,null,null,null,null,null,null,null,null,null,null,null,null,null,null,null,null,null,null,null,null,null,null,null,null,null,"1900-03-03",null,null,null,null,null,null,null,null,null,null,null,null,null,null,null,null,null,"1900-03-03",null,null,null,null,null,null,null,null,null,null,null,null,null,null,null,null,null,"1900-03-03",{"$error":"#N/A"},{"$error":"#N/A"},null,null,null,null,null,null,null,null,null,null,null,null,null,null,null,"1900-03-03",{"$error":"#N/A"},{"$error":"#N/A"},null,null,null,null,null,null,null,null,null,null,null,null,null,null,null,"1900-03-03",{"$error":"#N/A"},{"$error":"#N/A"},null,null,null,null,null,null,null,null,null,null,null,null,null,null,null,null,null,null,null,null,null,null,null,null,null,null,null,null,null,null,null,null,null,"1900-03-03",{"$error":"#N/A"},{"$error":"#N/A"},null,null,null,null,null,null,null,null,null,null,null,null,null,null,null,"1900-02-25",{"$error":"#N/A"},{"$error":"#N/A"},null,null,null,null,null,null,null,null,null,null,null,null,null,null,null,"1900-03-03",{"$error":"#N/A"},{"$error":"#N/A"},null,null,null,null,null,null,null,null,null,null,null,null,null,null,null,"1900-03-03",{"$error":"#N/A"},{"$error":"#N/A"},null,null,null,null,null,null,null,null,null,null,null,null,null,null,null,"1900-03-03",{"$error":"#N/A"},{"$error":"#N/A"},null,null,null,null,null,null,null,null,null,null,null,null,null,null,null,null,null,null,null,null,null,null,null,null,null,null,null,null,null,null,null,null,null,"1900-03-03",{"$error":"#N/A"},{"$error":"#N/A"},null,null,null,null,null,null,null,null,null,null,null,null,null,null,null,"1900-03-03",{"$error":"#N/A"},{"$error":"#N/A"},null,null,null,null,null,null,null,null,null,null,null,null,null,null,null,"1900-03-03",{"$error":"#N/A"},{"$error":"#N/A"},null,null,null,null,null,null,null,null,null,null,null,null,null,null,null,"1900-03-03",{"$error":"#N/A"},{"$error":"#N/A"}]
[null,null,null,null,null,null,null,null,"1900-03-10",{"$error":"#N/A"},{"$error":"#N/A"},null,null,null,null,null,null,null,null,null,null,null,null,null,null,null,"1900-03-10",{"$error":"#N/A"},{"$error":"#N/A"},null,null,null,null,null,null,null,null,null,null,null,null,null,null,null,"1900-03-10",{"$error":"#N/A"},{"$error":"#N/A"},null,null,null,null,null,null,null,null,null,null,null,null,null,null,null,"1900-03-10",{"$error":"#N/A"},{"$error":"#N/A"},null,null,null,null,null,null,null,null,null,null,null,null,null,null,null,"1900-03-10",{"$error":"#N/A"},{"$error":"#N/A"},null,null,null,null,null,null,null,null,null,null,null,null,null,null,null,"1900-03-10",{"$error":"#N/A"},{"$error":"#N/A"},null,null,null,null,null,null,null,null,null,null,null,null,null,null,null,"1900-03-10",{"$error":"#N/A"},{"$error":"#N/A"},null,null,null,null,null,null,null,null,null,null,null,null,null,null,null,"1900-03-10",{"$error":"#N/A"},{"$error":"#N/A"},null,null,null,null,null,null,null,null,null,null,null,null,null,null,null,"1900-03-10",{"$error":"#N/A"},{"$error":"#N/A"},null,null,null,null,null,null,null,null,null,null,null,null,null,null,null,null,null,null,null,null,null,null,null,null,null,null,null,null,null,null,null,null,null,"1900-03-10",null,null,null,null,null,null,null,null,null,null,null,null,null,null,null,null,null,"1900-03-10",null,null,null,null,null,null,null,null,null,null,null,null,null,null,null,null,null,"1900-03-10",{"$error":"#N/A"},{"$error":"#N/A"},null,null,null,null,null,null,null,null,null,null,null,null,null,null,null,"1900-03-10",{"$error":"#N/A"},{"$error":"#N/A"},null,null,null,null,null,null,null,null,null,null,null,null,null,null,null,"1900-03-10",{"$error":"#N/A"},{"$error":"#N/A"},null,null,null,null,null,null,null,null,null,null,null,null,null,null,null,null,null,null,null,null,null,null,null,null,null,null,null,null,null,null,null,null,null,"1900-03-10",{"$error":"#N/A"},{"$error":"#N/A"},null,null,null,null,null,null,null,null,null,null,null,null,null,null,null,"1900-03-03",{"$error":"#N/A"},{"$error":"#N/A"},null,null,null,null,null,null,null,null,null,null,null,null,null,null,null,"1900-03-10",{"$error":"#N/A"},{"$error":"#N/A"},null,null,null,null,null,null,null,null,null,null,null,null,null,null,null,"1900-03-10",{"$error":"#N/A"},{"$error":"#N/A"},null,null,null,null,null,null,null,null,null,null,null,null,null,null,null,"1900-03-10",{"$error":"#N/A"},{"$error":"#N/A"},null,null,null,null,null,null,null,null,null,null,null,null,null,null,null,null,null,null,null,null,null,null,null,null,null,null,null,null,null,null,null,null,null,"1900-03-10",{"$error":"#N/A"},{"$error":"#N/A"},null,null,null,null,null,null,null,null,null,null,null,null,null,null,null,"1900-03-10",{"$error":"#N/A"},{"$error":"#N/A"},null,null,null,null,null,null,null,null,null,null,null,null,null,null,null,"1900-03-10",{"$error":"#N/A"},{"$error":"#N/A"},null,null,null,null,null,null,null,null,null,null,null,null,null,null,null,"1900-03-10",{"$error":"#N/A"},{"$error":"#N/A"}]
[null,null,null,null,null,null,null,null,"1900-03-17",{"$error":"#N/A"},{"$error":"#N/A"},null,null,null,null,null,null,null,null,null,null,null,null,null,null,null,"1900-03-17",{"$error":"#N/A"},{"$error":"#N/A"},null,null,null,null,null,null,null,null,null,null,null,null,null,null,null,"1900-03-17",{"$error":"#N/A"},{"$error":"#N/A"},null,null,null,null,null,null,null,null,null,null,null,null,null,null,null,"1900-03-17",{"$error":"#N/A"},{"$error":"#N/A"},null,null,null,null,null,null,null,null,null,null,null,null,null,null,null,"1900-03-17",{"$error":"#N/A"},{"$error":"#N/A"},null,null,null,null,null,null,null,null,null,null,null,null,null,null,null,"1900-03-17",{"$error":"#N/A"},{"$error":"#N/A"},null,null,null,null,null,null,null,null,null,null,null,null,null,null,null,"1900-03-17",{"$error":"#N/A"},{"$error":"#N/A"},null,null,null,null,null,null,null,null,null,null,null,null,null,null,null,"1900-03-17",{"$error":"#N/A"},{"$error":"#N/A"},null,null,null,null,null,null,null,null,null,null,null,null,null,null,null,"1900-03-17",{"$error":"#N/A"},{"$error":"#N/A"},null,null,null,null,null,null,null,null,null,null,null,null,null,null,null,null,null,null,null,null,null,null,null,null,null,null,null,null,null,null,null,null,null,"1900-03-17",null,null,null,null,null,null,null,null,null,null,null,null,null,null,null,null,null,"1900-03-17",null,null,null,null,null,null,null,null,null,null,null,null,null,null,null,null,null,"1900-03-17",{"$error":"#N/A"},{"$error":"#N/A"},null,null,null,null,null,null,null,null,null,null,null,null,null,null,null,"1900-03-17",{"$error":"#N/A"},{"$error":"#N/A"},null,null,null,null,null,null,null,null,null,null,null,null,null,null,null,"1900-03-17",{"$error":"#N/A"},{"$error":"#N/A"},null,null,null,null,null,null,null,null,null,null,null,null,null,null,null,null,null,null,null,null,null,null,null,null,null,null,null,null,null,null,null,null,null,"1900-03-17",{"$error":"#N/A"},{"$error":"#N/A"},null,null,null,null,null,null,null,null,null,null,null,null,null,null,null,"1900-03-10",{"$error":"#N/A"},{"$error":"#N/A"},null,null,null,null,null,null,null,null,null,null,null,null,null,null,null,"1900-03-17",{"$error":"#N/A"},{"$error":"#N/A"},null,null,null,null,null,null,null,null,null,null,null,null,null,null,null,"1900-03-17",{"$error":"#N/A"},{"$error":"#N/A"},null,null,null,null,null,null,null,null,null,null,null,null,null,null,null,"1900-03-17",{"$error":"#N/A"},{"$error":"#N/A"},null,null,null,null,null,null,null,null,null,null,null,null,null,null,null,null,null,null,null,null,null,null,null,null,null,null,null,null,null,null,null,null,null,"1900-03-17",{"$error":"#N/A"},{"$error":"#N/A"},null,null,null,null,null,null,null,null,null,null,null,null,null,null,null,"1900-03-17",{"$error":"#N/A"},{"$error":"#N/A"},null,null,null,null,null,null,null,null,null,null,null,null,null,null,null,"1900-03-17",{"$error":"#N/A"},{"$error":"#N/A"},null,null,null,null,null,null,null,null,null,null,null,null,null,null,null,"1900-03-17",{"$error":"#N/A"},{"$error":"#N/A"}]
[null,null,null,null,null,null,null,null,"1900-03-24",{"$error":"#N/A"},{"$error":"#N/A"},null,null,null,null,null,null,null,null,null,null,null,null,null,null,null,"1900-03-24",{"$error":"#N/A"},{"$error":"#N/A"},null,null,null,null,null,null,null,null,null,null,null,null,null,null,null,"1900-03-24",{"$error":"#N/A"},{"$error":"#N/A"},null,null,null,null,null,null,null,null,null,null,null,null,null,null,null,"1900-03-24",{"$error":"#N/A"},{"$error":"#N/A"},null,null,null,null,null,null,null,null,null,null,null,null,null,null,null,"1900-03-24",{"$error":"#N/A"},{"$error":"#N/A"},null,null,null,null,null,null,null,null,null,null,null,null,null,null,null,"1900-03-24",{"$error":"#N/A"},{"$error":"#N/A"},null,null,null,null,null,null,null,null,null,null,null,null,null,null,null,"1900-03-24",{"$error":"#N/A"},{"$error":"#N/A"},null,null,null,null,null,null,null,null,null,null,null,null,null,null,null,"1900-03-24",{"$error":"#N/A"},{"$error":"#N/A"},null,null,null,null,null,null,null,null,null,null,null,null,null,null,null,"1900-03-24",{"$error":"#N/A"},{"$error":"#N/A"},null,null,null,null,null,null,null,null,null,null,null,null,null,null,null,null,null,null,null,null,null,null,null,null,null,null,null,null,null,null,null,null,null,"1900-03-24",null,null,null,null,null,null,null,null,null,null,null,null,null,null,null,null,null,"1900-03-24",null,null,null,null,null,null,null,null,null,null,null,null,null,null,null,null,null,"1900-03-24",{"$error":"#N/A"},{"$error":"#N/A"},null,null,null,null,null,null,null,null,null,null,null,null,null,null,null,"1900-03-24",{"$error":"#N/A"},{"$error":"#N/A"},null,null,null,null,null,null,null,null,null,null,null,null,null,null,null,"1900-03-24",{"$error":"#N/A"},{"$error":"#N/A"},null,null,null,null,null,null,null,null,null,null,null,null,null,null,null,null,null,null,null,null,null,null,null,null,null,null,null,null,null,null,null,null,null,"1900-03-24",{"$error":"#N/A"},{"$error":"#N/A"},null,null,null,null,null,null,null,null,null,null,null,null,null,null,null,"1900-03-17",{"$error":"#N/A"},{"$error":"#N/A"},null,null,null,null,null,null,null,null,null,null,null,null,null,null,null,"1900-03-24",{"$error":"#N/A"},{"$error":"#N/A"},null,null,null,null,null,null,null,null,null,null,null,null,null,null,null,"1900-03-24",{"$error":"#N/A"},{"$error":"#N/A"},null,null,null,null,null,null,null,null,null,null,null,null,null,null,null,"1900-03-24",{"$error":"#N/A"},{"$error":"#N/A"},null,null,null,null,null,null,null,null,null,null,null,null,null,null,null,null,null,null,null,null,null,null,null,null,null,null,null,null,null,null,null,null,null,"1900-03-24",{"$error":"#N/A"},{"$error":"#N/A"},null,null,null,null,null,null,null,null,null,null,null,null,null,null,null,"1900-03-24",{"$error":"#N/A"},{"$error":"#N/A"},null,null,null,null,null,null,null,null,null,null,null,null,null,null,null,"1900-03-24",{"$error":"#N/A"},{"$error":"#N/A"},null,null,null,null,null,null,null,null,null,null,null,null,null,null,null,"1900-03-24",{"$error":"#N/A"},{"$error":"#N/A"}]
[null,null,null,null,null,null,null,null,"Grand Total",{"$error":"#N/A"},{"$error":"#N/A"},null,null,null,null,null,null,null,null,null,null,null,null,null,null,null,"Grand Total",{"$error":"#N/A"},{"$error":"#N/A"},null,null,null,null,null,null,null,null,null,null,null,null,null,null,null,"Grand Total",{"$error":"#N/A"},{"$error":"#N/A"},null,null,null,null,null,null,null,null,null,null,null,null,null,null,null,"Grand Total",{"$error":"#N/A"},{"$error":"#N/A"},null,null,null,null,null,null,null,null,null,null,null,null,null,null,null,"Grand Total",{"$error":"#N/A"},{"$error":"#N/A"},null,null,null,null,null,null,null,null,null,null,null,null,null,null,null,"Grand Total",{"$error":"#N/A"},{"$error":"#N/A"},null,null,null,null,null,null,null,null,null,null,null,null,null,null,null,"Grand Total",{"$error":"#N/A"},{"$error":"#N/A"},null,null,null,null,null,null,null,null,null,null,null,null,null,null,null,"Grand Total",{"$error":"#N/A"},{"$error":"#N/A"},null,null,null,null,null,null,null,null,null,null,null,null,null,null,null,"Grand Total",{"$error":"#N/A"},{"$error":"#N/A"},null,null,null,null,null,null,null,null,null,null,null,null,null,null,null,null,null,null,null,null,null,null,null,null,null,null,null,null,null,null,null,null,null,"Grand Total",null,null,null,null,null,null,null,null,null,null,null,null,null,null,null,null,null,"Grand Total",null,null,null,null,null,null,null,null,null,null,null,null,null,null,null,null,null,"Grand Total",{"$error":"#N/A"},{"$error":"#N/A"},null,null,null,null,null,null,null,null,null,null,null,null,null,null,null,"Grand Total",{"$error":"#N/A"},{"$error":"#N/A"},null,null,null,null,null,null,null,null,null,null,null,null,null,null,null,"Grand Total",{"$error":"#N/A"},{"$error":"#N/A"},null,null,null,null,null,null,null,null,null,null,null,null,null,null,null,null,null,null,null,null,null,null,null,null,null,null,null,null,null,null,null,null,null,"Grand Total",{"$error":"#N/A"},{"$error":"#N/A"},null,null,null,null,null,null,null,null,null,null,null,null,null,null,null,"1900-03-24",{"$error":"#N/A"},{"$error":"#N/A"},null,null,null,null,null,null,null,null,null,null,null,null,null,null,null,"Grand Total",{"$error":"#N/A"},{"$error":"#N/A"},null,null,null,null,null,null,null,null,null,null,null,null,null,null,null,"Grand Total",{"$error":"#N/A"},{"$error":"#N/A"},null,null,null,null,null,null,null,null,null,null,null,null,null,null,null,"Grand Total",{"$error":"#N/A"},{"$error":"#N/A"},null,null,null,null,null,null,null,null,null,null,null,null,null,null,null,null,null,null,null,null,null,null,null,null,null,null,null,null,null,null,null,null,null,"Grand Total",{"$error":"#N/A"},{"$error":"#N/A"},null,null,null,null,null,null,null,null,null,null,null,null,null,null,null,"Grand Total",{"$error":"#N/A"},{"$error":"#N/A"},null,null,null,null,null,null,null,null,null,null,null,null,null,null,null,"Grand Total",{"$error":"#N/A"},{"$error":"#N/A"},null,null,null,null,null,null,null,null,null,null,null,null,null,null,null,"Grand Total",{"$error":"#N/A"},{"$error":"#N/A"}]
[null,null,null,null,null,null,null,null,null,null,null,null,null,null,null,null,null,null,null,null,null,null,null,null,null,null,null,null,null,null,null,null,null,null,null,null,null,null,null,null,null,null,null,null,null,null,null,null,null,null,null,null,null,null,null,null,null,null,null,null,null,null,null,null,null,null,null,null,null,null,null,null,null,null,null,null,null,null,null,null,null,null,null,null,null,null,null,null,null,null,null,null,null,null,null,null,null,null,null,null,null,null,null,null,null,null,null,null,null,null,null,null,null,null,null,null,null,null,null,null,null,null,null,null,null,null,null,null,null,null,null,null,null,null,null,null,null,null,null,null,null,null,null,null,null,null,null,null,null,null,null,null,null,null,null,null,null,null,null,null,null,null,null,null,null,null,null,null,null,null,null,null,null,null,null,null,null,null,null,null,null,null,null,null,null,null,null,null,null,null,null,null,null,null,null,null,null,null,null,null,null,null,null,null,null,null,null,null,null,null,null,null,null,null,null,null,null,null,null,null,null,null,null,null,null,null,null,null,null,null,null,null,null,null,null,null,null,null,null,null,null,null,null,null,null,null,null,null,null,null,null,null,null,null,null,null,null,null,null,null,null,null,null,null,null,null,null,null,null,null,null,null,null,null,null,null,null,null,null,null,null,null,null,null,null,null,null,null,null,null,null,null,null,null,null,null,null,null,null,null,null,null,null,null,null,null,null,null,null,null,null,null,null,null,"Grand Total",{"$error":"#N/A"},{"$error":"#N/A"}]
[]
[]
[]
[]
[]
[]
[]
[]
[]
[null,null,null,null,null,null,null,null,null,null,null,null,null,null,null,null,null,null,null,null,null,null,null,null,null,null,null,null,null,null,null,null,null,null,null,null,null,null,null,null,null,null,null,null,null,null,null,null,null,null,null,null,null,null,null,null,null,null,null,null,null,null,null,null,null,null,null,null,null,null,null,null,null,null,null,null,null,null,null,null,null,null,null,null,null,null,null,null,null,null,null,null,null,null,null,null,null,null,null,null,null,null,null,null,null,null,null,null,null,null,null,null,null,null,null,null,null,null,null,null,null,null,null,null,null,null,null,null,null,null,null,null,null,null,null,null,null,null,null,null,null,null,null,null,null,null,null,null,null,null,null,null,null,null,null,null,null,null,null,null,null,null,null,null,null,null,null,null,null,null,null,null,null,null,null,null,null,null,null,null,null,null,null,null,null,null,null,null,null,null,null,null,null,null,null,null,null,null,null,null,null,null,null,null,null,null,null,null,null,null,null,null,null,null,null,null,null,null,null,null,null,null,null,null,null,null,null,null,null,null,null,null,null,null,null,null,null,null,null,null,null,null,null,null,null,null,null,null,null,null,null,null,null,null,null,null,null,null,null,null,null,null,null,null,null,null,null,null,null,null,null,null,null,null,null,null,null,null,"Week starting","(All)",null,null,null,null,null,null,null,null,null,null,null,null,null,null,null,null,null,null,null,null,null,null,null,null,null,null,null,null,null,null,null,null,null,null,null,null,null,null,null,null,null,null,null,null,null,null,null,null,null,null,null,null,null,null,null,null,null,null,null,null,null,null,null,null,null,null,null,null,null,null,null,null,null,null,null,null,null,null,null,null,null,null,null,null,null,null,null,null,null,null,null,null,null,null,null,null,null,null,null,null,null,null,null,null,null,null,"Week starting","(All)"]
[null,null,null,null,null,null,null,null,null,null,null,null,null,null,null,null,null,null,null,null,null,null,null,null,null,null,null,null,null,null,null,null,null,null,null,null,null,null,null,null,null,null,null,null,null,null,null,null,null,null,null,null,null,null,null,null,null,null,null,null,null,null,null,null,null,null,null,null,null,null,null,null,null,null,null,null,null,null,null,null,null,null,null,null,null,null,null,null,null,null,null,null,null,null,null,null,null,null,null,null,null,null,null,null,null,null,null,null,null,null,null,null,null,null,null,null,null,null,null,null,null,null,null,null,null,null,null,null,null,null,null,null,null,null,null,null,null,null,null,null,null,null,null,null,null,null,null,null,null,null,null,null,null,null,null,null,null,null,null,null,null,null,null,null,null,null,null,null,null,null,null,null,null,null,null,null,null,null,null,null,null,null,null,null,null,null,null,null,null,null,null,null,null,null,null,null,null,null,null,null,null,null,null,null,null,null,null,null,null,null,null,null,null,null,null,null,null,null,null,null,null,null,null,null,null,null,null,null,null,null,null,null,null,null,null,null,null,null,null,null,null,null,null,null,null,null,null,null,null,null,null,null,null,null,null,null,null,null,null,null,null,null,null,null,null,null,null,null,null,null,null,null,null,null,null,null,null,null,"Ethnicity","(All)",null,null,null,null,null,null,null,null,null,null,null,null,null,null,null,null,null,null,null,null,null,null,null,null,null,null,null,null,null,null,null,null,null,null,null,null,null,null,null,null,null,null,null,null,null,null,null,null,null,null,null,null,null,null,null,null,null,null,null,null,null,null,null,null,null,null,null,null,null,null,null,null,null,null,null,null,null,null,null,null,null,null,null,null,null,null,null,null,null,null,null,null,null,null,null,null,null,null,null,null,null,null,null,null,null,null,"Ethnicity","(All)"]
[null,null,null,null,null,null,null,null,null,null,null,null,null,null,null,null,null,null,null,null,null,null,null,null,null,null,null,null,null,null,null,null,null,null,null,null,null,null,null,null,null,null,null,null,null,null,null,null,null,null,null,null,null,null,null,null,null,null,null,null,null,null,null,null,null,null,null,null,null,null,null,null,null,null,null,null,null,null,null,null,null,null,null,null,null,null,null,null,null,null,null,null,null,null,null,null,null,null,null,null,null,null,null,null,null,null,null,null,null,null,null,null,null,null,null,null,null,null,null,null,null,null,null,null,null,null,null,null,null,null,null,null,null,null,null,null,null,null,null,null,null,null,null,null,null,null,null,null,null,null,null,null,null,null,null,null,null,null,null,null,null,null,null,null,null,null,null,null,null,null,null,null,null,null,null,null,null,null,null,null,null,null,null,null,null,null,null,null,null,null,null,null,null,null,null,null,null,null,null,null,null,null,null,null,null,null,null,null,null,null,null,null,null,null,null,null,null,null,null,null,null,null,null,null,null,null,null,null,null,null,null,null,null,null,null,null,null,null,null,null,null,null,null,null,null,null,null,null,null,null,null,null,null,null,null,null,null,null,null,null,null,null,null,null,null,null,null,null,null,null,null,null,null,null,null,null,null,null,"Age","(All)",null,null,null,null,null,null,null,null,null,null,null,null,null,null,null,null,null,null,null,null,null,null,null,null,null,null,null,null,null,null,null,null,null,null,null,null,null,null,null,null,null,null,null,null,null,null,null,null,null,null,null,null,null,null,null,null,null,null,null,null,null,null,null,null,null,null,null,null,null,null,null,null,null,null,null,null,null,null,null,null,null,null,null,null,null,null,null,null,null,null,null,null,null,null,null,null,null,null,null,null,null,null,null,null,null,null,"Age","(All)"]
[]
[null,null,null,null,null,null,null,null,null,null,null,null,null,null,null,null,null,null,null,null,null,null,null,null,null,null,null,null,null,null,null,null,null,null,null,null,null,null,null,null,null,null,null,null,null,null,null,null,null,null,null,null,null,null,null,null,null,null,null,null,null,null,null,null,null,null,null,null,null,null,null,null,null,null,null,null,null,null,null,null,null,null,null,null,null,null,null,null,null,null,null,null,null,null,null,null,null,null,null,null,null,null,null,null,null,null,null,null,null,null,null,null,null,null,null,null,null,null,null,null,null,null,null,null,null,null,null,null,null,null,null,null,null,null,null,null,null,null,null,null,null,null,null,null,null,null,null,null,null,null,null,null,null,null,null,null,null,null,null,null,null,null,null,null,null,null,null,null,null,null,null,null,null,null,null,null,null,null,null,null,null,null,null,null,null,null,null,null,null,null,null,null,null,null,null,null,null,null,null,null,null,null,null,null,null,null,null,null,null,null,null,null,null,null,null,null,null,null,null,null,null,null,null,null,null,null,null,null,null,null,null,null,null,null,null,null,null,null,null,null,null,null,null,null,null,null,null,null,null,null,null,null,null,null,null,null,null,null,null,null,null,null,null,null,null,null,null,null,null,null,null,null,null,null,null,null,null,null,null,"Ward",null,null,null,null,null,null,null,null,null,null,null,null,null,null,null,null,null,null,null,null,null,null,null,null,null,null,null,null,null,null,null,null,null,null,null,null,null,null,null,null,null,null,null,null,null,null,null,null,null,null,null,null,null,null,null,null,null,null,null,null,null,null,null,null,null,null,null,null,null,null,null,null,null,null,null,null,null,null,null,null,null,null,null,null,null,null,null,null,null,null,null,null,null,null,null,null,null,null,null,null,null,null,null,null,null,null,null,"Ward"]
[null,null,null,null,null,null,null,null,null,null,null,null,null,null,null,null,null,null,null,null,null,null,null,null,null,null,null,null,null,null,null,null,null,null,null,null,null,null,null,null,null,null,null,null,null,null,null,null,null,null,null,null,null,null,null,null,null,null,null,null,null,null,null,null,null,null,null,null,null,null,null,null,null,null,null,null,null,null,null,null,null,null,null,null,null,null,null,null,null,null,null,null,null,null,null,null,null,null,null,null,null,null,null,null,null,null,null,null,null,null,null,null,null,null,null,null,null,null,null,null,null,null,null,null,null,null,null,null,null,null,null,null,null,null,null,null,null,null,null,null,null,null,null,null,null,null,null,null,null,null,null,null,null,null,null,null,null,null,null,null,null,null,null,null,null,null,null,null,null,null,null,null,null,null,null,null,null,null,null,null,null,null,null,null,null,null,null,null,null,null,null,null,null,null,null,null,null,null,null,null,null,null,null,null,null,null,null,null,null,null,null,null,null,null,null,null,null,null,null,null,null,null,null,null,null,null,null,null,null,null,null,null,null,null,null,null,null,null,null,null,null,null,null,null,null,null,null,null,null,null,null,null,null,null,null,null,null,null,null,null,null,null,null,null,null,null,null,null,null,null,null,null,null,null,null,null,null,null,"Values",0,"Grand Total",null,null,null,null,null,null,null,null,null,null,null,null,null,null,null,null,null,null,null,null,null,null,null,null,null,null,null,null,null,null,null,null,null,null,null,null,null,null,null,null,null,null,null,null,null,null,null,null,null,null,null,null,null,null,null,null,null,null,null,null,null,null,null,null,null,null,null,null,null,null,null,null,null,null,null,null,null,null,null,null,null,null,null,null,null,null,null,null,null,null,null,null,null,null,null,null,null,null,null,null,null,null,null,null,null,"Values",0,"Grand Total"]
[null,null,null,null,null,null,null,null,null,null,null,null,null,null,null,null,null,null,null,null,null,null,null,null,null,null,null,null,null,null,null,null,null,null,null,null,null,null,null,null,null,null,null,null,null,null,null,null,null,null,null,null,null,null,null,null,null,null,null,null,null,null,null,null,null,null,null,null,null,null,null,null,null,null,null,null,null,null,null,null,null,null,null,null,null,null,null,null,null,null,null,null,null,null,null,null,null,null,null,null,null,null,null,null,null,null,null,null,null,null,null,null,null,null,null,null,null,null,null,null,null,null,null,null,null,null,null,null,null,null,null,null,null,null,null,null,null,null,null,null,null,null,null,null,null,null,null,null,null,null,null,null,null,null,null,null,null,null,null,null,null,null,null,null,null,null,null,null,null,null,null,null,null,null,null,null,null,null,null,null,null,null,null,null,null,null,null,null,null,null,null,null,null,null,null,null,null,null,null,null,null,null,null,null,null,null,null,null,null,null,null,null,null,null,null,null,null,null,null,null,null,null,null,null,null,null,null,null,null,null,null,null,null,null,null,null,null,null,null,null,null,null,null,null,null,null,null,null,null,null,null,null,null,null,null,null,null,null,null,null,null,null,null,null,null,null,null,null,null,null,null,null,null,null,null,null,null,null,"Goal of care A",{"$error":"#N/A"},{"$error":"#N/A"},null,null,null,null,null,null,null,null,null,null,null,null,null,null,null,null,null,null,null,null,null,null,null,null,null,null,null,null,null,null,null,null,null,null,null,null,null,null,null,null,null,null,null,null,null,null,null,null,null,null,null,null,null,null,null,null,null,null,null,null,null,null,null,null,null,null,null,null,null,null,null,null,null,null,null,null,null,null,null,null,null,null,null,null,null,null,null,null,null,null,null,null,null,null,null,null,null,null,null,null,null,null,null,null,null,"0 to 12 hours ",{"$error":"#N/A"},{"$error":"#N/A"}]
[null,null,null,null,null,null,null,null,null,null,null,null,null,null,null,null,null,null,null,null,null,null,null,null,null,null,null,null,null,null,null,null,null,null,null,null,null,null,null,null,null,null,null,null,null,null,null,null,null,null,null,null,null,null,null,null,null,null,null,null,null,null,null,null,null,null,null,null,null,null,null,null,null,null,null,null,null,null,null,null,null,null,null,null,null,null,null,null,null,null,null,null,null,null,null,null,null,null,null,null,null,null,null,null,null,null,null,null,null,null,null,null,null,null,null,null,null,null,null,null,null,null,null,null,null,null,null,null,null,null,null,null,null,null,null,null,null,null,null,null,null,null,null,null,null,null,null,null,null,null,null,null,null,null,null,null,null,null,null,null,null,null,null,null,null,null,null,null,null,null,null,null,null,null,null,null,null,null,null,null,null,null,null,null,null,null,null,null,null,null,null,null,null,null,null,null,null,null,null,null,null,null,null,null,null,null,null,null,null,null,null,null,null,null,null,null,null,null,null,null,null,null,null,null,null,null,null,null,null,null,null,null,null,null,null,null,null,null,null,null,null,null,null,null,null,null,null,null,null,null,null,null,null,null,null,null,null,null,null,null,null,null,null,null,null,null,null,null,null,null,null,null,null,null,null,null,null,null,"Goal of care B",{"$error":"#N/A"},{"$error":"#N/A"},null,null,null,null,null,null,null,null,null,null,null,null,null,null,null,null,null,null,null,null,null,null,null,null,null,null,null,null,null,null,null,null,null,null,null,null,null,null,null,null,null,null,null,null,null,null,null,null,null,null,null,null,null,null,null,null,null,null,null,null,null,null,null,null,null,null,null,null,null,null,null,null,null,null,null,null,null,null,null,null,null,null,null,null,null,null,null,null,null,null,null,null,null,null,null,null,null,null,null,null,null,null,null,null,null,"12 to 24 hours ",{"$error":"#N/A"},{"$error":"#N/A"}]
[null,null,null,null,null,null,null,null,null,null,null,null,null,null,null,null,null,null,null,null,null,null,null,null,null,null,null,null,null,null,null,null,null,null,null,null,null,null,null,null,null,null,null,null,null,null,null,null,null,null,null,null,null,null,null,null,null,null,null,null,null,null,null,null,null,null,null,null,null,null,null,null,null,null,null,null,null,null,null,null,null,null,null,null,null,null,null,null,null,null,null,null,null,null,null,null,null,null,null,null,null,null,null,null,null,null,null,null,null,null,null,null,null,null,null,null,null,null,null,null,null,null,null,null,null,null,null,null,null,null,null,null,null,null,null,null,null,null,null,null,null,null,null,null,null,null,null,null,null,null,null,null,null,null,null,null,null,null,null,null,null,null,null,null,null,null,null,null,null,null,null,null,null,null,null,null,null,null,null,null,null,null,null,null,null,null,null,null,null,null,null,null,null,null,null,null,null,null,null,null,null,null,null,null,null,null,null,null,null,null,null,null,null,null,null,null,null,null,null,null,null,null,null,null,null,null,null,null,null,null,null,null,null,null,null,null,null,null,null,null,null,null,null,null,null,null,null,null,null,null,null,null,null,null,null,null,null,null,null,null,null,null,null,null,null,null,null,null,null,null,null,null,null,null,null,null,null,null,"Goal of care C",{"$error":"#N/A"},{"$error":"#N/A"},null,null,null,null,null,null,null,null,null,null,null,null,null,null,null,null,null,null,null,null,null,null,null,null,null,null,null,null,null,null,null,null,null,null,null,null,null,null,null,null,null,null,null,null,null,null,null,null,null,null,null,null,null,null,null,null,null,null,null,null,null,null,null,null,null,null,null,null,null,null,null,null,null,null,null,null,null,null,null,null,null,null,null,null,null,null,null,null,null,null,null,null,null,null,null,null,null,null,null,null,null,null,null,null,null,"24 to 48 hours",{"$error":"#N/A"},{"$error":"#N/A"}]
[null,null,null,null,null,null,null,null,null,null,null,null,null,null,null,null,null,null,null,null,null,null,null,null,null,null,null,null,null,null,null,null,null,null,null,null,null,null,null,null,null,null,null,null,null,null,null,null,null,null,null,null,null,null,null,null,null,null,null,null,null,null,null,null,null,null,null,null,null,null,null,null,null,null,null,null,null,null,null,null,null,null,null,null,null,null,null,null,null,null,null,null,null,null,null,null,null,null,null,null,null,null,null,null,null,null,null,null,null,null,null,null,null,null,null,null,null,null,null,null,null,null,null,null,null,null,null,null,null,null,null,null,null,null,null,null,null,null,null,null,null,null,null,null,null,null,null,null,null,null,null,null,null,null,null,null,null,null,null,null,null,null,null,null,null,null,null,null,null,null,null,null,null,null,null,null,null,null,null,null,null,null,null,null,null,null,null,null,null,null,null,null,null,null,null,null,null,null,null,null,null,null,null,null,null,null,null,null,null,null,null,null,null,null,null,null,null,null,null,null,null,null,null,null,null,null,null,null,null,null,null,null,null,null,null,null,null,null,null,null,null,null,null,null,null,null,null,null,null,null,null,null,null,null,null,null,null,null,null,null,null,null,null,null,null,null,null,null,null,null,null,null,null,null,null,null,null,null,"Goal of care D",{"$error":"#N/A"},{"$error":"#N/A"},null,null,null,null,null,null,null,null,null,null,null,null,null,null,null,null,null,null,null,null,null,null,null,null,null,null,null,null,null,null,null,null,null,"Ethnicity","(All)",null,null,null,null,null,null,null,null,null,null,null,null,null,null,null,null,null,null,null,null,null,null,null,null,null,null,null,null,null,null,null,null,null,null,null,null,null,null,null,null,null,null,null,null,null,null,null,null,null,null,null,null,null,null,null,null,null,null,null,null,null,null,null,null,null,null,null,null,null,null,"48 to 72 hours ",{"$error":"#N/A"},{"$error":"#N/A"}]
[null,null,null,null,null,null,null,null,null,null,null,null,null,null,null,null,null,null,null,null,null,null,null,null,null,null,null,null,null,null,null,null,null,null,null,null,null,null,null,null,null,null,null,null,null,null,null,null,null,null,null,null,null,null,null,null,null,null,null,null,null,null,null,null,null,null,null,null,null,null,null,null,null,null,null,null,null,null,null,null,null,null,null,null,null,null,null,null,null,null,null,null,null,null,null,null,null,null,null,null,null,null,null,null,null,null,null,null,null,null,null,null,null,null,null,null,null,null,null,null,null,null,null,null,null,null,null,null,null,null,null,null,null,null,null,null,null,null,null,null,null,null,null,null,null,null,null,null,null,null,null,null,null,null,null,null,null,null,null,null,null,null,null,null,null,null,null,null,null,null,null,null,null,null,null,null,null,null,null,null,null,null,null,null,null,null,null,null,null,null,null,null,null,null,null,null,null,null,null,null,null,null,null,null,null,null,null,null,null,null,null,null,null,null,null,null,null,null,null,null,null,null,null,null,null,null,null,null,null,null,null,null,null,null,null,null,null,null,null,null,null,null,null,null,null,null,null,null,null,null,null,null,null,null,null,null,null,null,null,null,null,null,null,null,null,null,null,null,null,null,null,null,null,null,null,null,null,null,null,null,null,null,null,null,null,null,null,null,null,null,null,null,null,null,null,null,null,null,null,null,null,null,null,null,null,null,null,null,null,null,null,null,null,null,"Week starting","(Multiple Items)",null,null,null,null,null,null,null,null,null,null,null,null,null,null,null,null,null,null,null,null,null,null,null,null,null,null,null,null,null,null,null,null,null,null,null,null,null,null,null,null,null,null,null,null,null,null,null,null,null,null,null,null,null,null,null,null,null,null,null,null,null,null,null,null,null,null,null,null,null,null,"More than 72 hours ",{"$error":"#N/A"},{"$error":"#N/A"}]
[null,null,null,null,null,null,null,null,null,null,null,null,null,null,null,null,null,null,null,null,null,null,null,null,null,null,null,null,null,null,null,null,null,null,null,null,null,null,null,null,null,null,null,null,null,null,null,null,null,null,null,null,null,null,null,null,null,null,null,null,null,null,null,null,null,null,null,null,null,null,null,null,null,null,null,null,null,null,null,null,null,null,null,null,null,null,null,null,null,null,null,null,null,null,null,null,null,null,null,null,null,null,null,null,null,null,null,null,null,null,null,null,null,null,null,null,null,null,null,null,null,null,null,null,null,null,null,null,null,null,null,null,null,null,null,null,null,null,null,null,null,null,null,null,null,null,null,null,null,null,null,null,null,null,null,null,null,null,null,null,null,null,null,null,null,null,null,null,null,null,null,null,null,null,null,null,null,null,null,null,null,null,null,null,null,null,null,null,null,null,null,null,null,null,null,null,null,null,null,null,null,null,null,null,null,null,null,null,null,null,null,null,null,null,null,null,null,null,null,null,null,null,null,null,null,null,null,null,null,null,null,null,null,null,null,null,null,null,null,null,null,null,null,null,null,null,null,null,null,null,null,null,null,null,null,null,null,null,null,null,null,null,null,null,null,null,null,null,null,null,null,null,null,null,null,null,null,null,null,null,null,null,null,null,null,null,null,null,null,null,null,null,null,null,null,null,null,null,null,null,null,null,null,null,null,null,null,null,null,null,null,null,null,null,"Ward",0]
[null,null,null,null,null,null,null,null,null,null,null,null,null,null,null,null,null,null,null,null,null,null,null,null,null,null,null,null,null,null,null,null,null,null,null,null,null,null,null,null,null,null,null,null,null,null,null,null,null,null,null,null,null,null,null,null,null,null,null,null,null,null,null,null,null,null,null,null,null,null,null,null,null,null,null,null,null,null,null,null,null,null,null,null,null,null,null,null,null,null,null,null,null,null,null,null,null,null,null,null,null,null,null,null,null,null,null,null,null,null,null,null,null,null,null,null,null,null,null,null,null,null,null,null,null,null,null,null,null,null,null,null,null,null,null,null,null,null,null,null,null,null,null,null,null,null,null,null,null,null,null,null,null,null,null,null,null,null,null,null,null,null,null,null,null,null,null,null,null,null,null,null,null,null,null,null,null,null,null,null,null,null,null,null,null,null,null,null,null,null,null,null,null,null,null,null,null,null,null,null,null,null,null,null,null,null,null,null,null,null,null,null,null,null,null,null,null,null,null,null,null,null,null,null,null,null,null,null,null,null,null,null,null,null,null,null,null,null,null,null,null,null,null,null,null,null,null,null,null,null,null,null,null,null,null,null,null,null,null,null,null,null,null,null,null,null,null,null,null,null,null,null,null,null,null,null,null,null,null,null,null,null,null,null,null,null,null,null,null,null,null,null,null,null,null,null,null,null,null,null,null,null,null,null,null,null,null,null,null,null,null,null,null,null,"Age","(All)"]
[]
[null,null,null,null,null,null,null,null,"Ethnicity","(All)",null,null,null,null,null,null,null,null,null,null,null,null,null,null,null,null,null,null,null,null,null,null,null,null,null,null,null,null,null,null,null,null,null,null,null,null,null,null,null,null,null,null,null,null,null,null,null,null,null,null,null,null,null,null,null,null,null,null,null,null,null,null,null,null,null,null,null,null,null,null,null,null,null,null,null,null,null,null,null,null,null,null,null,null,null,null,null,null,null,null,null,null,null,null,null,null,null,null,null,null,null,null,null,null,null,null,null,null,null,null,null,null,null,null,null,null,null,null,null,null,null,null,null,null,null,null,null,null,null,null,null,null,null,null,null,null,null,null,null,null,null,null,null,null,null,null,null,null,null,null,null,null,null,null,null,null,null,null,null,null,null,null,null,null,null,null,null,null,null,null,null,null,null,null,null,null,null,null,null,null,null,null,null,null,null,null,null,null,null,null,null,null,null,null,null,null,null,null,null,null,null,null,null,null,null,null,null,null,null,null,null,null,null,null,null,null,null,null,null,null,null,null,null,null,null,null,null,null,null,null,null,null,"Ethnicity","(All)"]
[null,null,null,null,null,null,null,null,"Age","(All)",null,null,null,null,null,null,null,null,null,null,null,null,null,null,null,null,null,null,null,null,null,null,null,null,null,null,null,null,null,null,null,null,null,null,null,null,null,null,null,null,null,null,null,null,null,null,null,null,null,null,null,null,null,null,null,null,null,null,null,null,null,null,null,null,null,null,null,null,null,null,null,null,null,null,null,null,null,null,null,null,null,null,null,null,null,null,null,null,null,null,null,null,null,null,null,null,null,null,null,null,null,null,null,null,null,null,null,null,null,null,null,null,null,null,null,null,null,null,null,null,null,null,null,null,null,null,null,null,null,null,null,null,null,null,null,null,null,null,null,null,null,null,null,null,null,null,null,null,null,null,null,null,null,null,null,null,null,null,null,null,null,null,null,null,null,null,null,null,null,null,null,null,null,null,null,null,null,null,null,null,null,null,null,null,null,null,null,null,null,null,null,null,null,null,null,null,null,null,null,null,null,null,null,null,null,null,null,null,null,null,null,null,null,null,null,null,null,null,null,null,null,null,null,null,null,null,null,null,null,null,null,null,"Week starting","(Multiple Items)"]
[null,null,null,null,null,null,null,null,"Week starting","(All)",null,null,null,null,null,null,null,null,null,null,null,null,null,null,null,null,null,null,null,null,null,null,null,null,null,null,null,null,null,null,null,null,null,null,null,null,null,null,null,null,null,null,null,null,null,null,null,null,null,null,null,null,null,null,null,null,null,null,null,null,null,null,null,null,null,null,null,null,null,null,null,null,null,null,null,null,null,null,null,null,null,null,null,null,null,null,null,null,null,null,null,null,null,null,null,null,null,null,null,null,null,null,null,null,null,null,null,null,null,null,null,null,null,null,null,null,null,null,null,null,null,null,null,null,null,null,null,null,null,null,null,null,null,null,null,null,null,null,null,null,null,null,null,null,null,null,null,null,null,null,null,null,null,null,null,null,null,null,null,null,null,null,null,null,null,null,null,null,null,null,null,null,null,null,null,null,null,null,null,null,null,null,null,null,null,null,null,null,null,null,null,null,null,null,null,null,null,null,null,null,null,null,null,null,null,null,null,null,null,null,null,null,null,null,null,null,null,null,null,null,null,null,null,null,null,null,null,null,null,null,null,null,"Ward",0]
[null,null,null,null,null,null,null,null,null,null,null,null,null,null,null,null,null,null,null,null,null,null,null,null,null,null,null,null,null,null,null,null,null,null,null,null,null,null,null,null,null,null,null,null,null,null,null,null,null,null,null,null,null,null,null,null,null,null,null,null,null,null,null,null,null,null,null,null,null,null,null,null,null,null,null,null,null,null,null,null,null,null,null,null,null,null,null,null,null,null,null,null,null,null,null,null,null,null,null,null,null,null,null,null,null,null,null,null,null,null,null,null,null,null,null,null,null,null,null,null,null,null,null,null,null,null,null,null,null,null,null,null,null,null,null,null,null,null,null,null,null,null,null,null,null,null,null,null,null,null,null,null,null,null,null,null,null,null,null,null,null,null,null,null,null,null,null,null,null,null,null,null,null,null,null,null,null,null,null,null,null,null,null,null,null,null,null,null,null,null,null,null,null,null,null,null,null,null,null,null,null,null,null,null,null,null,null,null,null,null,null,null,null,null,null,null,null,null,null,null,null,null,null,null,null,null,null,null,null,null,null,null,null,null,null,null,null,null,null,null,null,null,"Age","(All)",null,null,null,null,null,null,null,null,null,null,null,null,null,null,null,null,null,null,null,null,null,null,null,null,null,null,null,null,null,null,null,null,null,null,null,null,null,null,null,null,null,null,null,null,null,null,null,null,null,null,null,null,null,null,null,null,null,null,null,null,null,null,null,null,null,null,null,null,null,null,null,null,null,null,null,null,null,null,null,null,null,null,null,null,null,null,null,null,null,null,null,null,null,null,null,null,null,null,null,null,null,null,null,null,null,null,null,null,null,null,null,null,null,null,null,null,null,null,null,null,null,null,null,null,null,null,null,null,null,null,null,null,null,null,null,null,null,null,null,null,null,null,null,null,null,null,null,null,null,null,null,null,null,null,null,null,null,null,null,null,null,null,null,null,null,null,null,null,null,null,null,null,null,null,null,null,null,null,null,null,null,null,null,null,null,null,null,null,null,null,null,null,null,null,null,null,null,null,null,null,null,null,null,null,null,null,null,null,null,null,null,null,null,null,null,null,null,null,null,null,null,null,null,null,null,null,null,null,null,null,null,null,"Ethnicity","(All)"]
[null,null,null,null,null,null,null,null,null,"Ward",null,null,null,null,null,null,null,null,null,null,null,null,null,null,null,null,null,null,null,null,null,null,null,null,null,null,null,null,null,null,null,null,null,null,null,null,null,null,null,null,null,null,null,null,null,null,null,null,null,null,null,null,null,null,null,null,null,null,null,null,null,null,null,null,null,null,null,null,null,null,null,null,null,null,null,null,null,null,null,null,null,null,null,null,null,null,null,null,null,null,null,null,null,null,null,null,null,null,null,null,null,null,null,null,null,null,null,null,null,null,null,null,null,null,null,null,null,null,null,null,null,null,null,null,null,null,null,null,null,null,null,null,null,null,null,null,null,null,null,null,null,null,null,null,null,null,null,null,null,null,null,null,null,null,null,null,null,null,null,null,null,null,null,null,null,null,null,null,null,null,null,null,null,null,null,null,null,null,null,null,null,null,null,null,null,null,null,null,null,null,null,null,null,null,null,null,null,null,null,null,null,null,null,null,null,null,null,null,null,null,null,null,null,null,null,null,null,null,null,null,null,null,null,null,null,null,null,null,null,null,null,null,null,null,null,null,null,null,null,null,null,null,null,null,null,null,null,null,null,null,null,null,null,null,null,null,null,null,null,null,null,null,null,null,null,null,null,null,null,null,null,null,null,null,null,null,null,null,null,null,null,null,null,null,null,null,null,null,null,null,null,null,null,null,null,null,null,null,null,null,null,null,null,null,null,null,null,null,null,null,null,null,null,null,null,null,null,null,null,null,null,null,null,null,null,null,null,null,null,null,null,null,null,null,null,null,null,null,null,null,null,null,null,null,null,null,null,null,null,null,null,null,null,null,null,null,null,null,null,null,null,null,null,null,null,null,null,null,null,null,null,null,null,null,null,null,null,null,null,null,null,null,null,null,null,null,null,null,null,null,null,null,null,null,null,null,null,null,null,null,null,null,null,null,null,null,null,null,null,null,null,null,null,null,null,null,null,null,null,null,null,null,null,null,null,null,null,null,null,null,null,null,null,null,null,null,null,null,null,null,null,null,null,null,null,null,null,null,null,null,null,null,null,null,null,null,null,null,null,null,null,null,null,null,null,null,"Age","(All)"]
[null,null,null,null,null,null,null,null,null,0,"Grand Total","Grand Total",null,null,null,null,null,null,null,null,null,null,null,null,null,null,null,null,null,null,null,null,null,null,null,null,null,null,null,null,null,null,null,null,null,null,null,null,null,null,null,null,null,null,null,null,null,null,null,null,null,null,null,null,null,null,null,null,null,null,null,null,null,null,null,null,null,null,null,null,null,null,null,null,null,null,null,null,null,null,null,null,null,null,null,null,null,null,null,null,null,null,null,null,null,null,null,null,null,null,null,null,null,null,null,null,null,null,null,null,null,null,null,null,null,null,null,null,null,null,null,null,null,null,null,null,null,null,null,null,null,null,null,null,null,null,null,null,null,null,null,null,null,null,null,null,null,null,null,null,null,null,null,null,null,null,null,null,null,null,null,null,null,null,null,null,null,null,null,null,null,null,null,null,null,null,null,null,null,null,null,null,null,null,null,null,null,null,null,null,null,null,null,null,null,null,null,null,null,null,null,null,null,null,null,null,null,null,null,null,null,null,null,null,null,null,null,null,null,null,null,null,null,null,null,null,null,null,null,null,null,null,"Sum of Q1 y as % of cases audited",null,null,null,null,null,null,null,null,null,null,null,null,null,null,null,null,null,null,null,null,null,null,null,null,null,null,null,null,null,null,null,null,null,null,null,null,null,null,null,null,null,null,null,null,null,null,null,null,null,null,null,null,null,null,null,null,null,null,null,null,null,null,null,null,null,null,null,null,null,null,null,null,null,null,null,null,null,null,null,null,null,null,null,null,null,null,null,null,null,null,null,null,null,null,null,null,null,null,null,null,null,null,null,null,null,null,null,null,null,null,null,null,null,null,null,null,null,null,null,null,null,null,null,null,null,null,null,null,null,null,null,null,null,null,null,null,null,null,null,null,null,null,null,null,null,null,null,null,null,null,null,null,null,null,null,null,null,null,null,null,null,null,null,null,null,null,null,null,null,null,null,null,null,null,null,null,null,null,null,null,null,null,null,null,null,null,null,null,null,null,null,null,null,null,null,null,null,null,null,null,null,null,null,null,null,null,null,null,null,null,null,null,null,null,null,null,null,null,null,null,null,null,null,null,null,null,null,null,null,null,null,null,null,"Week starting","(All)"]
[null,null,null,null,null,null,null,null,"Sum of Q1 y as % of cases audited",{"$error":"#N/A"},{"$error":"#N/A"},0.55000000000000004,null,null,null,null,null,null,null,null,null,null,null,null,null,null,null,null,null,null,null,null,null,null,null,null,null,null,null,null,null,null,null,null,null,null,null,null,null,null,null,null,null,null,null,null,null,null,null,null,null,null,null,null,null,null,null,null,null,null,null,null,null,null,null,null,null,null,null,null,null,null,null,null,null,null,null,null,null,null,null,null,null,null,null,null,null,null,null,null,null,null,null,null,null,null,null,null,null,null,null,null,null,null,null,null,null,null,null,null,null,null,null,null,null,null,null,null,null,null,null,null,null,null,null,null,null,null,null,null,null,null,null,null,null,null,null,null,null,null,null,null,null,null,null,null,null,null,null,null,null,null,null,null,null,null,null,null,null,null,null,null,null,null,null,null,null,null,null,null,null,null,null,null,null,null,null,null,null,null,null,null,null,null,null,null,null,null,null,null,null,null,null,null,null,null,null,null,null,null,null,null,null,null,null,null,null,null,null,null,null,null,null,null,null,null,null,null,null,null,null,null,null,null,null,null,null,null,null,null,null,null,{"$error":"#N/A"}]
[null,null,null,null,null,null,null,null,null,null,null,null,null,null,null,null,null,null,null,null,null,null,null,null,null,null,null,null,null,null,null,null,null,null,null,null,null,null,null,null,null,null,null,null,null,null,null,null,null,null,null,null,null,null,null,null,null,null,null,null,null,null,null,null,null,null,null,null,null,null,null,null,null,null,null,null,null,null,null,null,null,null,null,null,null,null,null,null,null,null,null,null,null,null,null,null,null,null,null,null,null,null,null,null,null,null,null,null,null,null,null,null,null,null,null,null,null,null,null,null,null,null,null,null,null,null,null,null,null,null,null,null,null,null,null,null,null,null,null,null,null,null,null,null,null,null,null,null,null,null,null,null,null,null,null,null,null,null,null,null,null,null,null,null,null,null,null,null,null,null,null,null,null,null,null,null,null,null,null,null,null,null,null,null,null,null,null,null,null,null,null,null,null,null,null,null,null,null,null,null,null,null,null,null,null,null,null,null,null,null,null,null,null,null,null,null,null,null,null,null,null,null,null,null,null,null,null,null,null,null,null,null,null,null,null,null,null,null,null,null,null,null,null,null,null,null,null,null,null,null,null,null,null,null,null,null,null,null,null,null,null,null,null,null,null,null,null,null,null,null,null,null,null,null,null,null,null,null,null,null,null,null,null,null,null,null,null,null,null,null,null,null,null,null,null,null,null,null,null,null,null,null,null,null,null,null,null,null,null,null,null,null,null,null,null,null,null,null,null,null,null,null,null,null,null,null,null,null,null,null,null,null,null,null,null,null,null,null,null,null,null,null,null,null,null,null,null,null,null,null,null,null,null,null,null,null,null,null,null,null,null,null,null,null,null,null,null,null,null,null,null,null,null,null,null,null,null,null,null,null,null,null,null,null,null,null,null,null,null,null,null,null,null,null,null,null,null,null,null,null,null,null,null,null,null,null,null,null,null,null,null,null,null,null,null,null,null,null,null,null,null,null,null,null,null,null,null,null,null,null,null,null,null,null,null,null,null,null,null,null,null,null,null,null,null,null,null,null,null,null,null,null,null,null,null,null,null,null,null,null,null,null,null,null,null,null,null,null,null,null,null,null,null,null,null,null,"Sum of Q18"]
[null,null,null,null,null,null,null,null,null,null,null,null,null,null,null,null,null,null,null,null,null,null,null,null,null,null,null,null,null,null,null,null,null,null,null,null,null,null,null,null,null,null,null,null,null,null,null,null,null,null,null,null,null,null,null,null,null,null,null,null,null,null,null,null,null,null,null,null,null,null,null,null,null,null,null,null,null,null,null,null,null,null,null,null,null,null,null,null,null,null,null,null,null,null,null,null,null,null,null,null,null,null,null,null,null,null,null,null,null,null,null,null,null,null,null,null,null,null,null,null,null,null,null,null,null,null,null,null,null,null,null,null,null,null,null,null,null,null,null,null,null,null,null,null,null,null,null,null,null,null,null,null,null,null,null,null,null,null,null,null,null,null,null,null,null,null,null,null,null,null,null,null,null,null,null,null,null,null,null,null,null,null,null,null,null,null,null,null,null,null,null,null,null,null,null,null,null,null,null,null,null,null,null,null,null,null,null,null,null,null,null,null,null,null,null,null,null,null,null,null,null,null,null,null,null,null,null,null,null,null,null,null,null,null,null,null,null,null,null,null,null,null,null,null,null,null,null,null,null,null,null,null,null,null,null,null,null,null,null,null,null,null,null,null,null,null,null,null,null,null,null,null,null,null,null,null,null,null,null,null,null,null,null,null,null,null,null,null,null,null,null,null,null,null,null,null,null,null,null,null,null,null,null,null,null,null,null,null,null,null,null,null,null,null,null,null,null,null,null,null,null,null,null,null,null,null,null,null,null,null,null,null,null,null,null,null,null,null,null,null,null,null,null,null,null,null,null,null,null,null,null,null,null,null,null,null,null,null,null,null,null,null,null,null,null,null,null,null,null,null,null,null,null,null,null,null,null,null,null,null,null,null,null,null,null,null,null,null,null,null,null,null,null,null,null,null,null,null,null,null,null,null,null,null,null,null,null,null,null,null,null,null,null,null,null,null,null,null,null,null,null,null,null,null,null,null,null,null,null,null,null,null,null,null,null,null,null,null,null,null,null,null,null,null,null,null,null,null,null,null,null,null,null,null,null,null,null,null,null,null,null,null,null,null,null,null,null,null,null,null,null,null,null,null,null,null,0]
[]
[]
[]
[]
[]
[]
[]
[]
[]
[]
[]
[]
[]
[]
[]
[]
[]
[]
[]
[null,null,null,null,null,null,null,null,null,null,null,null,null,null,null,null,null,null,null,null,null,null,null,null,null,null,null,null,null,null,null,null,null,null,null,null,null,null,null,null,null,null,null,null,null,null,null,null,null,null,null,null,null,null,null,null,null,null,null,null,null,null,null,null,null,null,null,null,null,null,null,null,null,null,null,null,null,null,null,null,null,null,null,null,null,null,null,null,null,null,null,null,null,null,null,null,null,null,null,null,null,null,null,null,null,null,null,null,null,null,null,null,null,null,null,null,null,null,null,null,null,null,null,null,null,null,null,null,null,null,null,null,null,null,null,null,null,null,null,null,null,null,null,null,null,null,null,null,null,null,null,null,null,null,null,null,null,null,null,null,null,null,null,null,null,null,null,null,null,null,null,null,null,null,null,null,null,null,null,null,null,null,null,null,null,null,null,null,null,null,null,null,null,null,null,null,null,null,null,null,null,null,null,null,null,null,null,null,null,null,null,null,null,null,null,null,null,null,null,null,null,null,null,null,null,null,null,null,null,null,null,null,null,null,null,null,null,null,null,null,null,null,null,null,null,null,null,null,null,null,null,null,null,null,null,null,null,null,null,null,null,null,null,null,null,null,null,null,null,null,null,null,null,null,null,null,null,null,null,null,null,null,null,null,null,null,null,null,null,null,null,null,null,null,null,null,null,null,null,null,null,null,null,null,null,null,null,null,null,null,null,null,null,null,null,null,null,null,null,null,null,null,null,null,null,null,null,null,null,null,null,null,null,null,null,null,null,null,null,null,null,null,null,null,null,null,null,null,null,null,null,null,null,null,null,null,null,null,null,null,null,null,null,null,null,null,null,null,null,null,null,null,null,null,null,null,null,null,null,null,null,null,null,null,null,null,"Ethnicity","(All)",null,null,"Ethnicity","(All)"]
[null,null,null,null,null,null,null,null,null,null,null,null,null,null,null,null,null,null,null,null,null,null,null,null,null,null,null,null,null,null,null,null,null,null,null,null,null,null,null,null,null,null,null,null,null,null,null,null,null,null,null,null,null,null,null,null,null,null,null,null,null,null,null,null,null,null,null,null,null,null,null,null,null,null,null,null,null,null,null,null,null,null,null,null,null,null,null,null,null,null,null,null,null,null,null,null,null,null,null,null,null,null,null,null,null,null,null,null,null,null,null,null,null,null,null,null,null,null,null,null,null,null,null,null,null,null,null,null,null,null,null,null,null,null,null,null,null,null,null,null,null,null,null,null,null,null,null,null,null,null,null,null,null,null,null,null,null,null,null,null,null,null,null,null,null,null,null,null,null,null,null,null,null,null,null,null,null,null,null,null,null,null,null,null,null,null,null,null,null,null,null,null,null,null,null,null,null,null,null,null,null,null,null,null,null,null,null,null,null,null,null,null,null,null,null,null,null,null,null,null,null,null,null,null,null,null,null,null,null,null,null,null,null,null,null,null,null,null,null,null,null,null,null,null,null,null,null,null,null,null,null,null,null,null,null,null,null,null,null,null,null,null,null,null,null,null,null,null,null,null,null,null,null,null,null,null,null,null,null,null,null,null,null,null,null,null,null,null,null,null,null,null,null,null,null,null,null,null,null,null,null,null,null,null,null,null,null,null,null,null,null,null,null,null,null,null,null,null,null,null,null,null,null,null,null,null,null,null,null,null,null,null,null,null,null,null,null,null,null,null,null,null,null,null,null,null,null,null,null,null,null,null,null,null,null,null,null,null,null,null,null,null,null,null,null,null,null,null,null,null,null,null,null,null,null,null,null,null,null,null,null,null,null,null,null,null,"Age","(All)",null,null,"Age","(All)"]
[null,null,null,null,null,null,null,null,null,null,null,null,null,null,null,null,null,null,null,null,null,null,null,null,null,null,null,null,null,null,null,null,null,null,null,null,null,null,null,null,null,null,null,null,null,null,null,null,null,null,null,null,null,null,null,null,null,null,null,null,null,null,null,null,null,null,null,null,null,null,null,null,null,null,null,null,null,null,null,null,null,null,null,null,null,null,null,null,null,null,null,null,null,null,null,null,null,null,null,null,null,null,null,null,null,null,null,null,null,null,null,null,null,null,null,null,null,null,null,null,null,null,null,null,null,null,null,null,null,null,null,null,null,null,null,null,null,null,null,null,null,null,null,null,null,null,null,null,null,null,null,null,null,null,null,null,null,null,null,null,null,null,null,null,null,null,null,null,null,null,null,null,null,null,null,null,null,null,null,null,null,null,null,null,null,null,null,null,null,null,null,null,null,null,null,null,null,null,null,null,null,null,null,null,null,null,null,null,null,null,null,null,null,null,null,null,null,null,null,null,null,null,null,null,null,null,null,null,null,null,null,null,null,null,null,null,null,null,null,null,null,null,null,null,null,null,null,null,null,null,null,null,null,null,null,null,null,null,null,null,null,null,null,null,null,null,null,null,null,null,null,null,null,null,null,null,null,null,null,null,null,null,null,null,null,null,null,null,null,null,null,null,null,null,null,null,null,null,null,null,null,null,null,null,null,null,null,null,null,null,null,null,null,null,null,null,null,null,null,null,null,null,null,null,null,null,null,null,null,null,null,null,null,null,null,null,null,null,null,null,null,null,null,null,null,null,null,null,null,null,null,null,null,null,null,null,null,null,null,null,null,null,null,null,null,null,null,null,null,null,null,null,null,null,null,null,null,null,null,null,null,null,null,null,null,null,"Week starting","(All)",null,null,"Week starting","(All)"]
[]
[null,null,null,null,null,null,null,null,null,null,null,null,null,null,null,null,null,null,null,null,null,null,null,null,null,null,null,null,null,null,null,null,null,null,null,null,null,null,null,null,null,null,null,null,null,null,null,null,null,null,null,null,null,null,null,null,null,null,null,null,null,null,null,null,null,null,null,null,null,null,null,null,null,null,null,null,null,null,null,null,null,null,null,null,null,null,null,null,null,null,null,null,null,null,null,null,null,null,null,null,null,null,null,null,null,null,null,null,null,null,null,null,null,null,null,null,null,null,null,null,null,null,null,null,null,null,null,null,null,null,null,null,null,null,null,null,null,null,null,null,null,null,null,null,null,null,null,null,null,null,null,null,null,null,null,null,null,null,null,null,null,null,null,null,null,null,null,null,null,null,null,null,null,null,null,null,null,null,null,null,null,null,null,null,null,null,null,null,null,null,null,null,null,null,null,null,null,null,null,null,null,null,null,null,null,null,null,null,null,null,null,null,null,null,null,null,null,null,null,null,null,null,null,null,null,null,null,null,null,null,null,null,null,null,null,null,null,null,null,null,null,null,null,null,null,null,null,null,null,null,null,null,null,null,null,null,null,null,null,null,null,null,null,null,null,null,null,null,null,null,null,null,null,null,null,null,null,null,null,null,null,null,null,null,null,null,null,null,null,null,null,null,null,null,null,null,null,null,null,null,null,null,null,null,null,null,null,null,null,null,null,null,null,null,null,null,null,null,null,null,null,null,null,null,null,null,null,null,null,null,null,null,null,null,null,null,null,null,null,null,null,null,null,null,null,null,null,null,null,null,null,null,null,null,null,null,null,null,null,null,null,null,null,null,null,null,null,null,null,null,null,null,null,null,null,null,null,null,null,null,null,null,null,null,null,null,"Sum of Q16",null,null,null,"Sum of Q16a_12","Sum of Q16a_12 % of Q16"]
[null,null,null,null,null,null,null,null,null,null,null,null,null,null,null,null,null,null,null,null,null,null,null,null,null,null,null,null,null,null,null,null,null,null,null,null,null,null,null,null,null,null,null,null,null,null,null,null,null,null,null,null,null,null,null,null,null,null,null,null,null,null,null,null,null,null,null,null,null,null,null,null,null,null,null,null,null,null,null,null,null,null,null,null,null,null,null,null,null,null,null,null,null,null,null,null,null,null,null,null,null,null,null,null,null,null,null,null,null,null,null,null,null,null,null,null,null,null,null,null,null,null,null,null,null,null,null,null,null,null,null,null,null,null,null,null,null,null,null,null,null,null,null,null,null,null,null,null,null,null,null,null,null,null,null,null,null,null,null,null,null,null,null,null,null,null,null,null,null,null,null,null,null,null,null,null,null,null,null,null,null,null,null,null,null,null,null,null,null,null,null,null,null,null,null,null,null,null,null,null,null,null,null,null,null,null,null,null,null,null,null,null,null,null,null,null,null,null,null,null,null,null,null,null,null,null,null,null,null,null,null,null,null,null,null,null,null,null,null,null,null,null,null,null,null,null,null,null,null,null,null,null,null,null,null,null,null,null,null,null,null,null,null,null,null,null,null,null,null,null,null,null,null,null,null,null,null,null,null,null,null,null,null,null,null,null,null,null,null,null,null,null,null,null,null,null,null,null,null,null,null,null,null,null,null,null,null,null,null,null,null,null,null,null,null,null,null,null,null,null,null,null,null,null,null,null,null,null,null,null,null,null,null,null,null,null,null,null,null,null,null,null,null,null,null,null,null,null,null,null,null,null,null,null,null,null,null,null,null,null,null,null,null,null,null,null,null,null,null,null,null,null,null,null,null,null,null,null,null,null,null,null,null,null,null,null,0,null,null,null,0,{"$error":"#N/A"}]

{"sheet":"DataSummary","index":8,"n_rows":131,"n_cols":75,"rows_kept":131,"cut":false,"hidden":false,"merged":[]}
["Week starting","Ward","Case number","Ethnicity","Age","Q1","Q2","Q2a","Q3","Q4","Q5","Q6","Q7","Q8","Q9","Q10","Q10a","Q11","Q12","Q13","Q14","Q15","Q16","Q16a","Q17","Q18","Q18a","Q18b","Week starting","Ward","Case number","Ethnicity","Age","Q1","Q2","Q2a","Q3","Q4","Q5","Q6","Q7","Q8","Q9","Q10","Q10a","Q11","Q12","Q13","Q14","Q15","Q16","Q16a","Q17","Q18","Q18a","Q18b","CasesAudited","Q5_num","Q6_num","Q7_num","Q8_num","Q11_yn","Q12_notX","Q12_A","Q12_B","Q12_C","Q12_D","Q16a_yn","Q16a1","Q16a2","Q16a3","Q16a4","Q16a5","Q16a_12","Q18a_n"]
[{"$f":"TRANSPOSE('Ward one'!$D$5:$EC$32)","v":"00:00:00"},0,1,0,0,0,0,0,0,0,0,0,0,0,0,0,0,0,0,0,0,0,0,0,0,0,0,0,{"$f":"A2","v":"00:00:00"},{"$f":"B2","v":0},{"$f":"C2","v":1},{"$f":"D2","v":0},{"$f":"E2","v":0},{"$f":"IF(F2=\"y\",1,0)","v":0},{"$f":"IF(G2=\"y\",1,0)","v":0},0,0,0,{"$f":"IF(OR(K2=\"F\",K2=\"C\"),1,0)","v":0},{"$f":"IF(OR(L2=\"F\",L2=\"C\"),1,0)","v":0},{"$f":"IF(OR(M2=\"F\",M2=\"C\"),1,0)","v":0},{"$f":"IF(OR(N2=\"F\",N2=\"C\"),1,0)","v":0},0,0,0,0,0,0,0,0,0,{"$f":"X2","v":0},0,0,0,0,{"$f":"IF(COUNTIF(D2:AB2,\"*\")>0,1,0)","v":0},{"$f":"K2","v":0},{"$f":"L2","v":0},0,0,{"$f":"IF(OR(R2=\"y\",R2=\"n\"),1,0)","v":0},{"$f":"IF(AND(S2<>\"X\",S2<>0),1,0)","v":0},{"$f":"IF(S2=\"A\",1,0)","v":0},{"$f":"IF(S2=\"B\",1,0)","v":0},{"$f":"IF(S2=\"C\",1,0)","v":0},{"$f":"IF(S2=\"D\",1,0)","v":0},{"$f":"IF(AZ2>0,1,0)","v":0},{"$f":"IF(AZ2=1,1,0)","v":0},{"$f":"IF(AZ2=2,1,0)","v":0},{"$f":"IF(AZ2=3,1,0)","v":0},{"$f":"IF(AZ2=4,1,0)","v":0},{"$f":"IF(AZ2=5,1,0)","v":0},{"$f":"IF(OR(X2=1,X2=2),1,0)","v":0},{"$f":"IF(AA2=\"n\",1,0)","v":0}]
["00:00:00",0,2,0,0,0,0,0,0,0,0,0,0,0,0,0,0,0,0,0,0,0,0,0,0,0,0,0,{"$f":"A3","v":"00:00:00"},{"$f":"B3","v":0},{"$f":"C3","v":2},{"$f":"D3","v":0},{"$f":"E3","v":0},{"$f":"IF(F3=\"y\",1,0)","v":0},{"$f":"IF(G3=\"y\",1,0)","v":0},{"$f":"IF(H3=\"y\",1,0)","v":0},{"$f":"IF(I3=\"y\",1,0)","v":0},{"$f":"IF(J3=\"y\",1,0)","v":0},{"$f":"IF(OR(K3=\"F\",K3=\"C\"),1,0)","v":0},{"$f":"IF(OR(L3=\"F\",L3=\"C\"),1,0)","v":0},{"$f":"IF(OR(M3=\"F\",M3=\"C\"),1,0)","v":0},{"$f":"IF(OR(N3=\"F\",N3=\"C\"),1,0)","v":0},{"$f":"IF(O3=\"y\",1,0)","v":0},{"$f":"IF(P3=\"y\",1,0)","v":0},{"$f":"IF(Q3=\"y\",1,0)","v":0},{"$f":"IF(R3=\"y\",1,0)","v":0},{"$f":"IF(S3=\"y\",1,0)","v":0},{"$f":"IF(T3=\"y\",1,0)","v":0},{"$f":"IF(U3=\"y\",1,0)","v":0},{"$f":"IF(V3=\"y\",1,0)","v":0},{"$f":"IF(W3=\"y\",1,0)","v":0},{"$f":"X3","v":0},{"$f":"IF(Y3=\"y\",1,0)","v":0},{"$f":"IF(Z3=\"y\",1,0)","v":0},{"$f":"IF(AA3=\"y\",1,0)","v":0},{"$f":"IF(AB3=\"y\",1,0)","v":0},{"$f":"IF(COUNTIF(D3:AB3,\"*\")>0,1,0)","v":0},{"$f":"K3","v":0},{"$f":"L3","v":0},{"$f":"M3","v":0},{"$f":"N3","v":0},{"$f":"IF(OR(R3=\"y\",R3=\"n\"),1,0)","v":0},{"$f":"IF(AND(S3<>\"X\",S3<>0),1,0)","v":0},{"$f":"IF(S3=\"A\",1,0)","v":0},{"$f":"IF(S3=\"B\",1,0)","v":0},{"$f":"IF(S3=\"C\",1,0)","v":0},{"$f":"IF(S3=\"D\",1,0)","v":0},{"$f":"IF(AZ3>0,1,0)","v":0},{"$f":"IF(AZ3=1,1,0)","v":0},{"$f":"IF(AZ3=2,1,0)","v":0},{"$f":"IF(AZ3=3,1,0)","v":0},{"$f":"IF(AZ3=4,1,0)","v":0},{"$f":"IF(AZ3=5,1,0)","v":0},{"$f":"IF(OR(X3=1,X3=2),1,0)","v":0},{"$f":"IF(AA3=\"n\",1,0)","v":0}]
["00:00:00",0,3,0,0,0,0,0,0,0,0,0,0,0,0,0,0,0,0,0,0,0,0,0,0,0,0,0,"00:00:00",0,3,0,0,0,0,0,0,0,0,0,0,0,0,0,0,0,0,0,0,0,0,0,0,0,0,0,0,0,0,0,0,0,0,0,0,0,0,0,0,0,0,0,0,0,0]
["00:00:00",0,4,0,0,0,0,0,0,0,0,0,0,0,0,0,0,0,0,0,0,0,0,0,0,0,0,0,"00:00:00",0,4,0,0,0,0,0,0,0,0,0,0,0,0,0,0,0,0,0,0,0,0,0,0,0,0,0,0,0,0,0,0,0,0,0,0,0,0,0,0,0,0,0,0,0,0]
["00:00:00",0,5,0,0,0,0,0,0,0,0,0,0,0,0,0,0,0,0,0,0,0,0,0,0,0,0,0,"00:00:00",0,5,0,0,0,0,0,0,0,0,0,0,0,0,0,0,0,0,0,0,0,0,0,0,0,0,0,0,0,0,0,0,0,0,0,0,0,0,0,0,0,0,0,0,0,0]
["00:00:00",0,6,0,0,0,0,0,0,0,0,0,0,0,0,0,0,0,0,0,0,0,0,0,0,0,0,0,"00:00:00",0,6,0,0,0,0,0,0,0,0,0,0,0,0,0,0,0,0,0,0,0,0,0,0,0,0,0,0,0,0,0,0,0,0,0,0,0,0,0,0,0,0,0,0,0,0]
["00:00:00",0,7,0,0,0,0,0,0,0,0,0,0,0,0,0,0,0,0,0,0,0,0,0,0,0,0,0,"00:00:00",0,7,0,0,0,0,0,0,0,0,0,0,0,0,0,0,0,0,0,0,0,0,0,0,0,0,0,0,0,0,0,0,0,0,0,0,0,0,0,0,0,0,0,0,0,0]
["00:00:00",0,8,0,0,0,0,0,0,0,0,0,0,0,0,0,0,0,0,0,0,0,0,0,0,0,0,0,"00:00:00",0,8,0,0,0,0,0,0,0,0,0,0,0,0,0,0,0,0,0,0,0,0,0,0,0,0,0,0,0,0,0,0,0,0,0,0,0,0,0,0,0,0,0,0,0,0]
["00:00:00",0,9,0,0,0,0,0,0,0,0,0,0,0,0,0,0,0,0,0,0,0,0,0,0,0,0,0,"00:00:00",0,9,0,0,0,0,0,0,0,0,0,0,0,0,0,0,0,0,0,0,0,0,0,0,0,0,0,0,0,0,0,0,0,0,0,0,0,0,0,0,0,0,0,0,0,0]
["00:00:00",0,10,0,0,0,0,0,0,0,0,0,0,0,0,0,0,0,0,0,0,0,0,0,0,0,0,0,"00:00:00",0,10,0,0,0,0,0,0,0,0,0,0,0,0,0,0,0,0,0,0,0,0,0,0,0,0,0,0,0,0,0,0,0,0,0,0,0,0,0,0,0,0,0,0,0,0]
["1900-01-07",0,1,0,0,0,0,0,0,0,0,0,0,0,0,0,0,0,0,0,0,0,0,0,0,0,0,0,"1900-01-07",0,1,0,0,0,0,0,0,0,0,0,0,0,0,0,0,0,0,0,0,0,0,0,0,0,0,0,0,0,0,0,0,0,0,0,0,0,0,0,0,0,0,0,0,0,0]
["1900-01-07",0,2,0,0,0,0,0,0,0,0,0,0,0,0,0,0,0,0,0,0,0,0,0,0,0,0,0,"1900-01-07",0,2,0,0,0,0,0,0,0,0,0,0,0,0,0,0,0,0,0,0,0,0,0,0,0,0,0,0,0,0,0,0,0,0,0,0,0,0,0,0,0,0,0,0,0,0]
["1900-01-07",0,3,0,0,0,0,0,0,0,0,0,0,0,0,0,0,0,0,0,0,0,0,0,0,0,0,0,"1900-01-07",0,3,0,0,0,0,0,0,0,0,0,0,0,0,0,0,0,0,0,0,0,0,0,0,0,0,0,0,0,0,0,0,0,0,0,0,0,0,0,0,0,0,0,0,0,0]
["1900-01-07",0,4,0,0,0,0,0,0,0,0,0,0,0,0,0,0,0,0,0,0,0,0,0,0,0,0,0,"1900-01-07",0,4,0,0,0,0,0,0,0,0,0,0,0,0,0,0,0,0,0,0,0,0,0,0,0,0,0,0,0,0,0,0,0,0,0,0,0,0,0,0,0,0,0,0,0,0]
["1900-01-07",0,5,0,0,0,0,0,0,0,0,0,0,0,0,0,0,0,0,0,0,0,0,0,0,0,0,0,"1900-01-07",0,5,0,0,0,0,0,0,0,0,0,0,0,0,0,0,0,0,0,0,0,0,0,0,0,0,0,0,0,0,0,0,0,0,0,0,0,0,0,0,0,0,0,0,0,0]
["1900-01-07",0,6,0,0,0,0,0,0,0,0,0,0,0,0,0,0,0,0,0,0,0,0,0,0,0,0,0,"1900-01-07",0,6,0,0,0,0,0,0,0,0,0,0,0,0,0,0,0,0,0,0,0,0,0,0,0,0,0,0,0,0,0,0,0,0,0,0,0,0,0,0,0,0,0,0,0,0]
["1900-01-07",0,7,0,0,0,0,0,0,0,0,0,0,0,0,0,0,0,0,0,0,0,0,0,0,0,0,0,"1900-01-07",0,7,0,0,0,0,0,0,0,0,0,0,0,0,0,0,0,0,0,0,0,0,0,0,0,0,0,0,0,0,0,0,0,0,0,0,0,0,0,0,0,0,0,0,0,0]
["1900-01-07",0,8,0,0,0,0,0,0,0,0,0,0,0,0,0,0,0,0,0,0,0,0,0,0,0,0,0,"1900-01-07",0,8,0,0,0,0,0,0,0,0,0,0,0,0,0,0,0,0,0,0,0,0,0,0,0,0,0,0,0,0,0,0,0,0,0,0,0,0,0,0,0,0,0,0,0,0]
["1900-01-07",0,9,0,0,0,0,0,0,0,0,0,0,0,0,0,0,0,0,0,0,0,0,0,0,0,0,0,"1900-01-07",0,9,0,0,0,0,0,0,0,0,0,0,0,0,0,0,0,0,0,0,0,0,0,0,0,0,0,0,0,0,0,0,0,0,0,0,0,0,0,0,0,0,0,0,0,0]
["1900-01-07",0,10,0,0,0,0,0,0,0,0,0,0,0,0,0,0,0,0,0,0,0,0,0,0,0,0,0,"1900-01-07",0,10,0,0,0,0,0,0,0,0,0,0,0,0,0,0,0,0,0,0,0,0,0,0,0,0,0,0,0,0,0,0,0,0,0,0,0,0,0,0,0,0,0,0,0,0]
["1900-01-14",0,1,0,0,0,0,0,0,0,0,0,0,0,0,0,0,0,0,0,0,0,0,0,0,0,0,0,"1900-01-14",0,1,0,0,0,0,0,0,0,0,0,0,0,0,0,0,0,0,0,0,0,0,0,0,0,0,0,0,0,0,0,0,0,0,0,0,0,0,0,0,0,0,0,0,0,0]
["1900-01-14",0,2,0,0,0,0,0,0,0,0,0,0,0,0,0,0,0,0,0,0,0,0,0,0,0,0,0,"1900-01-14",0,2,0,0,0,0,0,0,0,0,0,0,0,0,0,0,0,0,0,0,0,0,0,0,0,0,0,0,0,0,0,0,0,0,0,0,0,0,0,0,0,0,0,0,0,0]
["1900-01-14",0,3,0,0,0,0,0,0,0,0,0,0,0,0,0,0,0,0,0,0,0,0,0,0,0,0,0,"1900-01-14",0,3,0,0,0,0,0,0,0,0,0,0,0,0,0,0,0,0,0,0,0,0,0,0,0,0,0,0,0,0,0,0,0,0,0,0,0,0,0,0,0,0,0,0,0,0]
["1900-01-14",0,4,0,0,0,0,0,0,0,0,0,0,0,0,0,0,0,0,0,0,0,0,0,0,0,0,0,"1900-01-14",0,4,0,0,0,0,0,0,0,0,0,0,0,0,0,0,0,0,0,0,0,0,0,0,0,0,0,0,0,0,0,0,0,0,0,0,0,0,0,0,0,0,0,0,0,0]
["1900-01-14",0,5,0,0,0,0,0,0,0,0,0,0,0,0,0,0,0,0,0,0,0,0,0,0,0,0,0,"1900-01-14",0,5,0,0,0,0,0,0,0,0,0,0,0,0,0,0,0,0,0,0,0,0,0,0,0,0,0,0,0,0,0,0,0,0,0,0,0,0,0,0,0,0,0,0,0,0]
["1900-01-14",0,6,0,0,0,0,0,0,0,0,0,0,0,0,0,0,0,0,0,0,0,0,0,0,0,0,0,"1900-01-14",0,6,0,0,0,0,0,0,0,0,0,0,0,0,0,0,0,0,0,0,0,0,0,0,0,0,0,0,0,0,0,0,0,0,0,0,0,0,0,0,0,0,0,0,0,0]
["1900-01-14",0,7,0,0,0,0,0,0,0,0,0,0,0,0,0,0,0,0,0,0,0,0,0,0,0,0,0,"1900-01-14",0,7,0,0,0,0,0,0,0,0,0,0,0,0,0,0,0,0,0,0,0,0,0,0,0,0,0,0,0,0,0,0,0,0,0,0,0,0,0,0,0,0,0,0,0,0]
["1900-01-14",0,8,0,0,0,0,0,0,0,0,0,0,0,0,0,0,0,0,0,0,0,0,0,0,0,0,0,"1900-01-14",0,8,0,0,0,0,0,0,0,0,0,0,0,0,0,0,0,0,0,0,0,0,0,0,0,0,0,0,0,0,0,0,0,0,0,0,0,0,0,0,0,0,0,0,0,0]
["1900-01-14",0,9,0,0,0,0,0,0,0,0,0,0,0,0,0,0,0,0,0,0,0,0,0,0,0,0,0,"1900-01-14",0,9,0,0,0,0,0,0,0,0,0,0,0,0,0,0,0,0,0,0,0,0,0,0,0,0,0,0,0,0,0,0,0,0,0,0,0,0,0,0,0,0,0,0,0,0]
["1900-01-14",0,10,0,0,0,0,0,0,0,0,0,0,0,0,0,0,0,0,0,0,0,0,0,0,0,0,0,"1900-01-14",0,10,0,0,0,0,0,0,0,0,0,0,0,0,0,0,0,0,0,0,0,0,0,0,0,0,0,0,0,0,0,0,0,0,0,0,0,0,0,0,0,0,0,0,0,0]
["1900-01-21",0,1,0,0,0,0,0,0,0,0,0,0,0,0,0,0,0,0,0,0,0,0,0,0,0,0,0,"1900-01-21",0,1,0,0,0,0,0,0,0,0,0,0,0,0,0,0,0,0,0,0,0,0,0,0,0,0,0,0,0,0,0,0,0,0,0,0,0,0,0,0,0,0,0,0,0,0]
["1900-01-21",0,2,0,0,0,0,0,0,0,0,0,0,0,0,0,0,0,0,0,0,0,0,0,0,0,0,0,"1900-01-21",0,2,0,0,0,0,0,0,0,0,0,0,0,0,0,0,0,0,0,0,0,0,0,0,0,0,0,0,0,0,0,0,0,0,0,0,0,0,0,0,0,0,0,0,0,0]
["1900-01-21",0,3,0,0,0,0,0,0,0,0,0,0,0,0,0,0,0,0,0,0,0,0,0,0,0,0,0,"1900-01-21",0,3,0,0,0,0,0,0,0,0,0,0,0,0,0,0,0,0,0,0,0,0,0,0,0,0,0,0,0,0,0,0,0,0,0,0,0,0,0,0,0,0,0,0,0,0]
["1900-01-21",0,4,0,0,0,0,0,0,0,0,0,0,0,0,0,0,0,0,0,0,0,0,0,0,0,0,0,"1900-01-21",0,4,0,0,0,0,0,0,0,0,0,0,0,0,0,0,0,0,0,0,0,0,0,0,0,0,0,0,0,0,0,0,0,0,0,0,0,0,0,0,0,0,0,0,0,0]
["1900-01-21",0,5,0,0,0,0,0,0,0,0,0,0,0,0,0,0,0,0,0,0,0,0,0,0,0,0,0,"1900-01-21",0,5,0,0,0,0,0,0,0,0,0,0,0,0,0,0,0,0,0,0,0,0,0,0,0,0,0,0,0,0,0,0,0,0,0,0,0,0,0,0,0,0,0,0,0,0]
["1900-01-21",0,6,0,0,0,0,0,0,0,0,0,0,0,0,0,0,0,0,0,0,0,0,0,0,0,0,0,"1900-01-21",0,6,0,0,0,0,0,0,0,0,0,0,0,0,0,0,0,0,0,0,0,0,0,0,0,0,0,0,0,0,0,0,0,0,0,0,0,0,0,0,0,0,0,0,0,0]
["1900-01-21",0,7,0,0,0,0,0,0,0,0,0,0,0,0,0,0,0,0,0,0,0,0,0,0,0,0,0,"1900-01-21",0,7,0,0,0,0,0,0,0,0,0,0,0,0,0,0,0,0,0,0,0,0,0,0,0,0,0,0,0,0,0,0,0,0,0,0,0,0,0,0,0,0,0,0,0,0]
["1900-01-21",0,8,0,0,0,0,0,0,0,0,0,0,0,0,0,0,0,0,0,0,0,0,0,0,0,0,0,"1900-01-21",0,8,0,0,0,0,0,0,0,0,0,0,0,0,0,0,0,0,0,0,0,0,0,0,0,0,0,0,0,0,0,0,0,0,0,0,0,0,0,0,0,0,0,0,0,0]
["1900-01-21",0,9,0,0,0,0,0,0,0,0,0,0,0,0,0,0,0,0,0,0,0,0,0,0,0,0,0,"1900-01-21",0,9,0,0,0,0,0,0,0,0,0,0,0,0,0,0,0,0,0,0,0,0,0,0,0,0,0,0,0,0,0,0,0,0,0,0,0,0,0,0,0,0,0,0,0,0]
["1900-01-21",0,10,0,0,0,0,0,0,0,0,0,0,0,0,0,0,0,0,0,0,0,0,0,0,0,0,0,"1900-01-21",0,10,0,0,0,0,0,0,0,0,0,0,0,0,0,0,0,0,0,0,0,0,0,0,0,0,0,0,0,0,0,0,0,0,0,0,0,0,0,0,0,0,0,0,0,0]
["1900-01-28",0,1,0,0,0,0,0,0,0,0,0,0,0,0,0,0,0,0,0,0,0,0,0,0,0,0,0,"1900-01-28",0,1,0,0,0,0,0,0,0,0,0,0,0,0,0,0,0,0,0,0,0,0,0,0,0,0,0,0,0,0,0,0,0,0,0,0,0,0,0,0,0,0,0,0,0,0]
["1900-01-28",0,2,0,0,0,0,0,0,0,0,0,0,0,0,0,0,0,0,0,0,0,0,0,0,0,0,0,"1900-01-28",0,2,0,0,0,0,0,0,0,0,0,0,0,0,0,0,0,0,0,0,0,0,0,0,0,0,0,0,0,0,0,0,0,0,0,0,0,0,0,0,0,0,0,0,0,0]
["1900-01-28",0,3,0,0,0,0,0,0,0,0,0,0,0,0,0,0,0,0,0,0,0,0,0,0,0,0,0,"1900-01-28",0,3,0,0,0,0,0,0,0,0,0,0,0,0,0,0,0,0,0,0,0,0,0,0,0,0,0,0,0,0,0,0,0,0,0,0,0,0,0,0,0,0,0,0,0,0]
["1900-01-28",0,4,0,0,0,0,0,0,0,0,0,0,0,0,0,0,0,0,0,0,0,0,0,0,0,0,0,"1900-01-28",0,4,0,0,0,0,0,0,0,0,0,0,0,0,0,0,0,0,0,0,0,0,0,0,0,0,0,0,0,0,0,0,0,0,0,0,0,0,0,0,0,0,0,0,0,0]
["1900-01-28",0,5,0,0,0,0,0,0,0,0,0,0,0,0,0,0,0,0,0,0,0,0,0,0,0,0,0,"1900-01-28",0,5,0,0,0,0,0,0,0,0,0,0,0,0,0,0,0,0,0,0,0,0,0,0,0,0,0,0,0,0,0,0,0,0,0,0,0,0,0,0,0,0,0,0,0,0]
["1900-01-28",0,6,0,0,0,0,0,0,0,0,0,0,0,0,0,0,0,0,0,0,0,0,0,0,0,0,0,"1900-01-28",0,6,0,0,0,0,0,0,0,0,0,0,0,0,0,0,0,0,0,0,0,0,0,0,0,0,0,0,0,0,0,0,0,0,0,0,0,0,0,0,0,0,0,0,0,0]
["1900-01-28",0,7,0,0,0,0,0,0,0,0,0,0,0,0,0,0,0,0,0,0,0,0,0,0,0,0,0,"1900-01-28",0,7,0,0,0,0,0,0,0,0,0,0,0,0,0,0,0,0,0,0,0,0,0,0,0,0,0,0,0,0,0,0,0,0,0,0,0,0,0,0,0,0,0,0,0,0]
["1900-01-28",0,8,0,0,0,0,0,0,0,0,0,0,0,0,0,0,0,0,0,0,0,0,0,0,0,0,0,"1900-01-28",0,8,0,0,0,0,0,0,0,0,0,0,0,0,0,0,0,0,0,0,0,0,0,0,0,0,0,0,0,0,0,0,0,0,0,0,0,0,0,0,0,0,0,0,0,0]
["1900-01-28",0,9,0,0,0,0,0,0,0,0,0,0,0,0,0,0,0,0,0,0,0,0,0,0,0,0,0,"1900-01-28",0,9,0,0,0,0,0,0,0,0,0,0,0,0,0,0,0,0,0,0,0,0,0,0,0,0,0,0,0,0,0,0,0,0,0,0,0,0,0,0,0,0,0,0,0,0]
["1900-01-28",0,10,0,0,0,0,0,0,0,0,0,0,0,0,0,0,0,0,0,0,0,0,0,0,0,0,0,"1900-01-28",0,10,0,0,0,0,0,0,0,0,0,0,0,0,0,0,0,0,0,0,0,0,0,0,0,0,0,0,0,0,0,0,0,0,0,0,0,0,0,0,0,0,0,0,0,0]
["1900-02-04",0,1,0,0,0,0,0,0,0,0,0,0,0,0,0,0,0,0,0,0,0,0,0,0,0,0,0,"1900-02-04",0,1,0,0,0,0,0,0,0,0,0,0,0,0,0,0,0,0,0,0,0,0,0,0,0,0,0,0,0,0,0,0,0,0,0,0,0,0,0,0,0,0,0,0,0,0]
["1900-02-04",0,2,0,0,0,0,0,0,0,0,0,0,0,0,0,0,0,0,0,0,0,0,0,0,0,0,0,"1900-02-04",0,2,0,0,0,0,0,0,0,0,0,0,0,0,0,0,0,0,0,0,0,0,0,0,0,0,0,0,0,0,0,0,0,0,0,0,0,0,0,0,0,0,0,0,0,0]
["1900-02-04",0,3,0,0,0,0,0,0,0,0,0,0,0,0,0,0,0,0,0,0,0,0,0,0,0,0,0,"1900-02-04",0,3,0,0,0,0,0,0,0,0,0,0,0,0,0,0,0,0,0,0,0,0,0,0,0,0,0,0,0,0,0,0,0,0,0,0,0,0,0,0,0,0,0,0,0,0]
["1900-02-04",0,4,0,0,0,0,0,0,0,0,0,0,0,0,0,0,0,0,0,0,0,0,0,0,0,0,0,"1900-02-04",0,4,0,0,0,0,0,0,0,0,0,0,0,0,0,0,0,0,0,0,0,0,0,0,0,0,0,0,0,0,0,0,0,0,0,0,0,0,0,0,0,0,0,0,0,0]
["1900-02-04",0,5,0,0,0,0,0,0,0,0,0,0,0,0,0,0,0,0,0,0,0,0,0,0,0,0,0,"1900-02-04",0,5,0,0,0,0,0,0,0,0,0,0,0,0,0,0,0,0,0,0,0,0,0,0,0,0,0,0,0,0,0,0,0,0,0,0,0,0,0,0,0,0,0,0,0,0]
["1900-02-04",0,6,0,0,0,0,0,0,0,0,0,0,0,0,0,0,0,0,0,0,0,0,0,0,0,0,0,"1900-02-04",0,6,0,0,0,0,0,0,0,0,0,0,0,0,0,0,0,0,0,0,0,0,0,0,0,0,0,0,0,0,0,0,0,0,0,0,0,0,0,0,0,0,0,0,0,0]
["1900-02-04",0,7,0,0,0,0,0,0,0,0,0,0,0,0,0,0,0,0,0,0,0,0,0,0,0,0,0,"1900-02-04",0,7,0,0,0,0,0,0,0,0,0,0,0,0,0,0,0,0,0,0,0,0,0,0,0,0,0,0,0,0,0,0,0,0,0,0,0,0,0,0,0,0,0,0,0,0]
["1900-02-04",0,8,0,0,0,0,0,0,0,0,0,0,0,0,0,0,0,0,0,0,0,0,0,0,0,0,0,"1900-02-04",0,8,0,0,0,0,0,0,0,0,0,0,0,0,0,0,0,0,0,0,0,0,0,0,0,0,0,0,0,0,0,0,0,0,0,0,0,0,0,0,0,0,0,0,0,0]
["1900-02-04",0,9,0,0,0,0,0,0,0,0,0,0,0,0,0,0,0,0,0,0,0,0,0,0,0,0,0,"1900-02-04",0,9,0,0,0,0,0,0,0,0,0,0,0,0,0,0,0,0,0,0,0,0,0,0,0,0,0,0,0,0,0,0,0,0,0,0,0,0,0,0,0,0,0,0,0,0]
["1900-02-04",0,10,0,0,0,0,0,0,0,0,0,0,0,0,0,0,0,0,0,0,0,0,0,0,0,0,0,"1900-02-04",0,10,0,0,0,0,0,0,0,0,0,0,0,0,0,0,0,0,0,0,0,0,0,0,0,0,0,0,0,0,0,0,0,0,0,0,0,0,0,0,0,0,0,0,0,0]
["1900-02-11",0,1,0,0,0,0,0,0,0,0,0,0,0,0,0,0,0,0,0,0,0,0,0,0,0,0,0,"1900-02-11",0,1,0,0,0,0,0,0,0,0,0,0,0,0,0,0,0,0,0,0,0,0,0,0,0,0,0,0,0,0,0,0,0,0,0,0,0,0,0,0,0,0,0,0,0,0]
["1900-02-11",0,2,0,0,0,0,0,0,0,0,0,0,0,0,0,0,0,0,0,0,0,0,0,0,0,0,0,"1900-02-11",0,2,0,0,0,0,0,0,0,0,0,0,0,0,0,0,0,0,0,0,0,0,0,0,0,0,0,0,0,0,0,0,0,0,0,0,0,0,0,0,0,0,0,0,0,0]
["1900-02-11",0,3,0,0,0,0,0,0,0,0,0,0,0,0,0,0,0,0,0,0,0,0,0,0,0,0,0,"1900-02-11",0,3,0,0,0,0,0,0,0,0,0,0,0,0,0,0,0,0,0,0,0,0,0,0,0,0,0,0,0,0,0,0,0,0,0,0,0,0,0,0,0,0,0,0,0,0]
["1900-02-11",0,4,0,0,0,0,0,0,0,0,0,0,0,0,0,0,0,0,0,0,0,0,0,0,0,0,0,"1900-02-11",0,4,0,0,0,0,0,0,0,0,0,0,0,0,0,0,0,0,0,0,0,0,0,0,0,0,0,0,0,0,0,0,0,0,0,0,0,0,0,0,0,0,0,0,0,0]
["1900-02-11",0,5,0,0,0,0,0,0,0,0,0,0,0,0,0,0,0,0,0,0,0,0,0,0,0,0,0,"1900-02-11",0,5,0,0,0,0,0,0,0,0,0,0,0,0,0,0,0,0,0,0,0,0,0,0,0,0,0,0,0,0,0,0,0,0,0,0,0,0,0,0,0,0,0,0,0,0]
["1900-02-11",0,6,0,0,0,0,0,0,0,0,0,0,0,0,0,0,0,0,0,0,0,0,0,0,0,0,0,{"$f":"A67","v":"1900-02-11"},{"$f":"B67","v":0},{"$f":"C67","v":6},{"$f":"D67","v":0},{"$f":"E67","v":0},{"$f":"IF(F67=\"y\",1,0)","v":0},{"$f":"IF(G67=\"y\",1,0)","v":0},{"$f":"IF(H67=\"y\",1,0)","v":0},{"$f":"IF(I67=\"y\",1,0)","v":0},{"$f":"IF(J67=\"y\",1,0)","v":0},{"$f":"IF(OR(K67=\"F\",K67=\"C\"),1,0)","v":0},{"$f":"IF(OR(L67=\"F\",L67=\"C\"),1,0)","v":0},{"$f":"IF(OR(M67=\"F\",M67=\"C\"),1,0)","v":0},{"$f":"IF(OR(N67=\"F\",N67=\"C\"),1,0)","v":0},{"$f":"IF(O67=\"y\",1,0)","v":0},{"$f":"IF(P67=\"y\",1,0)","v":0},{"$f":"IF(Q67=\"y\",1,0)","v":0},{"$f":"IF(R67=\"y\",1,0)","v":0},{"$f":"IF(S67=\"y\",1,0)","v":0},{"$f":"IF(T67=\"y\",1,0)","v":0},{"$f":"IF(U67=\"y\",1,0)","v":0},{"$f":"IF(V67=\"y\",1,0)","v":0},{"$f":"IF(W67=\"y\",1,0)","v":0},{"$f":"X67","v":0},{"$f":"IF(Y67=\"y\",1,0)","v":0},{"$f":"IF(Z67=\"y\",1,0)","v":0},{"$f":"IF(AA67=\"y\",1,0)","v":0},{"$f":"IF(AB67=\"y\",1,0)","v":0},{"$f":"IF(COUNTIF(D67:AB67,\"*\")>0,1,0)","v":0},{"$f":"K67","v":0},{"$f":"L67","v":0},{"$f":"M67","v":0},{"$f":"N67","v":0},{"$f":"IF(OR(R67=\"y\",R67=\"n\"),1,0)","v":0},{"$f":"IF(AND(S67<>\"X\",S67<>0),1,0)","v":0},{"$f":"IF(S67=\"A\",1,0)","v":0},{"$f":"IF(S67=\"B\",1,0)","v":0},{"$f":"IF(S67=\"C\",1,0)","v":0},{"$f":"IF(S67=\"D\",1,0)","v":0},{"$f":"IF(AZ67>0,1,0)","v":0},{"$f":"IF(AZ67=1,1,0)","v":0},{"$f":"IF(AZ67=2,1,0)","v":0},{"$f":"IF(AZ67=3,1,0)","v":0},{"$f":"IF(AZ67=4,1,0)","v":0},{"$f":"IF(AZ67=5,1,0)","v":0},{"$f":"IF(OR(X67=1,X67=2),1,0)","v":0},{"$f":"IF(AA67=\"n\",1,0)","v":0}]
["1900-02-11",0,7,0,0,0,0,0,0,0,0,0,0,0,0,0,0,0,0,0,0,0,0,0,0,0,0,0,"1900-02-11",0,7,0,0,0,0,0,0,0,0,0,0,0,0,0,0,0,0,0,0,0,0,0,0,0,0,0,0,0,0,0,0,0,0,0,0,0,0,0,0,0,0,0,0,0,0]
["1900-02-11",0,8,0,0,0,0,0,0,0,0,0,0,0,0,0,0,0,0,0,0,0,0,0,0,0,0,0,"1900-02-11",0,8,0,0,0,0,0,0,0,0,0,0,0,0,0,0,0,0,0,0,0,0,0,0,0,0,0,0,0,0,0,0,0,0,0,0,0,0,0,0,0,0,0,0,0,0]
["1900-02-11",0,9,0,0,0,0,0,0,0,0,0,0,0,0,0,0,0,0,0,0,0,0,0,0,0,0,0,"1900-02-11",0,9,0,0,0,0,0,0,0,0,0,0,0,0,0,0,0,0,0,0,0,0,0,0,0,0,0,0,0,0,0,0,0,0,0,0,0,0,0,0,0,0,0,0,0,0]
["1900-02-11",0,10,0,0,0,0,0,0,0,0,0,0,0,0,0,0,0,0,0,0,0,0,0,0,0,0,0,"1900-02-11",0,10,0,0,0,0,0,0,0,0,0,0,0,0,0,0,0,0,0,0,0,0,0,0,0,0,0,0,0,0,0,0,0,0,0,0,0,0,0,0,0,0,0,0,0,0]
["1900-02-18",0,1,0,0,0,0,0,0,0,0,0,0,0,0,0,0,0,0,0,0,0,0,0,0,0,0,0,"1900-02-18",0,1,0,0,0,0,0,0,0,0,0,0,0,0,0,0,0,0,0,0,0,0,0,0,0,0,0,0,0,0,0,0,0,0,0,0,0,0,0,0,0,0,0,0,0,0]
["1900-02-18",0,2,0,0,0,0,0,0,0,0,0,0,0,0,0,0,0,0,0,0,0,0,0,0,0,0,0,"1900-02-18",0,2,0,0,0,0,0,0,0,0,0,0,0,0,0,0,0,0,0,0,0,0,0,0,0,0,0,0,0,0,0,0,0,0,0,0,0,0,0,0,0,0,0,0,0,0]
["1900-02-18",0,3,0,0,0,0,0,0,0,0,0,0,0,0,0,0,0,0,0,0,0,0,0,0,0,0,0,"1900-02-18",0,3,0,0,0,0,0,0,0,0,0,0,0,0,0,0,0,0,0,0,0,0,0,0,0,0,0,0,0,0,0,0,0,0,0,0,0,0,0,0,0,0,0,0,0,0]
["1900-02-18",0,4,0,0,0,0,0,0,0,0,0,0,0,0,0,0,0,0,0,0,0,0,0,0,0,0,0,"1900-02-18",0,4,0,0,0,0,0,0,0,0,0,0,0,0,0,0,0,0,0,0,0,0,0,0,0,0,0,0,0,0,0,0,0,0,0,0,0,0,0,0,0,0,0,0,0,0]
["1900-02-18",0,5,0,0,0,0,0,0,0,0,0,0,0,0,0,0,0,0,0,0,0,0,0,0,0,0,0,"1900-02-18",0,5,0,0,0,0,0,0,0,0,0,0,0,0,0,0,0,0,0,0,0,0,0,0,0,0,0,0,0,0,0,0,0,0,0,0,0,0,0,0,0,0,0,0,0,0]
["1900-02-18",0,6,0,0,0,0,0,0,0,0,0,0,0,0,0,0,0,0,0,0,0,0,0,0,0,0,0,"1900-02-18",0,6,0,0,0,0,0,0,0,0,0,0,0,0,0,0,0,0,0,0,0,0,0,0,0,0,0,0,0,0,0,0,0,0,0,0,0,0,0,0,0,0,0,0,0,0]
["1900-02-18",0,7,0,0,0,0,0,0,0,0,0,0,0,0,0,0,0,0,0,0,0,0,0,0,0,0,0,"1900-02-18",0,7,0,0,0,0,0,0,0,0,0,0,0,0,0,0,0,0,0,0,0,0,0,0,0,0,0,0,0,0,0,0,0,0,0,0,0,0,0,0,0,0,0,0,0,0]
["1900-02-18",0,8,0,0,0,0,0,0,0,0,0,0,0,0,0,0,0,0,0,0,0,0,0,0,0,0,0,"1900-02-18",0,8,0,0,0,0,0,0,0,0,0,0,0,0,0,0,0,0,0,0,0,0,0,0,0,0,0,0,0,0,0,0,0,0,0,0,0,0,0,0,0,0,0,0,0,0]
["1900-02-18",0,9,0,0,0,0,0,0,0,0,0,0,0,0,0,0,0,0,0,0,0,0,0,0,0,0,0,"1900-02-18",0,9,0,0,0,0,0,0,0,0,0,0,0,0,0,0,0,0,0,0,0,0,0,0,0,0,0,0,0,0,0,0,0,0,0,0,0,0,0,0,0,0,0,0,0,0]
["1900-02-18",0,10,0,0,0,0,0,0,0,0,0,0,0,0,0,0,0,0,0,0,0,0,0,0,0,0,0,"1900-02-18",0,10,0,0,0,0,0,0,0,0,0,0,0,0,0,0,0,0,0,0,0,0,0,0,0,0,0,0,0,0,0,0,0,0,0,0,0,0,0,0,0,0,0,0,0,0]
["1900-02-25",0,1,0,0,0,0,0,0,0,0,0,0,0,0,0,0,0,0,0,0,0,0,0,0,0,0,0,"1900-02-25",0,1,0,0,0,0,0,0,0,0,0,0,0,0,0,0,0,0,0,0,0,0,0,0,0,0,0,0,0,0,0,0,0,0,0,0,0,0,0,0,0,0,0,0,0,0]
["1900-02-25",0,2,0,0,0,0,0,0,0,0,0,0,0,0,0,0,0,0,0,0,0,0,0,0,0,0,0,"1900-02-25",0,2,0,0,0,0,0,0,0,0,0,0,0,0,0,0,0,0,0,0,0,0,0,0,0,0,0,0,0,0,0,0,0,0,0,0,0,0,0,0,0,0,0,0,0,0]
["1900-02-25",0,3,0,0,0,0,0,0,0,0,0,0,0,0,0,0,0,0,0,0,0,0,0,0,0,0,0,"1900-02-25",0,3,0,0,0,0,0,0,0,0,0,0,0,0,0,0,0,0,0,0,0,0,0,0,0,0,0,0,0,0,0,0,0,0,0,0,0,0,0,0,0,0,0,0,0,0]
["1900-02-25",0,4,0,0,0,0,0,0,0,0,0,0,0,0,0,0,0,0,0,0,0,0,0,0,0,0,0,"1900-02-25",0,4,0,0,0,0,0,0,0,0,0,0,0,0,0,0,0,0,0,0,0,0,0,0,0,0,0,0,0,0,0,0,0,0,0,0,0,0,0,0,0,0,0,0,0,0]
["1900-02-25",0,5,0,0,0,0,0,0,0,0,0,0,0,0,0,0,0,0,0,0,0,0,0,0,0,0,0,"1900-02-25",0,5,0,0,0,0,0,0,0,0,0,0,0,0,0,0,0,0,0,0,0,0,0,0,0,0,0,0,0,0,0,0,0,0,0,0,0,0,0,0,0,0,0,0,0,0]
["1900-02-25",0,6,0,0,0,0,0,0,0,0,0,0,0,0,0,0,0,0,0,0,0,0,0,0,0,0,0,"1900-02-25",0,6,0,0,0,0,0,0,0,0,0,0,0,0,0,0,0,0,0,0,0,0,0,0,0,0,0,0,0,0,0,0,0,0,0,0,0,0,0,0,0,0,0,0,0,0]
["1900-02-25",0,7,0,0,0,0,0,0,0,0,0,0,0,0,0,0,0,0,0,0,0,0,0,0,0,0,0,"1900-02-25",0,7,0,0,0,0,0,0,0,0,0,0,0,0,0,0,0,0,0,0,0,0,0,0,0,0,0,0,0,0,0,0,0,0,0,0,0,0,0,0,0,0,0,0,0,0]
["1900-02-25",0,8,0,0,0,0,0,0,0,0,0,0,0,0,0,0,0,0,0,0,0,0,0,0,0,0,0,"1900-02-25",0,8,0,0,0,0,0,0,0,0,0,0,0,0,0,0,0,0,0,0,0,0,0,0,0,0,0,0,0,0,0,0,0,0,0,0,0,0,0,0,0,0,0,0,0,0]
["1900-02-25",0,9,0,0,0,0,0,0,0,0,0,0,0,0,0,0,0,0,0,0,0,0,0,0,0,0,0,"1900-02-25",0,9,0,0,0,0,0,0,0,0,0,0,0,0,0,0,0,0,0,0,0,0,0,0,0,0,0,0,0,0,0,0,0,0,0,0,0,0,0,0,0,0,0,0,0,0]
["1900-02-25",0,10,0,0,0,0,0,0,0,0,0,0,0,0,0,0,0,0,0,0,0,0,0,0,0,0,0,"1900-02-25",0,10,0,0,0,0,0,0,0,0,0,0,0,0,0,0,0,0,0,0,0,0,0,0,0,0,0,0,0,0,0,0,0,0,0,0,0,0,0,0,0,0,0,0,0,0]
["1900-03-03",0,1,0,0,0,0,0,0,0,0,0,0,0,0,0,0,0,0,0,0,0,0,0,0,0,0,0,"1900-03-03",0,1,0,0,0,0,0,0,0,0,0,0,0,0,0,0,0,0,0,0,0,0,0,0,0,0,0,0,0,0,0,0,0,0,0,0,0,0,0,0,0,0,0,0,0,0]
["1900-03-03",0,2,0,0,0,0,0,0,0,0,0,0,0,0,0,0,0,0,0,0,0,0,0,0,0,0,0,"1900-03-03",0,2,0,0,0,0,0,0,0,0,0,0,0,0,0,0,0,0,0,0,0,0,0,0,0,0,0,0,0,0,0,0,0,0,0,0,0,0,0,0,0,0,0,0,0,0]
["1900-03-03",0,3,0,0,0,0,0,0,0,0,0,0,0,0,0,0,0,0,0,0,0,0,0,0,0,0,0,"1900-03-03",0,3,0,0,0,0,0,0,0,0,0,0,0,0,0,0,0,0,0,0,0,0,0,0,0,0,0,0,0,0,0,0,0,0,0,0,0,0,0,0,0,0,0,0,0,0]
["1900-03-03",0,4,0,0,0,0,0,0,0,0,0,0,0,0,0,0,0,0,0,0,0,0,0,0,0,0,0,"1900-03-03",0,4,0,0,0,0,0,0,0,0,0,0,0,0,0,0,0,0,0,0,0,0,0,0,0,0,0,0,0,0,0,0,0,0,0,0,0,0,0,0,0,0,0,0,0,0]
["1900-03-03",0,5,0,0,0,0,0,0,0,0,0,0,0,0,0,0,0,0,0,0,0,0,0,0,0,0,0,"1900-03-03",0,5,0,0,0,0,0,0,0,0,0,0,0,0,0,0,0,0,0,0,0,0,0,0,0,0,0,0,0,0,0,0,0,0,0,0,0,0,0,0,0,0,0,0,0,0]
["1900-03-03",0,6,0,0,0,0,0,0,0,0,0,0,0,0,0,0,0,0,0,0,0,0,0,0,0,0,0,"1900-03-03",0,6,0,0,0,0,0,0,0,0,0,0,0,0,0,0,0,0,0,0,0,0,0,0,0,0,0,0,0,0,0,0,0,0,0,0,0,0,0,0,0,0,0,0,0,0]
["1900-03-03",0,7,0,0,0,0,0,0,0,0,0,0,0,0,0,0,0,0,0,0,0,0,0,0,0,0,0,"1900-03-03",0,7,0,0,0,0,0,0,0,0,0,0,0,0,0,0,0,0,0,0,0,0,0,0,0,0,0,0,0,0,0,0,0,0,0,0,0,0,0,0,0,0,0,0,0,0]
["1900-03-03",0,8,0,0,0,0,0,0,0,0,0,0,0,0,0,0,0,0,0,0,0,0,0,0,0,0,0,"1900-03-03",0,8,0,0,0,0,0,0,0,0,0,0,0,0,0,0,0,0,0,0,0,0,0,0,0,0,0,0,0,0,0,0,0,0,0,0,0,0,0,0,0,0,0,0,0,0]
["1900-03-03",0,9,0,0,0,0,0,0,0,0,0,0,0,0,0,0,0,0,0,0,0,0,0,0,0,0,0,"1900-03-03",0,9,0,0,0,0,0,0,0,0,0,0,0,0,0,0,0,0,0,0,0,0,0,0,0,0,0,0,0,0,0,0,0,0,0,0,0,0,0,0,0,0,0,0,0,0]
["1900-03-03",0,10,0,0,0,0,0,0,0,0,0,0,0,0,0,0,0,0,0,0,0,0,0,0,0,0,0,"1900-03-03",0,10,0,0,0,0,0,0,0,0,0,0,0,0,0,0,0,0,0,0,0,0,0,0,0,0,0,0,0,0,0,0,0,0,0,0,0,0,0,0,0,0,0,0,0,0]
["1900-03-10",0,1,0,0,0,0,0,0,0,0,0,0,0,0,0,0,0,0,0,0,0,0,0,0,0,0,0,"1900-03-10",0,1,0,0,0,0,0,0,0,0,0,0,0,0,0,0,0,0,0,0,0,0,0,0,0,0,0,0,0,0,0,0,0,0,0,0,0,0,0,0,0,0,0,0,0,0]
["1900-03-10",0,2,0,0,0,0,0,0,0,0,0,0,0,0,0,0,0,0,0,0,0,0,0,0,0,0,0,"1900-03-10",0,2,0,0,0,0,0,0,0,0,0,0,0,0,0,0,0,0,0,0,0,0,0,0,0,0,0,0,0,0,0,0,0,0,0,0,0,0,0,0,0,0,0,0,0,0]
["1900-03-10",0,3,0,0,0,0,0,0,0,0,0,0,0,0,0,0,0,0,0,0,0,0,0,0,0,0,0,"1900-03-10",0,3,0,0,0,0,0,0,0,0,0,0,0,0,0,0,0,0,0,0,0,0,0,0,0,0,0,0,0,0,0,0,0,0,0,0,0,0,0,0,0,0,0,0,0,0]
["1900-03-10",0,4,0,0,0,0,0,0,0,0,0,0,0,0,0,0,0,0,0,0,0,0,0,0,0,0,0,"1900-03-10",0,4,0,0,0,0,0,0,0,0,0,0,0,0,0,0,0,0,0,0,0,0,0,0,0,0,0,0,0,0,0,0,0,0,0,0,0,0,0,0,0,0,0,0,0,0]
["1900-03-10",0,5,0,0,0,0,0,0,0,0,0,0,0,0,0,0,0,0,0,0,0,0,0,0,0,0,0,"1900-03-10",0,5,0,0,0,0,0,0,0,0,0,0,0,0,0,0,0,0,0,0,0,0,0,0,0,0,0,0,0,0,0,0,0,0,0,0,0,0,0,0,0,0,0,0,0,0]
["1900-03-10",0,6,0,0,0,0,0,0,0,0,0,0,0,0,0,0,0,0,0,0,0,0,0,0,0,0,0,"1900-03-10",0,6,0,0,0,0,0,0,0,0,0,0,0,0,0,0,0,0,0,0,0,0,0,0,0,0,0,0,0,0,0,0,0,0,0,0,0,0,0,0,0,0,0,0,0,0]
["1900-03-10",0,7,0,0,0,0,0,0,0,0,0,0,0,0,0,0,0,0,0,0,0,0,0,0,0,0,0,"1900-03-10",0,7,0,0,0,0,0,0,0,0,0,0,0,0,0,0,0,0,0,0,0,0,0,0,0,0,0,0,0,0,0,0,0,0,0,0,0,0,0,0,0,0,0,0,0,0]
["1900-03-10",0,8,0,0,0,0,0,0,0,0,0,0,0,0,0,0,0,0,0,0,0,0,0,0,0,0,0,"1900-03-10",0,8,0,0,0,0,0,0,0,0,0,0,0,0,0,0,0,0,0,0,0,0,0,0,0,0,0,0,0,0,0,0,0,0,0,0,0,0,0,0,0,0,0,0,0,0]
["1900-03-10",0,9,0,0,0,0,0,0,0,0,0,0,0,0,0,0,0,0,0,0,0,0,0,0,0,0,0,"1900-03-10",0,9,0,0,0,0,0,0,0,0,0,0,0,0,0,0,0,0,0,0,0,0,0,0,0,0,0,0,0,0,0,0,0,0,0,0,0,0,0,0,0,0,0,0,0,0]
["1900-03-10",0,10,0,0,0,0,0,0,0,0,0,0,0,0,0,0,0,0,0,0,0,0,0,0,0,0,0,"1900-03-10",0,10,0,0,0,0,0,0,0,0,0,0,0,0,0,0,0,0,0,0,0,0,0,0,0,0,0,0,0,0,0,0,0,0,0,0,0,0,0,0,0,0,0,0,0,0]
["1900-03-17",0,1,0,0,0,0,0,0,0,0,0,0,0,0,0,0,0,0,0,0,0,0,0,0,0,0,0,"1900-03-17",0,1,0,0,0,0,0,0,0,0,0,0,0,0,0,0,0,0,0,0,0,0,0,0,0,0,0,0,0,0,0,0,0,0,0,0,0,0,0,0,0,0,0,0,0,0]
["1900-03-17",0,2,0,0,0,0,0,0,0,0,0,0,0,0,0,0,0,0,0,0,0,0,0,0,0,0,0,"1900-03-17",0,2,0,0,0,0,0,0,0,0,0,0,0,0,0,0,0,0,0,0,0,0,0,0,0,0,0,0,0,0,0,0,0,0,0,0,0,0,0,0,0,0,0,0,0,0]
["1900-03-17",0,3,0,0,0,0,0,0,0,0,0,0,0,0,0,0,0,0,0,0,0,0,0,0,0,0,0,"1900-03-17",0,3,0,0,0,0,0,0,0,0,0,0,0,0,0,0,0,0,0,0,0,0,0,0,0,0,0,0,0,0,0,0,0,0,0,0,0,0,0,0,0,0,0,0,0,0]
["1900-03-17",0,4,0,0,0,0,0,0,0,0,0,0,0,0,0,0,0,0,0,0,0,0,0,0,0,0,0,"1900-03-17",0,4,0,0,0,0,0,0,0,0,0,0,0,0,0,0,0,0,0,0,0,0,0,0,0,0,0,0,0,0,0,0,0,0,0,0,0,0,0,0,0,0,0,0,0,0]
["1900-03-17",0,5,0,0,0,0,0,0,0,0,0,0,0,0,0,0,0,0,0,0,0,0,0,0,0,0,0,"1900-03-17",0,5,0,0,0,0,0,0,0,0,0,0,0,0,0,0,0,0,0,0,0,0,0,0,0,0,0,0,0,0,0,0,0,0,0,0,0,0,0,0,0,0,0,0,0,0]
["1900-03-17",0,6,0,0,0,0,0,0,0,0,0,0,0,0,0,0,0,0,0,0,0,0,0,0,0,0,0,"1900-03-17",0,6,0,0,0,0,0,0,0,0,0,0,0,0,0,0,0,0,0,0,0,0,0,0,0,0,0,0,0,0,0,0,0,0,0,0,0,0,0,0,0,0,0,0,0,0]
["1900-03-17",0,7,0,0,0,0,0,0,0,0,0,0,0,0,0,0,0,0,0,0,0,0,0,0,0,0,0,"1900-03-17",0,7,0,0,0,0,0,0,0,0,0,0,0,0,0,0,0,0,0,0,0,0,0,0,0,0,0,0,0,0,0,0,0,0,0,0,0,0,0,0,0,0,0,0,0,0]
["1900-03-17",0,8,0,0,0,0,0,0,0,0,0,0,0,0,0,0,0,0,0,0,0,0,0,0,0,0,0,"1900-03-17",0,8,0,0,0,0,0,0,0,0,0,0,0,0,0,0,0,0,0,0,0,0,0,0,0,0,0,0,0,0,0,0,0,0,0,0,0,0,0,0,0,0,0,0,0,0]
["1900-03-17",0,9,0,0,0,0,0,0,0,0,0,0,0,0,0,0,0,0,0,0,0,0,0,0,0,0,0,"1900-03-17",0,9,0,0,0,0,0,0,0,0,0,0,0,0,0,0,0,0,0,0,0,0,0,0,0,0,0,0,0,0,0,0,0,0,0,0,0,0,0,0,0,0,0,0,0,0]
["1900-03-17",0,10,0,0,0,0,0,0,0,0,0,0,0,0,0,0,0,0,0,0,0,0,0,0,0,0,0,"1900-03-17",0,10,0,0,0,0,0,0,0,0,0,0,0,0,0,0,0,0,0,0,0,0,0,0,0,0,0,0,0,0,0,0,0,0,0,0,0,0,0,0,0,0,0,0,0,0]
["1900-03-24",0,1,0,0,0,0,0,0,0,0,0,0,0,0,0,0,0,0,0,0,0,0,0,0,0,0,0,"1900-03-24",0,1,0,0,0,0,0,0,0,0,0,0,0,0,0,0,0,0,0,0,0,0,0,0,0,0,0,0,0,0,0,0,0,0,0,0,0,0,0,0,0,0,0,0,0,0]
["1900-03-24",0,2,0,0,0,0,0,0,0,0,0,0,0,0,0,0,0,0,0,0,0,0,0,0,0,0,0,"1900-03-24",0,2,0,0,0,0,0,0,0,0,0,0,0,0,0,0,0,0,0,0,0,0,0,0,0,0,0,0,0,0,0,0,0,0,0,0,0,0,0,0,0,0,0,0,0,0]
["1900-03-24",0,3,0,0,0,0,0,0,0,0,0,0,0,0,0,0,0,0,0,0,0,0,0,0,0,0,0,"1900-03-24",0,3,0,0,0,0,0,0,0,0,0,0,0,0,0,0,0,0,0,0,0,0,0,0,0,0,0,0,0,0,0,0,0,0,0,0,0,0,0,0,0,0,0,0,0,0]
["1900-03-24",0,4,0,0,0,0,0,0,0,0,0,0,0,0,0,0,0,0,0,0,0,0,0,0,0,0,0,"1900-03-24",0,4,0,0,0,0,0,0,0,0,0,0,0,0,0,0,0,0,0,0,0,0,0,0,0,0,0,0,0,0,0,0,0,0,0,0,0,0,0,0,0,0,0,0,0,0]
["1900-03-24",0,5,0,0,0,0,0,0,0,0,0,0,0,0,0,0,0,0,0,0,0,0,0,0,0,0,0,"1900-03-24",0,5,0,0,0,0,0,0,0,0,0,0,0,0,0,0,0,0,0,0,0,0,0,0,0,0,0,0,0,0,0,0,0,0,0,0,0,0,0,0,0,0,0,0,0,0]
["1900-03-24",0,6,0,0,0,0,0,0,0,0,0,0,0,0,0,0,0,0,0,0,0,0,0,0,0,0,0,"1900-03-24",0,6,0,0,0,0,0,0,0,0,0,0,0,0,0,0,0,0,0,0,0,0,0,0,0,0,0,0,0,0,0,0,0,0,0,0,0,0,0,0,0,0,0,0,0,0]
["1900-03-24",0,7,0,0,0,0,0,0,0,0,0,0,0,0,0,0,0,0,0,0,0,0,0,0,0,0,0,"1900-03-24",0,7,0,0,0,0,0,0,0,0,0,0,0,0,0,0,0,0,0,0,0,0,0,0,0,0,0,0,0,0,0,0,0,0,0,0,0,0,0,0,0,0,0,0,0,0]
["1900-03-24",0,8,0,0,0,0,0,0,0,0,0,0,0,0,0,0,0,0,0,0,0,0,0,0,0,0,0,"1900-03-24",0,8,0,0,0,0,0,0,0,0,0,0,0,0,0,0,0,0,0,0,0,0,0,0,0,0,0,0,0,0,0,0,0,0,0,0,0,0,0,0,0,0,0,0,0,0]
["1900-03-24",0,9,0,0,0,0,0,0,0,0,0,0,0,0,0,0,0,0,0,0,0,0,0,0,0,0,0,"1900-03-24",0,9,0,0,0,0,0,0,0,0,0,0,0,0,0,0,0,0,0,0,0,0,0,0,0,0,0,0,0,0,0,0,0,0,0,0,0,0,0,0,0,0,0,0,0,0]
["1900-03-24",0,10,0,0,0,0,0,0,0,0,0,0,0,0,0,0,0,0,0,0,0,0,0,0,0,0,0,{"$f":"A131","v":"1900-03-24"},{"$f":"B131","v":0},{"$f":"C131","v":10},{"$f":"D131","v":0},{"$f":"E131","v":0},{"$f":"IF(F131=\"y\",1,0)","v":0},{"$f":"IF(G131=\"y\",1,0)","v":0},{"$f":"IF(H131=\"y\",1,0)","v":0},{"$f":"IF(I131=\"y\",1,0)","v":0},{"$f":"IF(J131=\"y\",1,0)","v":0},{"$f":"IF(OR(K131=\"F\",K131=\"C\"),1,0)","v":0},0,0,0,{"$f":"IF(O131=\"y\",1,0)","v":0},{"$f":"IF(P131=\"y\",1,0)","v":0},{"$f":"IF(Q131=\"y\",1,0)","v":0},{"$f":"IF(R131=\"y\",1,0)","v":0},{"$f":"IF(S131=\"y\",1,0)","v":0},{"$f":"IF(T131=\"y\",1,0)","v":0},{"$f":"IF(U131=\"y\",1,0)","v":0},{"$f":"IF(V131=\"y\",1,0)","v":0},{"$f":"IF(W131=\"y\",1,0)","v":0},{"$f":"X131","v":0},{"$f":"IF(Y131=\"y\",1,0)","v":0},{"$f":"IF(Z131=\"y\",1,0)","v":0},{"$f":"IF(AA131=\"y\",1,0)","v":0},{"$f":"IF(AB131=\"y\",1,0)","v":0},{"$f":"IF(COUNTIF(D131:AB131,\"*\")>0,1,0)","v":0},{"$f":"K131","v":0},{"$f":"L131","v":0},{"$f":"M131","v":0},{"$f":"N131","v":0},{"$f":"IF(OR(R131=\"y\",R131=\"n\"),1,0)","v":0},{"$f":"IF(AND(S131<>\"X\",S131<>0),1,0)","v":0},{"$f":"IF(S131=\"A\",1,0)","v":0},{"$f":"IF(S131=\"B\",1,0)","v":0},{"$f":"IF(S131=\"C\",1,0)","v":0},{"$f":"IF(S131=\"D\",1,0)","v":0},{"$f":"IF(AZ131>0,1,0)","v":0},{"$f":"IF(AZ131=1,1,0)","v":0},{"$f":"IF(AZ131=2,1,0)","v":0},{"$f":"IF(AZ131=3,1,0)","v":0},{"$f":"IF(AZ131=4,1,0)","v":0},{"$f":"IF(AZ131=5,1,0)","v":0},{"$f":"IF(OR(X131=1,X131=2),1,0)","v":0},{"$f":"IF(AA131=\"n\",1,0)","v":0}]

{"sheet":"Template","index":9,"n_rows":32,"n_cols":133,"rows_kept":32,"cut":false,"hidden":true,"merged":[[3,123,3,132],[3,63,3,72],[3,73,3,82],[3,83,3,92],[3,93,3,102],[3,103,3,112],[3,113,3,122],[3,53,3,62],[3,3,3,12],[3,13,3,22],[3,23,3,32],[3,33,3,42],[3,43,3,52]]}
[null,"National shared goals of care chart audit tool"]
[null,"Ward:"]
[]
[1,null,"Week starting",{"$f":"ControlPage!$B$5","v":"00:00:00"},null,null,null,null,null,null,null,null,null,{"$f":"D4+7","v":"1900-01-07"},null,null,null,null,null,null,null,null,null,{"$f":"N4+7","v":"1900-01-14"},null,null,null,null,null,null,null,null,null,{"$f":"X4+7","v":"1900-01-21"},null,null,null,null,null,null,null,null,null,{"$f":"AH4+7","v":"1900-01-28"},null,null,null,null,null,null,null,null,null,{"$f":"AR4+7","v":"1900-02-04"},null,null,null,null,null,null,null,null,null,{"$f":"BB4+7","v":"1900-02-11"},null,null,null,null,null,null,null,null,null,{"$f":"BL4+7","v":"1900-02-18"},null,null,null,null,null,null,null,null,null,{"$f":"BV4+7","v":"1900-02-25"},null,null,null,null,null,null,null,null,null,{"$f":"CF4+7","v":"1900-03-03"},null,null,null,null,null,null,null,null,null,{"$f":"CP4+7","v":"1900-03-10"},null,null,null,null,null,null,null,null,null,{"$f":"CZ4+7","v":"1900-03-17"},null,null,null,null,null,null,null,null,null,{"$f":"DJ4+7","v":"1900-03-24"}]
[2,null,"Week",{"$f":"D4","v":"00:00:00"},{"$f":"D5","v":"00:00:00"},{"$f":"E5","v":"00:00:00"},"00:00:00","00:00:00","00:00:00","00:00:00","00:00:00","00:00:00","00:00:00",{"$f":"N4","v":"1900-01-07"},{"$f":"N5","v":"1900-01-07"},{"$f":"O5","v":"1900-01-07"},"1900-01-07","1900-01-07","1900-01-07","1900-01-07","1900-01-07","1900-01-07","1900-01-07",{"$f":"X4","v":"1900-01-14"},{"$f":"X5","v":"1900-01-14"},{"$f":"Y5","v":"1900-01-14"},"1900-01-14","1900-01-14","1900-01-14","1900-01-14","1900-01-14","1900-01-14","1900-01-14",{"$f":"AH4","v":"1900-01-21"},{"$f":"AH5","v":"1900-01-21"},"1900-01-21","1900-01-21","1900-01-21","1900-01-21","1900-01-21","1900-01-21","1900-01-21","1900-01-21",{"$f":"AR4","v":"1900-01-28"},{"$f":"AR5","v":"1900-01-28"},"1900-01-28","1900-01-28","1900-01-28","1900-01-28","1900-01-28","1900-01-28","1900-01-28","1900-01-28",{"$f":"BB4","v":"1900-02-04"},{"$f":"BB5","v":"1900-02-04"},{"$f":"BC5","v":"1900-02-04"},"1900-02-04","1900-02-04","1900-02-04","1900-02-04","1900-02-04","1900-02-04","1900-02-04",{"$f":"BL4","v":"1900-02-11"},{"$f":"BL5","v":"1900-02-11"},{"$f":"BM5","v":"1900-02-11"},"1900-02-11","1900-02-11","1900-02-11","1900-02-11","1900-02-11","1900-02-11","1900-02-11",{"$f":"BV4","v":"1900-02-18"},{"$f":"BV5","v":"1900-02-18"},{"$f":"BW5","v":"1900-02-18"},"1900-02-18","1900-02-18","1900-02-18","1900-02-18","1900-02-18","1900-02-18","1900-02-18",{"$f":"CF4","v":"1900-02-25"},{"$f":"CF5","v":"1900-02-25"},{"$f":"CG5","v":"1900-02-25"},"1900-02-25","1900-02-25","1900-02-25","1900-02-25","1900-02-25","1900-02-25","1900-02-25",{"$f":"CP4","v":"1900-03-03"},{"$f":"CP5","v":"1900-03-03"},{"$f":"CQ5","v":"1900-03-03"},"1900-03-03","1900-03-03","1900-03-03","1900-03-03","1900-03-03","1900-03-03","1900-03-03",{"$f":"CZ4","v":"1900-03-10"},{"$f":"CZ5","v":"1900-03-10"},{"$f":"DA5","v":"1900-03-10"},"1900-03-10","1900-03-10","1900-03-10","1900-03-10","1900-03-10","1900-03-10","1900-03-10",{"$f":"DJ4","v":"1900-03-17"},{"$f":"DJ5","v":"1900-03-17"},{"$f":"DK5","v":"1900-03-17"},"1900-03-17","1900-03-17","1900-03-17","1900-03-17","1900-03-17","1900-03-17","1900-03-17",{"$f":"DT4","v":"1900-03-24"},{"$f":"DT5","v":"1900-03-24"},{"$f":"DU5","v":"1900-03-24"},"1900-03-24","1900-03-24","1900-03-24","1900-03-24","1900-03-24","1900-03-24","1900-03-24"]
[3,null,"Ward",{"$f":"$C$2","v":0},{"$f":"$C$2","v":0},0,0,0,0,0,0,0,0,0,0,0,0,0,0,0,0,0,0,0,0,0,0,0,0,0,0,0,0,0,0,0,0,0,0,0,0,0,0,0,0,0,0,0,0,0,0,0,0,0,0,0,0,0,0,0,0,0,0,0,0,0,0,0,{"$f":"$C$2","v":0},0,0,0,0,0,0,0,0,0,0,0,0,0,0,0,0,0,0,0,0,0,0,0,0,0,0,0,0,0,0,0,0,0,0,0,0,0,0,0,0,0,0,0,0,0,0,0,0,0,0,0,0,0,0,0,0,0,0,0,0,0,0,0,{"$f":"$C$2","v":0}]
[4,null,"Case number",1,2,3,4,5,6,7,8,9,10,1,2,3,4,5,6,7,8,9,10,1,2,3,4,5,6,7,8,9,10,1,2,3,4,5,6,7,8,9,10,1,2,3,4,5,6,7,8,9,10,1,2,3,4,5,6,7,8,9,10,1,2,3,4,5,6,7,8,9,10,1,2,3,4,5,6,7,8,9,10,1,2,3,4,5,6,7,8,9,10,1,2,3,4,5,6,7,8,9,10,1,2,3,4,5,6,7,8,9,10,1,2,3,4,5,6,7,8,9,10,1,2,3,4,5,6,7,8,9,10]
[5,null,"Ethnicity"]
[null,null,"Age in years"]
[7,1,"Does the patient have a shared goals of care form for this admission? (If 'y', go to Q2; if 'n', audit the next case)"]
[null,2,"Does the patient have more than one shared goals of care form for this admission? (If 'y', go to Q2a; if 'n', go to Q3)"]
[8,"2a","Was the previous shared goals of care form(s) crossed out or replaced?"]
[null,3,"Have the defined fields been completed?"]
[null,4,"Were the names of the people present at the discussion documented?"]
[null,5,"Was the patient’s understanding of their condition and what may lie ahead documented?"]
[null,6,"Was it documented how much information the patient wanted to know?"]
[null,7,"Was the clinician’s understanding of the patient’s current condition and what may lie ahead documented?"]
[null,8,"Was the patient’s values and what is important to them documented?"]
[null,9,"Were additional comments about the discussion made on the form?"]
[null,10,"Was the further information box selected? (If 'y', go to Q10a; if 'n', go to Q11)"]
[null,"10a","Was further information documented in the clinical record?"]
[null,11,"Was the reason documented for why the discussion was not held with the patient?"]
[null,12,"Which goal of care was selected? (If A, go to Q15; if B, go to Q13; if C, go to Q14; if D, go to Q15; if X, go to Q16)"]
[null,13,"Was a decision made on whether referral for ICU level care was appropriate for goal B? (Once answered, go to Q15)"]
[9,14,"Was a decision made on whether ‘rapid response team calls’ were appropriate for goal C? (Once answered, go to Q15)"]
[10,15,"Were additional comments documented for the selected goal?"]
[11,16,"Was the date and time of the goal of care documented? (If 'y', go to Q16a; if 'n' go to Q17)"]
[12,"16a","How soon after admission was the goal of care documented?"]
[14,17,"Was the shared goals of care form signed?"]
[15,18,"After the goal of care was documented, did the patient’s condition deteriorate and require clinical review? (If 'y', go to Q18a)"]
[16,"18a","Was the agreed goal of care followed? (If 'n', go to Q18b)"]
[17,"18b","Was the reason documented for why the goal of care was not followed?"]

{"sheet":"Audit results by week","index":10,"n_rows":35,"n_cols":29,"rows_kept":35,"cut":false,"hidden":false,"merged":[[1,1,1,2]]}
[null,"Audit results by week, ethnicity and question"]
[null,"Note. Prioritised ethnicity is used. M = Māori, P= Pacific peoples, A = Asian, E= European,  O= Other, R = Residual Categories.  If a colum has a '0' heading this is a missing data error and means the ethnicity code needs to be selected for that case."]
[]
[]
[null,null,"Column Labels"]
[null,null,"00:00:00","0/01/1900 Total","1900-01-07","7/01/1900 Total","1900-01-14","14/01/1900 Total","1900-01-21","21/01/1900 Total","1900-01-28","28/01/1900 Total","1900-02-04","4/02/1900 Total","1900-02-11","11/02/1900 Total","1900-02-18","18/02/1900 Total","1900-02-25","25/02/1900 Total","1900-03-03","3/03/1900 Total","1900-03-10","10/03/1900 Total","1900-03-17","17/03/1900 Total","1900-03-24","24/03/1900 Total","Grand Total"]
[null,"Values",0,null,0,null,0,null,0,null,0,null,0,null,0,null,0,null,0,null,0,null,0,null,0,null,0]
[null,"Q1 Patients with a shared goals of care form",0,0,0,0,0,0,0,0,0,0,0,0,0,0,0,0,0,0,0,0,0,0,0,0,0,0,0]
[null,"Q2 Patients with more than one shared goals of care form",0,0,0,0,0,0,0,0,0,0,0,0,0,0,0,0,0,0,0,0,0,0,0,0,0,0,0]
[null,"Q2a Patients with previous form crossed out or replaced",0,0,0,0,0,0,0,0,0,0,0,0,0,0,0,0,0,0,0,0,0,0,0,0,0,0,0]
[null,"Q3 Patients with defined fields completed on their form",0,0,0,0,0,0,0,0,0,0,0,0,0,0,0,0,0,0,0,0,0,0,0,0,0,0,0]
[null,"Q4 Patients with names of people present documented",0,0,0,0,0,0,0,0,0,0,0,0,0,0,0,0,0,0,0,0,0,0,0,0,0,0,0]
[null,"Q5 Patients understanding and what lies ahead documented on form or clinical record",0,0,0,0,0,0,0,0,0,0,0,0,0,0,0,0,0,0,0,0,0,0,0,0,0,0,0]
[null,"Q6 Patients where how much information wanted is documented on form or clinical record",0,0,0,0,0,0,0,0,0,0,0,0,0,0,0,0,0,0,0,0,0,0,0,0,0,0,0]
[null,"Q7 Patients where clinician understanding documented on form or clinical record",0,0,0,0,0,0,0,0,0,0,0,0,0,0,0,0,0,0,0,0,0,0,0,0,0,0,0]
[null,"Q8 Patients values and what is important documented on form or clinical record",0,0,0,0,0,0,0,0,0,0,0,0,0,0,0,0,0,0,0,0,0,0,0,0,0,0,0]
[null,"Q9 Patients with additional comments documented on form",0,0,0,0,0,0,0,0,0,0,0,0,0,0,0,0,0,0,0,0,0,0,0,0,0,0,0]
[null,"Q10 Patients with further information box selected",0,0,0,0,0,0,0,0,0,0,0,0,0,0,0,0,0,0,0,0,0,0,0,0,0,0,0]
[null,"Q10a Patients where further information documented in clinical record",0,0,0,0,0,0,0,0,0,0,0,0,0,0,0,0,0,0,0,0,0,0,0,0,0,0,0]
[null,"Q11 Patients where reason for not holding discussion with patient documented",0,0,0,0,0,0,0,0,0,0,0,0,0,0,0,0,0,0,0,0,0,0,0,0,0,0,0]
[null,"Q12 Patients with a goal of care selected",0,0,0,0,0,0,0,0,0,0,0,0,0,0,0,0,0,0,0,0,0,0,0,0,0,0,0]
[null,"Q12 Patients with goal of care A",0,0,0,0,0,0,0,0,0,0,0,0,0,0,0,0,0,0,0,0,0,0,0,0,0,0,0]
[null,"Q12 Patients with goal of care B",0,0,0,0,0,0,0,0,0,0,0,0,0,0,0,0,0,0,0,0,0,0,0,0,0,0,0]
[null,"Q12 Patients with goal of care C",0,0,0,0,0,0,0,0,0,0,0,0,0,0,0,0,0,0,0,0,0,0,0,0,0,0,0]
[null,"Q12 Patients with goal of care D",0,0,0,0,0,0,0,0,0,0,0,0,0,0,0,0,0,0,0,0,0,0,0,0,0,0,0]
[null,"Q13 Patients with goal of care B where decision made on whether referral to ICU appropriate",0,0,0,0,0,0,0,0,0,0,0,0,0,0,0,0,0,0,0,0,0,0,0,0,0,0,0]
[null,"Q14 Patients with goal of care C where decision made on whether rapid response team call appropriate",0,0,0,0,0,0,0,0,0,0,0,0,0,0,0,0,0,0,0,0,0,0,0,0,0,0,0]
[null,"Q15 Patients with goal of care and additional comments for that goal documented",0,0,0,0,0,0,0,0,0,0,0,0,0,0,0,0,0,0,0,0,0,0,0,0,0,0,0]
[null,"Q16 Patients with date and time of goal of care decision documented",0,0,0,0,0,0,0,0,0,0,0,0,0,0,0,0,0,0,0,0,0,0,0,0,0,0,0]
[null,"Q16a Patients with goal of care decision documented within 24 hours of admission",0,0,0,0,0,0,0,0,0,0,0,0,0,0,0,0,0,0,0,0,0,0,0,0,0,0,0]
[null,"Q17 Patients with a signed form",0,0,0,0,0,0,0,0,0,0,0,0,0,0,0,0,0,0,0,0,0,0,0,0,0,0,0]
[null,"Q18 Patients with a goal of care, their condition deteriorated and required clinical review",0,0,0,0,0,0,0,0,0,0,0,0,0,0,0,0,0,0,0,0,0,0,0,0,0,0,0]
[null,"Q18a Patients that had their goal of care followed",0,0,0,0,0,0,0,0,0,0,0,0,0,0,0,0,0,0,0,0,0,0,0,0,0,0,0]
[null,"Q18b Patients where reason documented for why goal of care not followed",0,0,0,0,0,0,0,0,0,0,0,0,0,0,0,0,0,0,0,0,0,0,0,0,0,0,0]
[null,"Total cases audited",0,0,0,0,0,0,0,0,0,0,0,0,0,0,0,0,0,0,0,0,0,0,0,0,0,0,0]

{"sheet":"Lists","index":11,"n_rows":63,"n_cols":3,"rows_kept":63,"cut":false,"hidden":true,"merged":[]}
["Ethnicity"]
["M","Māori"]
["P","Pacific"]
["A","Asian"]
["E","European"]
["O","Other"]
["R","Residual Categories"]
[]
["Yes/No"]
["y"]
["n"]
["n/a"]
[]
["Documented after admission"]
[1]
[2]
[3]
[4]
[5]
[]
["FCN"]
["F"]
["C"]
["N"]
[]
["Goal of care"]
["A"]
["B"]
["C"]
["D"]
["X"]
[]
["Age"]
[0,"m",{"$f":"_xlfn.CONCAT(A34,$B$34)","v":"0m"}]
[1,"y","1m"]
[2,null,"2m"]
[3,null,"3m"]
[4,null,"4m"]
[5,null,"5m"]
[6,null,"6m"]
[7,null,"7m"]
[8,null,"8m"]
[9,null,"9m"]
[10,null,"10m"]
[11,null,"11m"]
[12,null,{"$f":"_xlfn.CONCAT(A35,$B$35)","v":"1y"}]
[13,null,{"$f":"_xlfn.CONCAT(A36,$B$35)","v":"2y"}]
[14,null,"3y"]
[15,null,"4y"]
[16,null,"5y"]
[17,null,"6y"]
[18,null,"7y"]
[null,null,"8y"]
[null,null,"9y"]
[null,null,"10y"]
[null,null,"11y"]
[null,null,"12y"]
[null,null,"13y"]
[null,null,"14y"]
[null,null,"15y"]
[null,null,{"$f":"_xlfn.CONCAT(A50,$B$35)","v":"16y"}]
[null,null,"17y"]
[null,null,"18y"]